BODY,BODY NAME,SUPPLIER CODE,SUPPLIER NAME,TRANSACTION NUMBER,INVOICE DATE,THEIR REF,NARR1,PAID DATE,VAT AMOUNT,EXCLUSIVE AMOUNT,INCLUSIVE AMOUNT,EXPENSE AREA,EXPENSE TYPE,EXPENSE CODE
http://statistics.data.gov.uk/id/local-authority/12UE,Huntingdonshire District Council,203199,2CFutures Limited,82179,24/04/2023,2304-0001,Staff Training - Collaboration Day,26/06/2023,0,2000,2000,HR Services,Staff Development And Training,60115
http://statistics.data.gov.uk/id/local-authority/12UE,Huntingdonshire District Council,202959,5Day (Norwich) Ltd,81595,25/05/2023,PE-MBFJD - HDC 250523,REDACTED,15/06/2023,246.67,1233.33,1480,Domestic Waste Collection,Staff Development And Training,60115
http://statistics.data.gov.uk/id/local-authority/12UE,Huntingdonshire District Council,200000,A C COMMERCIALS A C COMMERCIALS,78002,24/03/2023,INV0021939,Electrical Outlet,20/04/2023,75,375,450,Vehicle Maintenance,Equipment,61713
http://statistics.data.gov.uk/id/local-authority/12UE,Huntingdonshire District Council,200000,A C COMMERCIALS A C COMMERCIALS,80773,15/05/2023,INV0022618,AdBlue,08/06/2023,164.7,823.5,988.2,Domestic Waste Collection,Vehicle Repairs And Maintenance,60904
http://statistics.data.gov.uk/id/local-authority/12UE,Huntingdonshire District Council,200000,A C COMMERCIALS A C COMMERCIALS,77798,17/03/2023,INV0021838,Hydraulic Oil,14/04/2023,125,625,750,Domestic Waste Collection,Vehicle Repairs And Maintenance,60904
http://statistics.data.gov.uk/id/local-authority/12UE,Huntingdonshire District Council,200000,A C COMMERCIALS A C COMMERCIALS,77433,13/03/2023,INV0021740,Truck & Windscreen Wash,06/04/2023,21.07,105.36,126.43,Domestic Waste Collection,Vehicle Repairs And Maintenance,60904
http://statistics.data.gov.uk/id/local-authority/12UE,Huntingdonshire District Council,200000,A C COMMERCIALS A C COMMERCIALS,80773,15/05/2023,INV0022618,AdBlue,08/06/2023,164.7,823.5,988.2,Green Waste Collection,Vehicle Repairs And Maintenance,60904
http://statistics.data.gov.uk/id/local-authority/12UE,Huntingdonshire District Council,200000,A C COMMERCIALS A C COMMERCIALS,77798,17/03/2023,INV0021838,Hydraulic Oil,14/04/2023,125,625,750,Green Waste Collection,Vehicle Repairs And Maintenance,60904
http://statistics.data.gov.uk/id/local-authority/12UE,Huntingdonshire District Council,200000,A C COMMERCIALS A C COMMERCIALS,77433,13/03/2023,INV0021740,Truck & Windscreen Wash,06/04/2023,17.56,87.8,105.36,Green Waste Collection,Vehicle Repairs And Maintenance,60904
http://statistics.data.gov.uk/id/local-authority/12UE,Huntingdonshire District Council,200000,A C COMMERCIALS A C COMMERCIALS,80773,15/05/2023,INV0022618,AdBlue,08/06/2023,65.88,329.4,395.28,Grounds Maintenance,Vehicle Repairs And Maintenance,60904
http://statistics.data.gov.uk/id/local-authority/12UE,Huntingdonshire District Council,200000,A C COMMERCIALS A C COMMERCIALS,78003,22/03/2023,INV0021901,Titan GT1 Flex,14/04/2023,99.63,498.15,597.78,Grounds Maintenance,Vehicle Repairs And Maintenance,60904
http://statistics.data.gov.uk/id/local-authority/12UE,Huntingdonshire District Council,200000,A C COMMERCIALS A C COMMERCIALS,77433,13/03/2023,INV0021740,Truck & Windscreen Wash,06/04/2023,3.51,17.56,21.07,Grounds Maintenance,Vehicle Repairs And Maintenance,60904
http://statistics.data.gov.uk/id/local-authority/12UE,Huntingdonshire District Council,200000,A C COMMERCIALS A C COMMERCIALS,77433,13/03/2023,INV0021740,Truck & Windscreen Wash,06/04/2023,3.51,17.57,21.08,Pool Cars,Vehicle Repairs And Maintenance,60904
http://statistics.data.gov.uk/id/local-authority/12UE,Huntingdonshire District Council,200000,A C COMMERCIALS A C COMMERCIALS,80773,15/05/2023,INV0022618,AdBlue,08/06/2023,164.7,823.5,988.2,Recycling Collections,Vehicle Repairs And Maintenance,60904
http://statistics.data.gov.uk/id/local-authority/12UE,Huntingdonshire District Council,200000,A C COMMERCIALS A C COMMERCIALS,77798,17/03/2023,INV0021838,Hydraulic Oil,14/04/2023,125,625,750,Recycling Collections,Vehicle Repairs And Maintenance,60904
http://statistics.data.gov.uk/id/local-authority/12UE,Huntingdonshire District Council,200000,A C COMMERCIALS A C COMMERCIALS,77433,13/03/2023,INV0021740,Truck & Windscreen Wash,06/04/2023,21.07,105.36,126.43,Recycling Collections,Vehicle Repairs And Maintenance,60904
http://statistics.data.gov.uk/id/local-authority/12UE,Huntingdonshire District Council,200000,A C COMMERCIALS A C COMMERCIALS,80773,15/05/2023,INV0022618,AdBlue,08/06/2023,98.82,494.1,592.92,Street Cleansing,Vehicle Repairs And Maintenance,60904
http://statistics.data.gov.uk/id/local-authority/12UE,Huntingdonshire District Council,200000,A C COMMERCIALS A C COMMERCIALS,77798,17/03/2023,INV0021838,Hydraulic Oil,14/04/2023,125,625,750,Street Cleansing,Vehicle Repairs And Maintenance,60904
http://statistics.data.gov.uk/id/local-authority/12UE,Huntingdonshire District Council,200000,A C COMMERCIALS A C COMMERCIALS,78003,22/03/2023,INV0021901,Titan GT1 Flex,14/04/2023,99.63,498.15,597.78,Street Cleansing,Vehicle Repairs And Maintenance,60904
http://statistics.data.gov.uk/id/local-authority/12UE,Huntingdonshire District Council,200000,A C COMMERCIALS A C COMMERCIALS,77433,13/03/2023,INV0021740,Truck & Windscreen Wash,06/04/2023,3.51,17.56,21.07,Street Cleansing,Vehicle Repairs And Maintenance,60904
http://statistics.data.gov.uk/id/local-authority/12UE,Huntingdonshire District Council,200000,A C COMMERCIALS A C COMMERCIALS,78004,24/03/2023,INV0021940,LO67OEN Beacon Light Bar,20/04/2023,99.36,496.82,596.18,Street Cleansing,Vehicle Repairs And Maintenance,60904
http://statistics.data.gov.uk/id/local-authority/12UE,Huntingdonshire District Council,200005,ABBEY COLLEGE ABBEY COLLEGE,77530,20/03/2023,1216,OLR Water Charges Sep-Mar22/Mar22/23,14/04/2023,29.06,145.29,174.35,OLR - Site & Centre Management,Water And Sewerage,60302
http://statistics.data.gov.uk/id/local-authority/12UE,Huntingdonshire District Council,200005,ABBEY COLLEGE ABBEY COLLEGE,77530,20/03/2023,1216,OLR Water Charges Sep-Mar22/Mar22/23,14/04/2023,280.33,1401.64,1681.97,OLR - Site & Centre Management,Water And Sewerage,60302
http://statistics.data.gov.uk/id/local-authority/12UE,Huntingdonshire District Council,201195,Abbots Ripton  Parish Council,79292,25/04/2023,PARISH PRECEPT APR 23,Parish Precept - April 2023,25/04/2023,0,12000,12000,P C Precept Abbots Ripton,Precepts,66301
http://statistics.data.gov.uk/id/local-authority/12UE,Huntingdonshire District Council,201196,Abbotsley Parish Council,79292,25/04/2023,PARISH PRECEPT APR 23,Parish Precept - April 2023,25/04/2023,0,17367,17367,P C Precept Abbotsley,Precepts,66301
http://statistics.data.gov.uk/id/local-authority/12UE,Huntingdonshire District Council,200009,ABC FOOD LAW LTD ABC FOOD LAW LTD,78200,03/04/2023,INV-3168,ABC FOOD LAW ONLINE,04/05/2023,45,225,270,Food Safety General,Membership And Subscriptions,64800
http://statistics.data.gov.uk/id/local-authority/12UE,Huntingdonshire District Council,200009,ABC FOOD LAW LTD ABC FOOD LAW LTD,78200,03/04/2023,INV-3168,ABC FOOD LAW ONLINE,04/05/2023,45,225,270,Food Safety General,Membership And Subscriptions,64800
http://statistics.data.gov.uk/id/local-authority/12UE,Huntingdonshire District Council,202919,Acas,77933,17/03/2023,16/741,Staff Training - CIWM Training,14/04/2023,0,2160,2160,Community Centres,Maintenance - Building,60201
http://statistics.data.gov.uk/id/local-authority/12UE,Huntingdonshire District Council,201295,ACCENT HOUSING,79560,13/04/2023,REDACTED,REDACTED,04/05/2023,0,373.72,373.72,Homelessness,Homeless Prevention Payments,64403
http://statistics.data.gov.uk/id/local-authority/12UE,Huntingdonshire District Council,200017,ACCESS & AUTOMATION LTD ACCESS & AUTOMATION LTD,78300,30/03/2023,8324,REDACTED,04/05/2023,0,8904,8904,Disables Facilities Grants,Mandatory Grants,64601
http://statistics.data.gov.uk/id/local-authority/12UE,Huntingdonshire District Council,200017,ACCESS & AUTOMATION LTD ACCESS & AUTOMATION LTD,81472,30/05/2023,8478,REDACTED,22/06/2023,0,1674,1674,Disables Facilities Grants,Mandatory Grants,64601
http://statistics.data.gov.uk/id/local-authority/12UE,Huntingdonshire District Council,202754,ACCESS INTELLIGENCE MEDIA & COMMUNICATIONS LIMITED,78916,27/03/2023,INV63597,IT Software Jun-Nov23,20/04/2023,675,3375,4050,3CICT NON STAFF HOLDING ACCOUNT,Ict Software,64071
http://statistics.data.gov.uk/id/local-authority/12UE,Huntingdonshire District Council,201003,ACEBENCH LIMITED,82448,27/03/2023,3353,L'Lords Insurance Premium - Phoenix Ct,30/06/2023,5000.2,25000.99,30001.19,Commercial Properties,Insurance Premium - Buildings,69342
http://statistics.data.gov.uk/id/local-authority/12UE,Huntingdonshire District Council,202403,ACT NOW TRAINING,77840,20/03/2023,INV-P3785,Staff Training RIPA Essentials,14/04/2023,588,2940,3528,Cambridge City Business Case ,Staff Development And Training,60115
http://statistics.data.gov.uk/id/local-authority/12UE,Huntingdonshire District Council,202239,ADT FIRE AND SECURITY PLC,81827,01/06/2023,52759664,Fire Alarm Maintenance Jun23-May24,22/06/2023,195,975,1170,Oak Drive (HUN),Maintenance - Building,60201
http://statistics.data.gov.uk/id/local-authority/12UE,Huntingdonshire District Council,202239,ADT FIRE AND SECURITY PLC,81974,30/05/2023,52556866,Maple Centre,22/06/2023,69.53,347.64,417.17,Oak Drive (HUN),Maintenance - Building,60201
http://statistics.data.gov.uk/id/local-authority/12UE,Huntingdonshire District Council,200028,AEBI SCHMIDT AEBI SCHMIDT,81169,22/05/2023,60289656,Brushes,15/06/2023,52.62,263.11,315.73,Street Cleansing,Vehicle Repairs And Maintenance,60904
http://statistics.data.gov.uk/id/local-authority/12UE,Huntingdonshire District Council,200028,AEBI SCHMIDT AEBI SCHMIDT,77434,13/03/2023,60287894,Brushs,06/04/2023,43.85,219.26,263.11,Street Cleansing,Vehicle Repairs And Maintenance,60904
http://statistics.data.gov.uk/id/local-authority/12UE,Huntingdonshire District Council,200028,AEBI SCHMIDT AEBI SCHMIDT,78553,31/03/2023,60288515,AJ66AVV Suction Box Parts,04/05/2023,135.08,675.4,810.48,Street Cleansing,Vehicle Repairs And Maintenance,60904
http://statistics.data.gov.uk/id/local-authority/12UE,Huntingdonshire District Council,200028,AEBI SCHMIDT AEBI SCHMIDT,81112,25/05/2023,60289814,AJ66AVV Supply & Fit New Circuit Board,15/06/2023,114.26,571.28,685.54,Street Cleansing,Vehicle Repairs And Maintenance,60904
http://statistics.data.gov.uk/id/local-authority/12UE,Huntingdonshire District Council,200028,AEBI SCHMIDT AEBI SCHMIDT,81169,22/05/2023,60289656,Brushes,15/06/2023,52.62,263.11,315.73,Street Cleansing,Vehicle Repairs And Maintenance,60904
http://statistics.data.gov.uk/id/local-authority/12UE,Huntingdonshire District Council,200028,AEBI SCHMIDT AEBI SCHMIDT,77434,13/03/2023,60287894,Brushs,06/04/2023,43.85,219.26,263.11,Street Cleansing,Vehicle Repairs And Maintenance,60904
http://statistics.data.gov.uk/id/local-authority/12UE,Huntingdonshire District Council,200028,AEBI SCHMIDT AEBI SCHMIDT,81170,12/05/2023,60289453,AJ55AVV Belt/Pully,08/06/2023,54.18,270.92,325.1,Street Cleansing,Vehicle Repairs And Maintenance,60904
http://statistics.data.gov.uk/id/local-authority/12UE,Huntingdonshire District Council,202924,AGA Print Ltd T/A Solopress,78536,06/04/2023,3363079,OLSI Stapled Brochures A5,04/05/2023,0,388.87,388.87,One Leisure Support Team,"Advertising, Publicity And Marketing",62005
http://statistics.data.gov.uk/id/local-authority/12UE,Huntingdonshire District Council,203246,Airey Consultancy Services Limited,81653,05/06/2023,J06059,Council Tax Reduction Consultancy,15/06/2023,810,4050,4860,Benefits Management,Professional Services - General,62402
http://statistics.data.gov.uk/id/local-authority/12UE,Huntingdonshire District Council,200034,AIRWAVE SOLUTIONS LTD AIRWAVE SOLUTIONS LTD,78795,14/04/2023,0900000307-056,Airwave Access Contract Extension,20/06/2023,194.43,972.17,1166.6,Cctv Shared Service Hosting,Line Rental,64075
http://statistics.data.gov.uk/id/local-authority/12UE,Huntingdonshire District Council,201059,ALCONBURY & ELLINGTON IDB,80390,03/02/2023,AE01-2023/24,IDB Levy 23/24,19/05/2023,0,86997,86997,Alconbury & Ellington,Levies Paid,69110
http://statistics.data.gov.uk/id/local-authority/12UE,Huntingdonshire District Council,200924,ALCONBURY PARISH COUNCIL,78952,19/04/2023,CIL PAYMENT APR23,CIL Payment Apr23,25/04/2023,0,2044.08,2044.08,Cil Capital Grant Element,Cil Payment To Parishes,66402
http://statistics.data.gov.uk/id/local-authority/12UE,Huntingdonshire District Council,200924,ALCONBURY PARISH COUNCIL,79292,25/04/2023,PARISH PRECEPT APR 23,Parish Precept - April 2023,25/04/2023,0,19500,19500,P C Precept Alconbury,Precepts,66301
http://statistics.data.gov.uk/id/local-authority/12UE,Huntingdonshire District Council,201684,ALCONBURY WESTON PARISH COUNCIL,79292,25/04/2023,PARISH PRECEPT APR 23,Parish Precept - April 2023,25/04/2023,0,16500,16500,P C Precept Alconbury Weston,Precepts,66301
http://statistics.data.gov.uk/id/local-authority/12UE,Huntingdonshire District Council,201197,Alwalton Parish Council,79292,25/04/2023,PARISH PRECEPT APR 23,Parish Precept - April 2023,25/04/2023,0,6000,6000,P C Precept Alwalton,Precepts,66301
http://statistics.data.gov.uk/id/local-authority/12UE,Huntingdonshire District Council,202237,AMICUS TRUST LTD,78367,23/03/2023,REDACTED,REDACTED,11/04/2023,0,397.84,397.84,Homelessness,Homeless Prevention Payments,64403
http://statistics.data.gov.uk/id/local-authority/12UE,Huntingdonshire District Council,202237,AMICUS TRUST LTD,79313,17/04/2023,REDACTED,REDACTED,28/04/2023,0,676.48,676.48,Homelessness,Homeless Prevention Payments,64403
http://statistics.data.gov.uk/id/local-authority/12UE,Huntingdonshire District Council,202237,AMICUS TRUST LTD,81433,17/05/2023,REDACTED,REDACTED,08/06/2023,0,370,370,Homelessness,Homeless Prevention Payments,64403
http://statistics.data.gov.uk/id/local-authority/12UE,Huntingdonshire District Council,201124,ANDY KNOTT CONSTRUCTION,79703,17/04/2023,4873,REDACTED,11/05/2023,0,25093.2,25093.2,Disables Facilities Grants,Mandatory Grants,64601
http://statistics.data.gov.uk/id/local-authority/12UE,Huntingdonshire District Council,201124,ANDY KNOTT CONSTRUCTION,80406,13/04/2023,4871,REDACTED,19/05/2023,0,14128.5,14128.5,Disables Facilities Grants,Mandatory Grants,64601
http://statistics.data.gov.uk/id/local-authority/12UE,Huntingdonshire District Council,201124,ANDY KNOTT CONSTRUCTION,79511,30/03/2023,4859,REDACTED,04/05/2023,0,7590,7590,Disables Facilities Grants,Mandatory Grants,64601
http://statistics.data.gov.uk/id/local-authority/12UE,Huntingdonshire District Council,200050,ANTALIS LTD ANTALIS LTD,80521,17/05/2023,6700055553,Stationery - A4 Paper,08/06/2023,193.8,969,1162.8,Printing,Paper,62803
http://statistics.data.gov.uk/id/local-authority/12UE,Huntingdonshire District Council,201930,ANTHONY COLLINS SOLICITORS LLP,81807,30/04/2023,4144092,Legal Fees,20/06/2023,590,2950,3540,Managing Directors Team,Legal Fees,63200
http://statistics.data.gov.uk/id/local-authority/12UE,Huntingdonshire District Council,200054.01,APSE,80144,05/05/2023,2324/541,membership apr 23-mar 24,25/05/2023,467.4,2337,2804.4,Environmental Policy Mu,Membership And Subscriptions,64800
http://statistics.data.gov.uk/id/local-authority/12UE,Huntingdonshire District Council,202059.01,AQUASERVE MAINTENANCE LTD,77516,20/03/2023,AQMAIN22056,Buckden Stream Clearance Sec 2&3,14/04/2023,3020.81,15104.03,18124.84,Watercourses,Subcontractors,62401
http://statistics.data.gov.uk/id/local-authority/12UE,Huntingdonshire District Council,202059,AQUASERVE MANAGEMENT LTD,82329,14/05/2023,AQMAN22055,Audit Fees,30/06/2023,412.67,2063.37,2476.04,Watercourses,Subcontractors,62401
http://statistics.data.gov.uk/id/local-authority/12UE,Huntingdonshire District Council,202059,AQUASERVE MANAGEMENT LTD,77520,20/03/2023,AQMAN22045,Subcontractors,14/04/2023,338.91,1694.55,2033.46,Watercourses,Subcontractors,62401
http://statistics.data.gov.uk/id/local-authority/12UE,Huntingdonshire District Council,200059,ARLINGCLOSE ARLINGCLOSE,80759,28/02/2023,ACF3202,Treasury Advisory - Outside Contract,01/06/2023,610.47,3052.35,3662.82,Finance,Consultancy Fees,62400
http://statistics.data.gov.uk/id/local-authority/12UE,Huntingdonshire District Council,200060,ARTHUR IBBETT LTD ARTHUR IBBETT LTD,81201,16/02/2023,146182,HCP Chainsaw Repair,06/06/2023,62.17,310.83,373,Hinchingbrooke Park Management,"Maintenance - Equipment, Furniture And Materials",61702
http://statistics.data.gov.uk/id/local-authority/12UE,Huntingdonshire District Council,200060,ARTHUR IBBETT LTD ARTHUR IBBETT LTD,80286,15/05/2023,151748,Maintenance Equipment,08/06/2023,258.21,1291.05,1549.26,Paxton Pits,"Maintenance - Equipment, Furniture And Materials",61702
http://statistics.data.gov.uk/id/local-authority/12UE,Huntingdonshire District Council,200060,ARTHUR IBBETT LTD ARTHUR IBBETT LTD,81200,13/01/2023,144303,HCP Materials,06/06/2023,73.71,368.55,442.26,Hinchingbrooke Park Management,Materials,61709
http://statistics.data.gov.uk/id/local-authority/12UE,Huntingdonshire District Council,200060,ARTHUR IBBETT LTD ARTHUR IBBETT LTD,80286,15/05/2023,151748,Maintenance Equipment,08/06/2023,0.01,0,0.01,Finance,Over/Under VAT Rounding,68350
http://statistics.data.gov.uk/id/local-authority/12UE,Huntingdonshire District Council,200060,ARTHUR IBBETT LTD ARTHUR IBBETT LTD,81201,16/02/2023,146182,HCP Chainsaw Repair,06/06/2023,0.01,0,0.01,Finance,Over/Under VAT Rounding,68350
http://statistics.data.gov.uk/id/local-authority/12UE,Huntingdonshire District Council,200060,ARTHUR IBBETT LTD ARTHUR IBBETT LTD,79491,24/04/2023,150376,Little Pax NR Specialist Equipment,19/05/2023,71,355,426,Paxton Pits,Specialist Equipment For Service Provision,61704
http://statistics.data.gov.uk/id/local-authority/12UE,Huntingdonshire District Council,203253,AS Pump Solutions Ltd,81631,07/06/2023,AS-1054,REDACTED,30/06/2023,0,685,685,Disables Facilities Grants,Mandatory Grants,64601
http://statistics.data.gov.uk/id/local-authority/12UE,Huntingdonshire District Council,201006,ASHCO BUILDING & MAINTENANCE SERVICES LTD,79324,29/03/2023,AC0215889,REDACTED,28/04/2023,0,20880.52,20880.52,Disables Facilities Grants,Mandatory Grants,64601
http://statistics.data.gov.uk/id/local-authority/12UE,Huntingdonshire District Council,201006,ASHCO BUILDING & MAINTENANCE SERVICES LTD,79248,22/02/2023,AC0215826,REDACTED,28/04/2023,0,7736.48,7736.48,Disables Facilities Grants,Mandatory Grants,64601
http://statistics.data.gov.uk/id/local-authority/12UE,Huntingdonshire District Council,200742,ASTREA ACADEMY TRUST - ST IVO ACADEMY ST IVO SCHOOL,78292,29/03/2023,37SI84,OLSI Water Re-Charge Dec22-Mar23,20/04/2023,0,1807.51,1807.51,OLSI - Site & Centre Management,Water And Sewerage,60302
http://statistics.data.gov.uk/id/local-authority/12UE,Huntingdonshire District Council,200072,B & H DIGITAL LTD B & H DIGITAL LTD,77585,20/03/2023,40348,Food & Textile Leaflets,14/04/2023,0,17.5,17.5,Waste Minimisation,Design And Photographic Costs,62800
http://statistics.data.gov.uk/id/local-authority/12UE,Huntingdonshire District Council,200072,B & H DIGITAL LTD B & H DIGITAL LTD,82265,06/06/2023,40930,Print - Paxton Pits Leaflets,30/06/2023,79.2,396,475.2,Paxton Pits,Materials,61709
http://statistics.data.gov.uk/id/local-authority/12UE,Huntingdonshire District Council,200072,B & H DIGITAL LTD B & H DIGITAL LTD,82177,28/05/2021,35438,No Food Waste Bin Labels,26/06/2023,365.65,1828.27,2193.92,Waste Minimisation,Printing,62001
http://statistics.data.gov.uk/id/local-authority/12UE,Huntingdonshire District Council,200072,B & H DIGITAL LTD B & H DIGITAL LTD,77633,15/03/2023,40331,Blue Recycling Bin Stickers,06/04/2023,273,1365,1638,Waste Minimisation,Printing,62001
http://statistics.data.gov.uk/id/local-authority/12UE,Huntingdonshire District Council,200072,B & H DIGITAL LTD B & H DIGITAL LTD,77585,20/03/2023,40348,Food & Textile Leaflets,14/04/2023,0,1055,1055,Waste Minimisation,Printing,62001
http://statistics.data.gov.uk/id/local-authority/12UE,Huntingdonshire District Council,200072,B & H DIGITAL LTD B & H DIGITAL LTD,81150,28/02/2023,40230,Print Council Agenda,08/06/2023,0,313.77,313.77,Committee Management,Printing (Internal),69301
http://statistics.data.gov.uk/id/local-authority/12UE,Huntingdonshire District Council,200072,B & H DIGITAL LTD B & H DIGITAL LTD,81153,30/11/2022,39759,Print DMC Agenda,08/06/2023,0,251.35,251.35,Committee Management,Printing (Internal),69301
http://statistics.data.gov.uk/id/local-authority/12UE,Huntingdonshire District Council,200072,B & H DIGITAL LTD B & H DIGITAL LTD,82379,25/05/2023,40823,Paxton Pits Flags,30/06/2023,60,300,360,Paxton Pits,Signs,60299
http://statistics.data.gov.uk/id/local-authority/12UE,Huntingdonshire District Council,200075,B S GRAVES ELECTRICAL LTD B S GRAVES ELECTRICAL LTD,80250,15/05/2023,31159,MHP Annual Meter Checks,08/06/2023,135,675,810,Mobile Home Park,Electricity,60303
http://statistics.data.gov.uk/id/local-authority/12UE,Huntingdonshire District Council,200075,B S GRAVES ELECTRICAL LTD B S GRAVES ELECTRICAL LTD,80693,23/05/2023,31170,H'don MSCP Cyclical/Planned Maintenance,15/06/2023,377.92,1889.62,2267.54,MSCP (HUN),Maintenance - Building,60201
http://statistics.data.gov.uk/id/local-authority/12UE,Huntingdonshire District Council,200075,B S GRAVES ELECTRICAL LTD B S GRAVES ELECTRICAL LTD,80745,01/02/2023,31054,MSCP Cyclical/Planned Maintenance,25/05/2023,95,475,570,MSCP (HUN),Maintenance - Building,60201
http://statistics.data.gov.uk/id/local-authority/12UE,Huntingdonshire District Council,200075,B S GRAVES ELECTRICAL LTD B S GRAVES ELECTRICAL LTD,80693,23/05/2023,31170,H'don MSCP Cyclical/Planned Maintenance,15/06/2023,0.01,0,0.01,Finance,Over/Under VAT Rounding,68350
http://statistics.data.gov.uk/id/local-authority/12UE,Huntingdonshire District Council,201029,BACPR EDUCATION,80526,17/05/2023,INV10151,REDACTED,08/06/2023,0,675,675,HR Services,Staff Development And Training,60115
http://statistics.data.gov.uk/id/local-authority/12UE,Huntingdonshire District Council,200934,BAGNALLS PAINTING & DECORATING,81156,24/02/2023,KLI-101499,PFH - External Wall Repainting,08/06/2023,103.4,517,620.4,Pathfinder House,Maintenance - Building,60201
http://statistics.data.gov.uk/id/local-authority/12UE,Huntingdonshire District Council,201155,BALFOUR BEATTY LIVING PLACES LTD,77448,14/03/2023,CSUK OU/INV/138933,Cambs Cycle Rack CCTV,06/04/2023,365.66,1828.3,2193.96,Cctv Shared Service - City,Installation Fees,64073
http://statistics.data.gov.uk/id/local-authority/12UE,Huntingdonshire District Council,201155,BALFOUR BEATTY LIVING PLACES LTD,79994,09/05/2023,CSUK OU/INV/141356,RCCTV Application - Greenlands,01/06/2023,51.53,257.63,309.16,Cctv Shared Service - City,Installation Fees,64073
http://statistics.data.gov.uk/id/local-authority/12UE,Huntingdonshire District Council,201155,BALFOUR BEATTY LIVING PLACES LTD,79092,01/03/2023,CSUK OU/INV/138265,A141 LayBys - Column Install,20/04/2023,71.18,355.89,427.07,Cctv Shared Service - HDC,Installation Fees,64073
http://statistics.data.gov.uk/id/local-authority/12UE,Huntingdonshire District Council,201155,BALFOUR BEATTY LIVING PLACES LTD,77447,14/03/2023,CSUK OU/INV/138934,St Neots CP CCTV,06/04/2023,67.19,335.94,403.13,Cctv Shared Service - HDC,Installation Fees,64073
http://statistics.data.gov.uk/id/local-authority/12UE,Huntingdonshire District Council,201155,BALFOUR BEATTY LIVING PLACES LTD,80001,05/05/2023,CSUK OU/INV/141311,REDACTED,25/05/2023,91.81,459.04,550.85,Cctv Shared Service Hosting,Installation Fees,64073
http://statistics.data.gov.uk/id/local-authority/12UE,Huntingdonshire District Council,200079,BANDVULC TRUCK TYRES BANDVULC TRUCK TYRES,80968,30/05/2023,186389,Tyres P:5 W:0,22/06/2023,231.79,1158.95,1390.74,Domestic Waste Collection,Tyres,62926
http://statistics.data.gov.uk/id/local-authority/12UE,Huntingdonshire District Council,200079,BANDVULC TRUCK TYRES BANDVULC TRUCK TYRES,78154,30/03/2023,184412,Tyres P:3 W:0,04/05/2023,363.91,1819.54,2183.45,Domestic Waste Collection,Tyres,62926
http://statistics.data.gov.uk/id/local-authority/12UE,Huntingdonshire District Council,200079,BANDVULC TRUCK TYRES BANDVULC TRUCK TYRES,78154,30/03/2023,184412,Tyres P:3 W:0,04/05/2023,22.35,111.75,134.1,Domestic Waste Collection,Tyres,62926
http://statistics.data.gov.uk/id/local-authority/12UE,Huntingdonshire District Council,200079,BANDVULC TRUCK TYRES BANDVULC TRUCK TYRES,80968,30/05/2023,186389,Tyres P:5 W:0,22/06/2023,260.78,1303.88,1564.66,Domestic Waste Collection,Tyres,62926
http://statistics.data.gov.uk/id/local-authority/12UE,Huntingdonshire District Council,200079,BANDVULC TRUCK TYRES BANDVULC TRUCK TYRES,80968,30/05/2023,186389,Tyres P:5 W:0,22/06/2023,235.88,1179.4,1415.28,Green Waste Collection,Tyres,62926
http://statistics.data.gov.uk/id/local-authority/12UE,Huntingdonshire District Council,200079,BANDVULC TRUCK TYRES BANDVULC TRUCK TYRES,79561,27/04/2023,185153,Tyres P:4 W:0,25/05/2023,67.45,337.25,404.7,Green Waste Collection,Tyres,62926
http://statistics.data.gov.uk/id/local-authority/12UE,Huntingdonshire District Council,200079,BANDVULC TRUCK TYRES BANDVULC TRUCK TYRES,80968,30/05/2023,186389,Tyres P:5 W:0,22/06/2023,51.2,256,307.2,Green Waste Collection,Tyres,62926
http://statistics.data.gov.uk/id/local-authority/12UE,Huntingdonshire District Council,200079,BANDVULC TRUCK TYRES BANDVULC TRUCK TYRES,79561,27/04/2023,185153,Tyres P:4 W:0,25/05/2023,49.18,245.88,295.06,Green Waste Collection,Tyres,62926
http://statistics.data.gov.uk/id/local-authority/12UE,Huntingdonshire District Council,200079,BANDVULC TRUCK TYRES BANDVULC TRUCK TYRES,79561,27/04/2023,185153,Tyres P:4 W:0,25/05/2023,8.93,44.62,53.55,Green Waste Collection,Tyres,62926
http://statistics.data.gov.uk/id/local-authority/12UE,Huntingdonshire District Council,200079,BANDVULC TRUCK TYRES BANDVULC TRUCK TYRES,80968,30/05/2023,186389,Tyres P:5 W:0,22/06/2023,304.35,1521.75,1826.1,Recycling Collections,Tyres,62926
http://statistics.data.gov.uk/id/local-authority/12UE,Huntingdonshire District Council,200079,BANDVULC TRUCK TYRES BANDVULC TRUCK TYRES,80968,30/05/2023,186389,Tyres P:5 W:0,22/06/2023,51.2,256,307.2,Recycling Collections,Tyres,62926
http://statistics.data.gov.uk/id/local-authority/12UE,Huntingdonshire District Council,200079,BANDVULC TRUCK TYRES BANDVULC TRUCK TYRES,78154,30/03/2023,184412,Tyres P:3 W:0,04/05/2023,193.53,967.62,1161.15,Recycling Collections,Tyres,62926
http://statistics.data.gov.uk/id/local-authority/12UE,Huntingdonshire District Council,200079,BANDVULC TRUCK TYRES BANDVULC TRUCK TYRES,80968,30/05/2023,186389,Tyres P:5 W:0,22/06/2023,55.2,276,331.2,Trade Refuse,Tyres,62926
http://statistics.data.gov.uk/id/local-authority/12UE,Huntingdonshire District Council,200079,BANDVULC TRUCK TYRES BANDVULC TRUCK TYRES,78154,30/03/2023,184412,Tyres P:3 W:0,04/05/2023,195.7,978.52,1174.22,Weekly Bags,Tyres,62926
http://statistics.data.gov.uk/id/local-authority/12UE,Huntingdonshire District Council,202633,REDACTED,80416,02/05/2023,17,HCP Goods For Sale,25/05/2023,0,280.8,280.8,Hinchingbrook Park Gift Shop,Goods For Resale,61400
http://statistics.data.gov.uk/id/local-authority/12UE,Huntingdonshire District Council,201198,Barham & Woolley Parish Council,79292,25/04/2023,PARISH PRECEPT APR 23,Parish Precept - April 2023,25/04/2023,0,1000,1000,P C Precept Barham & Wooley,Precepts,66301
http://statistics.data.gov.uk/id/local-authority/12UE,Huntingdonshire District Council,200092,BEEBYS LIMITED BEEBYS LIMITED,80399,30/04/2023,INV-71135,Window Cleaning,25/05/2023,50.92,254.62,305.54,Pathfinder House,Cleaning Contract,60502
http://statistics.data.gov.uk/id/local-authority/12UE,Huntingdonshire District Council,200096,BEN BURGESS & COMPANY BEN BURGESS & COMPANY,78760,28/03/2023,957521,Cyclical/Planned Maintenance,17/04/2023,8794,43970,52764,Leisure Cents - Future Improve,Maintenance - Building,60201
http://statistics.data.gov.uk/id/local-authority/12UE,Huntingdonshire District Council,200096,BEN BURGESS & COMPANY BEN BURGESS & COMPANY,78760,28/03/2023,957521,Cyclical/Planned Maintenance,17/04/2023,0,-9000,-9000,Leisure Cents - Future Improve,Maintenance - Building,60201
http://statistics.data.gov.uk/id/local-authority/12UE,Huntingdonshire District Council,200096,BEN BURGESS & COMPANY BEN BURGESS & COMPANY,78646,10/02/2023,956502,Vehicle Maint - Annual Service Feb23,14/04/2023,0.01,0,0.01,Finance,Over/Under VAT Rounding,68350
http://statistics.data.gov.uk/id/local-authority/12UE,Huntingdonshire District Council,200096,BEN BURGESS & COMPANY BEN BURGESS & COMPANY,80208,27/02/2023,956853,OLSTI ENGINE FUEL,15/05/2023,-0.02,0,-0.02,Finance,Over/Under VAT Rounding,68350
http://statistics.data.gov.uk/id/local-authority/12UE,Huntingdonshire District Council,200096,BEN BURGESS & COMPANY BEN BURGESS & COMPANY,82399,10/06/2023,959294,Vehicle Maintenance,30/06/2023,0.01,0,0.01,Finance,Over/Under VAT Rounding,68350
http://statistics.data.gov.uk/id/local-authority/12UE,Huntingdonshire District Council,200096,BEN BURGESS & COMPANY BEN BURGESS & COMPANY,78760,28/03/2023,957521,Cyclical/Planned Maintenance,17/04/2023,0,-1800,-1800,VAT,VAT Output Tax,20170
http://statistics.data.gov.uk/id/local-authority/12UE,Huntingdonshire District Council,200096,BEN BURGESS & COMPANY BEN BURGESS & COMPANY,78646,10/02/2023,956502,Vehicle Maint - Annual Service Feb23,14/04/2023,624.01,3120.07,3744.08,OLSIO - Site & Centre Management,Vehicle Maintenance - External,60921
http://statistics.data.gov.uk/id/local-authority/12UE,Huntingdonshire District Council,200096,BEN BURGESS & COMPANY BEN BURGESS & COMPANY,80208,27/02/2023,956853,OLSTI ENGINE FUEL,15/05/2023,221.38,1106.91,1328.29,OLSIO - Site & Centre Management,Vehicle Maintenance - External,60921
http://statistics.data.gov.uk/id/local-authority/12UE,Huntingdonshire District Council,200096,BEN BURGESS & COMPANY BEN BURGESS & COMPANY,82399,10/06/2023,959294,Vehicle Maintenance,30/06/2023,111.88,559.41,671.29,OLSIO - Site & Centre Management,Vehicle Maintenance - External,60921
http://statistics.data.gov.uk/id/local-authority/12UE,Huntingdonshire District Council,203070,Bevan Brittan LLP,81580,31/01/2023,10216371,Legal Fees LR Oak Tree Centre,15/06/2023,58.5,292.5,351,Oak Tree Health Centre,Legal Fees,63200
http://statistics.data.gov.uk/id/local-authority/12UE,Huntingdonshire District Council,200101,BID HUNTINGDON BID HUNTINGDON,79766,24/04/2023,INV-1990,BID Levy,04/05/2023,4071.41,20357.05,24428.46,Bid Revenue Account,Payment Of Amount Due,23003
http://statistics.data.gov.uk/id/local-authority/12UE,Huntingdonshire District Council,200101,BID HUNTINGDON BID HUNTINGDON,81904,13/06/2023,INV-2000,BID Levy,22/06/2023,3117.97,15589.84,18707.81,Bid Revenue Account,Payment Of Amount Due,23003
http://statistics.data.gov.uk/id/local-authority/12UE,Huntingdonshire District Council,200101,BID HUNTINGDON BID HUNTINGDON,80013,08/03/2023,INV-1981,BID Levy,11/05/2023,826.43,4132.14,4958.57,Bid Revenue Account,Payment Of Amount Due,23003
http://statistics.data.gov.uk/id/local-authority/12UE,Huntingdonshire District Council,200101,BID HUNTINGDON BID HUNTINGDON,80007,03/05/2023,INV-1993,BID Levy,11/05/2023,581.8,2909.01,3490.81,Bid Revenue Account,Payment Of Amount Due,23003
http://statistics.data.gov.uk/id/local-authority/12UE,Huntingdonshire District Council,200103,BIGPRINTING BIGPRINTING,78166,31/03/2023,1715040,OLSI Public Advertising,04/05/2023,137,685,822,One Leisure Support Team,"Advertising, Publicity And Marketing",62005
http://statistics.data.gov.uk/id/local-authority/12UE,Huntingdonshire District Council,200103,BIGPRINTING BIGPRINTING,78168,31/03/2023,1715039,OLSI Advertising,04/05/2023,59,295,354,One Leisure Support Team,"Advertising, Publicity And Marketing",62005
http://statistics.data.gov.uk/id/local-authority/12UE,Huntingdonshire District Council,202004,BLOOM PROCUREMENT SERVICES LTD,81224,31/05/2023,SIN043314,Consultancy Fees,08/06/2023,974.4,4872,5846.4,Bridge Place Car Park Const,Consultancy Fees,62400
http://statistics.data.gov.uk/id/local-authority/12UE,Huntingdonshire District Council,202004,BLOOM PROCUREMENT SERVICES LTD,82246,26/06/2023,SIN043927,Consultancy Fees,30/06/2023,800,4000,4800,Bridge Place Car Park Const,Consultancy Fees,62400
http://statistics.data.gov.uk/id/local-authority/12UE,Huntingdonshire District Council,202004,BLOOM PROCUREMENT SERVICES LTD,79276,24/04/2023,SIN042446,Consultancy Fees,04/05/2023,1474.4,7372,8846.4,St Neots Riverside Park Path/Cycle Imps,Consultancy Fees,62400
http://statistics.data.gov.uk/id/local-authority/12UE,Huntingdonshire District Council,201072,BLUNTISHAM IDB,80383,03/03/2023,BLUNT/60 03.02.23,IDB Levy 03.02.23,19/05/2023,0,13889,13889,Bluntisham,Levies Paid,69110
http://statistics.data.gov.uk/id/local-authority/12UE,Huntingdonshire District Council,201199,Bluntisham Parish Council,78954,19/04/2023,CIL PAYMENT APR23,CIL Payment Apr23,25/04/2023,0,6217.56,6217.56,Cil Capital Grant Element,Cil Payment To Parishes,66402
http://statistics.data.gov.uk/id/local-authority/12UE,Huntingdonshire District Council,201199,Bluntisham Parish Council,79292,25/04/2023,PARISH PRECEPT APR 23,Parish Precept - April 2023,25/04/2023,0,49809,49809,P C Precept Bluntisham,Precepts,66301
http://statistics.data.gov.uk/id/local-authority/12UE,Huntingdonshire District Council,203100,Booker Wholesale Cambridge,80134,10/05/2023,3543781,OLSTI SWEETS,11/05/2023,243.61,1218.04,1461.65,OLSI - Burgess Bar,Bar Provisions,61905
http://statistics.data.gov.uk/id/local-authority/12UE,Huntingdonshire District Council,203100,Booker Wholesale Cambridge,78305,04/04/2023,3542629,OL CATERING,11/04/2023,275.65,1378.25,1653.9,OLSI - Burgess Bar,Bar Provisions,61905
http://statistics.data.gov.uk/id/local-authority/12UE,Huntingdonshire District Council,203100,Booker Wholesale Cambridge,78376,30/03/2023,434819,BH Hospitality/Bar/Cleaning/Materials,14/04/2023,128.71,643.56,772.27,OLSI - Burgess Bar,Bar Provisions,61905
http://statistics.data.gov.uk/id/local-authority/12UE,Huntingdonshire District Council,203100,Booker Wholesale Cambridge,81009,23/05/2023,3544284,OLSI Catering/Vending/Bar Provisions,01/06/2023,104.71,523.57,628.28,OLSI - Burgess Bar,Bar Provisions,61905
http://statistics.data.gov.uk/id/local-authority/12UE,Huntingdonshire District Council,203100,Booker Wholesale Cambridge,78333,17/03/2023,162268,BH Catering & Vending/Bar/Materials,11/04/2023,52.14,260.7,312.84,OLSI - Burgess Bar,Bar Provisions,61905
http://statistics.data.gov.uk/id/local-authority/12UE,Huntingdonshire District Council,203100,Booker Wholesale Cambridge,80134,10/05/2023,3543781,OLSTI SWEETS,11/05/2023,0,124,124,OLSI - Burgess Bar,Catering Supplies,61900
http://statistics.data.gov.uk/id/local-authority/12UE,Huntingdonshire District Council,203100,Booker Wholesale Cambridge,78305,04/04/2023,3542629,OL CATERING,11/04/2023,1.8,8.99,10.79,OLSI - Burgess Bar,Catering Supplies,61900
http://statistics.data.gov.uk/id/local-authority/12UE,Huntingdonshire District Council,203100,Booker Wholesale Cambridge,81009,23/05/2023,3544284,OLSI Catering/Vending/Bar Provisions,01/06/2023,0,24.76,24.76,OLSI - Burgess Bar,Catering Supplies,61900
http://statistics.data.gov.uk/id/local-authority/12UE,Huntingdonshire District Council,203100,Booker Wholesale Cambridge,78333,17/03/2023,162268,BH Catering & Vending/Bar/Materials,11/04/2023,0,33.9,33.9,OLSI - Burgess Bar,Catering Supplies,61900
http://statistics.data.gov.uk/id/local-authority/12UE,Huntingdonshire District Council,203100,Booker Wholesale Cambridge,78376,30/03/2023,434819,BH Hospitality/Bar/Cleaning/Materials,14/04/2023,3.06,15.29,18.35,OLSI - Burgess Hall,Cleaning Materials,61300
http://statistics.data.gov.uk/id/local-authority/12UE,Huntingdonshire District Council,203100,Booker Wholesale Cambridge,80134,10/05/2023,3543781,OLSTI SWEETS,11/05/2023,17.13,85.65,102.78,OLSI - Burgess Bar,Confectionery,61906
http://statistics.data.gov.uk/id/local-authority/12UE,Huntingdonshire District Council,203100,Booker Wholesale Cambridge,80134,10/05/2023,3543781,OLSTI SWEETS,11/05/2023,0,35.48,35.48,Managing Directors Team,Hospitality,61903
http://statistics.data.gov.uk/id/local-authority/12UE,Huntingdonshire District Council,203100,Booker Wholesale Cambridge,78376,30/03/2023,434819,BH Hospitality/Bar/Cleaning/Materials,14/04/2023,0,35.48,35.48,Managing Directors Team,Hospitality,61903
http://statistics.data.gov.uk/id/local-authority/12UE,Huntingdonshire District Council,203100,Booker Wholesale Cambridge,78743,03/04/2023,3542558,OLSI Hospitality,17/04/2023,0,303.86,303.86,Managing Directors Team,Hospitality,61903
http://statistics.data.gov.uk/id/local-authority/12UE,Huntingdonshire District Council,203100,Booker Wholesale Cambridge,78376,30/03/2023,434819,BH Hospitality/Bar/Cleaning/Materials,14/04/2023,22.79,113.97,136.76,OLSI - Burgess Bar,Materials,61709
http://statistics.data.gov.uk/id/local-authority/12UE,Huntingdonshire District Council,203100,Booker Wholesale Cambridge,78333,17/03/2023,162268,BH Catering & Vending/Bar/Materials,11/04/2023,22.79,113.97,136.76,OLSI - Burgess Bar,Materials,61709
http://statistics.data.gov.uk/id/local-authority/12UE,Huntingdonshire District Council,201138,BORNEY UK LTD,79886,05/05/2023,57297,ALM Poster,25/05/2023,614,3070,3684,Grounds Maintenance,"Advertising, Publicity And Marketing",62005
http://statistics.data.gov.uk/id/local-authority/12UE,Huntingdonshire District Council,201138,BORNEY UK LTD,79708,02/05/2023,57253,Advertising,25/05/2023,487.3,2436.5,2923.8,Markets Management,"Advertising, Publicity And Marketing",62005
http://statistics.data.gov.uk/id/local-authority/12UE,Huntingdonshire District Council,201138,BORNEY UK LTD,78642,11/04/2023,57091,Trinity Place CP Signage,04/05/2023,360,1800,2160,Car Park Management,"Maintenance - Equipment, Furniture And Materials",61702
http://statistics.data.gov.uk/id/local-authority/12UE,Huntingdonshire District Council,201138,BORNEY UK LTD,80417,21/04/2023,57215,x6 Huntingdonshire Day Flag,19/05/2023,69.89,349.45,419.34,Facilities,Materials,61709
http://statistics.data.gov.uk/id/local-authority/12UE,Huntingdonshire District Council,203177,Boyd Sport & Play Ltd T/A Sportsequip.co.uk,77667,23/03/2023,36701,OLSIO Cyclical/Planned Maintenance,15/05/2023,381,1905,2286,OLH - Site & Centre Management,Maintenance - Building,60201
http://statistics.data.gov.uk/id/local-authority/12UE,Huntingdonshire District Council,201490,BPHA LTD,81315,06/06/2023,REDACTED,REDACTED,08/06/2023,0,250,250,Homelessness,Homeless Prevention Payments,64403
http://statistics.data.gov.uk/id/local-authority/12UE,Huntingdonshire District Council,201490,BPHA LTD,81784,14/06/2023,REDACTED,REDACTED,20/06/2023,0,357.72,357.72,Homelessness,Homeless Prevention Payments,64403
http://statistics.data.gov.uk/id/local-authority/12UE,Huntingdonshire District Council,201490,BPHA LTD,78269,29/03/2023,REDACTED,REDACTED,11/04/2023,0,4090,4090,Homelessness,Homeless Prevention Payments,64403
http://statistics.data.gov.uk/id/local-authority/12UE,Huntingdonshire District Council,200117,BRAMBLE HUB LTD BRAMBLE HUB LTD,81118,26/05/2023,INV-13323,Consultancy Fees OL Booking System,15/06/2023,333.62,1668.11,2001.73,One Leisure Management Team,Consultancy Fees,62400
http://statistics.data.gov.uk/id/local-authority/12UE,Huntingdonshire District Council,200117,BRAMBLE HUB LTD BRAMBLE HUB LTD,82380,30/05/2023,INV-13330,IT Software - May-Dec23,30/06/2023,3178.67,15893.33,19072,HDC Business Case ,Ict Software,64071
http://statistics.data.gov.uk/id/local-authority/12UE,Huntingdonshire District Council,200117,BRAMBLE HUB LTD BRAMBLE HUB LTD,79311,21/04/2023,INV-13226,Training Shed Leisure Bookings MRM,19/05/2023,664.82,3324.12,3988.94,OLSIO - Training Shed,Licences,60410
http://statistics.data.gov.uk/id/local-authority/12UE,Huntingdonshire District Council,201200,Brampton Parish Council,78955,19/04/2023,CIL PAYMENT APR23,CIL Payment Apr23,25/04/2023,0,7115.51,7115.51,Cil Capital Grant Element,Cil Payment To Parishes,66402
http://statistics.data.gov.uk/id/local-authority/12UE,Huntingdonshire District Council,201200,Brampton Parish Council,79292,25/04/2023,PARISH PRECEPT APR 23,Parish Precept - April 2023,25/04/2023,0,157353,157353,P C Precept Brampton,Precepts,66301
http://statistics.data.gov.uk/id/local-authority/12UE,Huntingdonshire District Council,202936,Bridge Planning Ltd,78512,30/03/2023,INV-050,Planning Consultant 27-30.03.23,14/04/2023,333,1665,1998,Development Management,Agency Staff,60011
http://statistics.data.gov.uk/id/local-authority/12UE,Huntingdonshire District Council,201202,Brington & Molesworth Parish Council,79292,25/04/2023,PARISH PRECEPT APR 23,Parish Precept - April 2023,25/04/2023,0,12005,12005,P C Precept Brington & Moleswor,Precepts,66301
http://statistics.data.gov.uk/id/local-authority/12UE,Huntingdonshire District Council,203001,British Association Of Landscape Industries,78684,20/02/2023,INV-48255,Associate Contractor Membership Fees,14/04/2023,68,340,408,Grounds Maintenance,Membership And Subscriptions,64800
http://statistics.data.gov.uk/id/local-authority/12UE,Huntingdonshire District Council,200126,BRITISH GAS BUSINESS BRITISH GAS BUSINESS,80316,03/05/2023,878409615,EFH Apr23,19/05/2023,83.54,417.69,501.23,Eastfield House,Gas,60305
http://statistics.data.gov.uk/id/local-authority/12UE,Huntingdonshire District Council,200126,BRITISH GAS BUSINESS BRITISH GAS BUSINESS,78186,04/04/2023,804800890,OLH Dryside Mar23,14/04/2023,136.76,683.82,820.58,OLH - Site & Centre Management,Gas,60305
http://statistics.data.gov.uk/id/local-authority/12UE,Huntingdonshire District Council,200126,BRITISH GAS BUSINESS BRITISH GAS BUSINESS,79676,03/05/2023,878409608,OLH Dry Apr23,11/05/2023,114.64,573.22,687.86,OLH - Site & Centre Management,Gas,60305
http://statistics.data.gov.uk/id/local-authority/12UE,Huntingdonshire District Council,200126,BRITISH GAS BUSINESS BRITISH GAS BUSINESS,81142,05/06/2023,806425048,OLH Dryside May23,08/06/2023,102,510.02,612.02,OLH - Site & Centre Management,Gas,60305
http://statistics.data.gov.uk/id/local-authority/12UE,Huntingdonshire District Council,200126,BRITISH GAS BUSINESS BRITISH GAS BUSINESS,78185,04/04/2023,804800892,OLH Wetside Mar23,14/04/2023,378.75,1893.73,2272.48,OLH - Swimming,Gas,60305
http://statistics.data.gov.uk/id/local-authority/12UE,Huntingdonshire District Council,200126,BRITISH GAS BUSINESS BRITISH GAS BUSINESS,79675,03/05/2023,878409610,OLH Wet Apr23,11/05/2023,333.11,1665.53,1998.64,OLH - Swimming,Gas,60305
http://statistics.data.gov.uk/id/local-authority/12UE,Huntingdonshire District Council,200126,BRITISH GAS BUSINESS BRITISH GAS BUSINESS,81138,05/06/2023,806425050,OLH Wetside May23,08/06/2023,291.88,1459.41,1751.29,OLH - Swimming,Gas,60305
http://statistics.data.gov.uk/id/local-authority/12UE,Huntingdonshire District Council,200126,BRITISH GAS BUSINESS BRITISH GAS BUSINESS,78183,04/04/2023,804800893,OLSI Mar23,14/04/2023,1313.05,6565.25,7878.3,OLSI - Site & Centre Management,Gas,60305
http://statistics.data.gov.uk/id/local-authority/12UE,Huntingdonshire District Council,200126,BRITISH GAS BUSINESS BRITISH GAS BUSINESS,79674,03/05/2023,878409611,OLSI Apr23,11/05/2023,1097.93,5489.63,6587.56,OLSI - Site & Centre Management,Gas,60305
http://statistics.data.gov.uk/id/local-authority/12UE,Huntingdonshire District Council,200126,BRITISH GAS BUSINESS BRITISH GAS BUSINESS,81141,05/06/2023,806425051,OLSI May23,08/06/2023,918.38,4591.91,5510.29,OLSI - Site & Centre Management,Gas,60305
http://statistics.data.gov.uk/id/local-authority/12UE,Huntingdonshire District Council,200126,BRITISH GAS BUSINESS BRITISH GAS BUSINESS,78187,04/04/2023,804800896,OLSIO Mar23,14/04/2023,108.35,541.73,650.08,OLSIO - Site & Centre Management,Gas,60305
http://statistics.data.gov.uk/id/local-authority/12UE,Huntingdonshire District Council,200126,BRITISH GAS BUSINESS BRITISH GAS BUSINESS,79677,03/05/2023,878409614,OLSIO Apr23,11/05/2023,93.22,466.11,559.33,OLSIO - Site & Centre Management,Gas,60305
http://statistics.data.gov.uk/id/local-authority/12UE,Huntingdonshire District Council,200126,BRITISH GAS BUSINESS BRITISH GAS BUSINESS,81143,05/06/2023,806425054,OLSIO May23,08/06/2023,66.84,334.19,401.03,OLSIO - Site & Centre Management,Gas,60305
http://statistics.data.gov.uk/id/local-authority/12UE,Huntingdonshire District Council,200126,BRITISH GAS BUSINESS BRITISH GAS BUSINESS,79673,03/05/2023,878409612,OLSN Dry Apr23,11/05/2023,61.27,306.36,367.63,OLSN - Site & Centre Management,Gas,60305
http://statistics.data.gov.uk/id/local-authority/12UE,Huntingdonshire District Council,200126,BRITISH GAS BUSINESS BRITISH GAS BUSINESS,81140,05/06/2023,806425052,OLSN Dryside May23,08/06/2023,55.31,276.53,331.84,OLSN - Site & Centre Management,Gas,60305
http://statistics.data.gov.uk/id/local-authority/12UE,Huntingdonshire District Council,200126,BRITISH GAS BUSINESS BRITISH GAS BUSINESS,78181,04/04/2023,804800891,OLSN Wetside Mar23,14/04/2023,806.14,4030.71,4836.85,OLSN - Swimming,Gas,60305
http://statistics.data.gov.uk/id/local-authority/12UE,Huntingdonshire District Council,200126,BRITISH GAS BUSINESS BRITISH GAS BUSINESS,79672,03/05/2023,878409609,OLSN Apr23,11/05/2023,723.85,3619.27,4343.12,OLSN - Swimming,Gas,60305
http://statistics.data.gov.uk/id/local-authority/12UE,Huntingdonshire District Council,200126,BRITISH GAS BUSINESS BRITISH GAS BUSINESS,81139,05/06/2023,806415049,OLSN Wetside May23,08/06/2023,637.74,3188.71,3826.45,OLSN - Swimming,Gas,60305
http://statistics.data.gov.uk/id/local-authority/12UE,Huntingdonshire District Council,200126,BRITISH GAS BUSINESS BRITISH GAS BUSINESS,80315,03/05/2023,878409613,PFH Apr23,19/05/2023,167.22,836.09,1003.31,Pathfinder House,Gas,60305
http://statistics.data.gov.uk/id/local-authority/12UE,Huntingdonshire District Council,200126,BRITISH GAS BUSINESS BRITISH GAS BUSINESS,82101,05/06/2023,806425053,PFH May23,26/06/2023,14.03,280.66,294.69,Pathfinder House,Gas,60305
http://statistics.data.gov.uk/id/local-authority/12UE,Huntingdonshire District Council,200126,BRITISH GAS BUSINESS BRITISH GAS BUSINESS,79674,03/05/2023,878409611,OLSI Apr23,11/05/2023,-0.01,0,-0.01,Finance,Over/Under VAT Rounding,68350
http://statistics.data.gov.uk/id/local-authority/12UE,Huntingdonshire District Council,200126,BRITISH GAS BUSINESS BRITISH GAS BUSINESS,79675,03/05/2023,878409610,OLH Wet Apr23,11/05/2023,-0.01,0,-0.01,Finance,Over/Under VAT Rounding,68350
http://statistics.data.gov.uk/id/local-authority/12UE,Huntingdonshire District Council,200126,BRITISH GAS BUSINESS BRITISH GAS BUSINESS,80315,03/05/2023,878409613,PFH Apr23,19/05/2023,-0.01,0,-0.01,Finance,Over/Under VAT Rounding,68350
http://statistics.data.gov.uk/id/local-authority/12UE,Huntingdonshire District Council,200126,BRITISH GAS BUSINESS BRITISH GAS BUSINESS,80316,03/05/2023,878409615,EFH Apr23,19/05/2023,-0.01,0,-0.01,Finance,Over/Under VAT Rounding,68350
http://statistics.data.gov.uk/id/local-authority/12UE,Huntingdonshire District Council,200126,BRITISH GAS BUSINESS BRITISH GAS BUSINESS,81143,05/06/2023,806425054,OLSIO May23,08/06/2023,-0.01,0,-0.01,Finance,Over/Under VAT Rounding,68350
http://statistics.data.gov.uk/id/local-authority/12UE,Huntingdonshire District Council,200126,BRITISH GAS BUSINESS BRITISH GAS BUSINESS,81140,05/06/2023,806425052,OLSN Dryside May23,08/06/2023,-0.01,0,-0.01,Finance,Over/Under VAT Rounding,68350
http://statistics.data.gov.uk/id/local-authority/12UE,Huntingdonshire District Council,202932,British Sugar Topsoil,81676,11/06/2023,51305182,Bagged Sports 10 Top Soil,30/06/2023,250.04,1250.2,1500.24,Grounds Maintenance,Materials,61709
http://statistics.data.gov.uk/id/local-authority/12UE,Huntingdonshire District Council,200129,BRITISH TELECOMMUNICATIONS PLC BRITISH TELECOMMUNICATIONS PLC,78199,03/04/2023,20035779,cctv 0104-310324,14/04/2023,379.2,1896,2275.2,Cctv Shared Service Hosting,Broadband Line Rental,64080
http://statistics.data.gov.uk/id/local-authority/12UE,Huntingdonshire District Council,200129,BRITISH TELECOMMUNICATIONS PLC BRITISH TELECOMMUNICATIONS PLC,78198,03/04/2023,200035829,cctv annual charge,14/04/2023,240.13,1200.66,1440.79,Cctv Shared Service Hosting,Line Rental,64075
http://statistics.data.gov.uk/id/local-authority/12UE,Huntingdonshire District Council,200129,BRITISH TELECOMMUNICATIONS PLC BRITISH TELECOMMUNICATIONS PLC,78189,10/03/2023,Q005 96,One Bill Invoice,06/04/2023,96.09,480.45,576.54,Cctv Shared Service Hosting,Line Rental,64075
http://statistics.data.gov.uk/id/local-authority/12UE,Huntingdonshire District Council,200129,BRITISH TELECOMMUNICATIONS PLC BRITISH TELECOMMUNICATIONS PLC,78189,10/03/2023,Q005 96,One Bill Invoice,06/04/2023,0,70,70,Cctv Shared Service Hosting,Line Rental,64075
http://statistics.data.gov.uk/id/local-authority/12UE,Huntingdonshire District Council,200129,BRITISH TELECOMMUNICATIONS PLC BRITISH TELECOMMUNICATIONS PLC,80762,24/05/2023,A238342,Surveys,01/06/2023,172.1,860.51,1032.61,Hinchingbrooke Country Park,Surveys,64020
http://statistics.data.gov.uk/id/local-authority/12UE,Huntingdonshire District Council,201203,Broughton Parish Council,79292,25/04/2023,PARISH PRECEPT APR 23,Parish Precept - April 2023,25/04/2023,0,5100,5100,P C Precept Broughton,Precepts,66301
http://statistics.data.gov.uk/id/local-authority/12UE,Huntingdonshire District Council,202217,BROWN & CO BARFORDS,78565,12/04/2023,ARJ007627,BARFORD CLIENT   P,27/04/2023,-571.8,-2859.02,-3430.82,Car Park Management,3C Parking Card Income,51508
http://statistics.data.gov.uk/id/local-authority/12UE,Huntingdonshire District Council,202217,BROWN & CO BARFORDS,78565,12/04/2023,ARJ007627,BARFORD CLIENT   P,27/04/2023,-644.55,-3222.77,-3867.32,Car Park Management,3C Parking Card Income,51508
http://statistics.data.gov.uk/id/local-authority/12UE,Huntingdonshire District Council,202217,BROWN & CO BARFORDS,78565,12/04/2023,ARJ007627,BARFORD CLIENT   P,27/04/2023,-617.05,-3085.25,-3702.3,Car Park Management,3C Parking Card Income,51508
http://statistics.data.gov.uk/id/local-authority/12UE,Huntingdonshire District Council,202217,BROWN & CO BARFORDS,78565,12/04/2023,ARJ007627,BARFORD CLIENT   P,27/04/2023,0,0,0,Suspense,Error Suspense,99999
http://statistics.data.gov.uk/id/local-authority/12UE,Huntingdonshire District Council,202217,BROWN & CO BARFORDS,78565,12/04/2023,ARJ007627,BARFORD CLIENT   P,27/04/2023,-25.44,-127.2,-152.64,Land Enquiry Con 29 Full,Fees & Charges Income ,53000
http://statistics.data.gov.uk/id/local-authority/12UE,Huntingdonshire District Council,202217,BROWN & CO BARFORDS,78565,12/04/2023,ARJ007627,BARFORD CLIENT   P,27/04/2023,-17.6,-88,-105.6,Land Enquiry Con 29 Full,Fees & Charges Income ,53000
http://statistics.data.gov.uk/id/local-authority/12UE,Huntingdonshire District Council,202217,BROWN & CO BARFORDS,78565,12/04/2023,ARJ007627,BARFORD CLIENT   P,27/04/2023,-70.4,-352,-422.4,Land Enquiry Con 29 Full,Fees & Charges Income ,53000
http://statistics.data.gov.uk/id/local-authority/12UE,Huntingdonshire District Council,202217,BROWN & CO BARFORDS,78565,12/04/2023,ARJ007627,BARFORD CLIENT   P,27/04/2023,-8.4,-42,-50.4,Land Enquiry Con 29 Full,Fees & Charges Income ,53000
http://statistics.data.gov.uk/id/local-authority/12UE,Huntingdonshire District Council,202217,BROWN & CO BARFORDS,78565,12/04/2023,ARJ007627,BARFORD CLIENT   P,27/04/2023,-4.2,-21,-25.2,Land Enquiry Con 29 Full,Fees & Charges Income ,53000
http://statistics.data.gov.uk/id/local-authority/12UE,Huntingdonshire District Council,202217,BROWN & CO BARFORDS,78565,12/04/2023,ARJ007627,BARFORD CLIENT   P,27/04/2023,-3.48,-17.4,-20.88,Land Enquiry Con 29 Restricted,Fees & Charges Income ,53000
http://statistics.data.gov.uk/id/local-authority/12UE,Huntingdonshire District Council,202217,BROWN & CO BARFORDS,78565,12/04/2023,ARJ007627,BARFORD CLIENT   P,27/04/2023,-1.16,-5.8,-6.96,Land Enquiry Con 29 Restricted,Fees & Charges Income ,53000
http://statistics.data.gov.uk/id/local-authority/12UE,Huntingdonshire District Council,202217,BROWN & CO BARFORDS,78565,12/04/2023,ARJ007627,BARFORD CLIENT   P,27/04/2023,0,-102,-102,Local Land Charges Register,Fees & Charges Income ,53000
http://statistics.data.gov.uk/id/local-authority/12UE,Huntingdonshire District Council,202217,BROWN & CO BARFORDS,78565,12/04/2023,ARJ007627,BARFORD CLIENT   P,27/04/2023,0,-25.5,-25.5,Local Land Charges Register,Fees & Charges Income ,53000
http://statistics.data.gov.uk/id/local-authority/12UE,Huntingdonshire District Council,202217,BROWN & CO BARFORDS,78565,12/04/2023,ARJ007627,BARFORD CLIENT   P,27/04/2023,0,-25.5,-25.5,Local Land Charges Register,Fees & Charges Income ,53000
http://statistics.data.gov.uk/id/local-authority/12UE,Huntingdonshire District Council,202217,BROWN & CO BARFORDS,78565,12/04/2023,ARJ007627,BARFORD CLIENT   P,27/04/2023,0,-204,-204,Local Land Charges Register,Fees & Charges Income ,53000
http://statistics.data.gov.uk/id/local-authority/12UE,Huntingdonshire District Council,202217,BROWN & CO BARFORDS,78565,12/04/2023,ARJ007627,BARFORD CLIENT   P,27/04/2023,0,-117,-117,Trade Refuse,Fees & Charges Income ,53000
http://statistics.data.gov.uk/id/local-authority/12UE,Huntingdonshire District Council,202217,BROWN & CO BARFORDS,78565,12/04/2023,ARJ007627,BARFORD CLIENT   P,27/04/2023,0,21,21,Income Account,Income Account,10083
http://statistics.data.gov.uk/id/local-authority/12UE,Huntingdonshire District Council,202217,BROWN & CO BARFORDS,78565,12/04/2023,ARJ007627,BARFORD CLIENT   P,27/04/2023,0,20,20,Income Account,Income Account,10083
http://statistics.data.gov.uk/id/local-authority/12UE,Huntingdonshire District Council,202217,BROWN & CO BARFORDS,78565,12/04/2023,ARJ007627,BARFORD CLIENT   P,27/04/2023,0,102,102,Income Account,Income Account,10083
http://statistics.data.gov.uk/id/local-authority/12UE,Huntingdonshire District Council,202217,BROWN & CO BARFORDS,78565,12/04/2023,ARJ007627,BARFORD CLIENT   P,27/04/2023,0,20.88,20.88,Income Account,Income Account,10083
http://statistics.data.gov.uk/id/local-authority/12UE,Huntingdonshire District Council,202217,BROWN & CO BARFORDS,78565,12/04/2023,ARJ007627,BARFORD CLIENT   P,27/04/2023,0,152.64,152.64,Income Account,Income Account,10083
http://statistics.data.gov.uk/id/local-authority/12UE,Huntingdonshire District Council,202217,BROWN & CO BARFORDS,78565,12/04/2023,ARJ007627,BARFORD CLIENT   P,27/04/2023,0,25.5,25.5,Income Account,Income Account,10083
http://statistics.data.gov.uk/id/local-authority/12UE,Huntingdonshire District Council,202217,BROWN & CO BARFORDS,78565,12/04/2023,ARJ007627,BARFORD CLIENT   P,27/04/2023,0,6.96,6.96,Income Account,Income Account,10083
http://statistics.data.gov.uk/id/local-authority/12UE,Huntingdonshire District Council,202217,BROWN & CO BARFORDS,78565,12/04/2023,ARJ007627,BARFORD CLIENT   P,27/04/2023,0,195,195,Income Account,Income Account,10083
http://statistics.data.gov.uk/id/local-authority/12UE,Huntingdonshire District Council,202217,BROWN & CO BARFORDS,78565,12/04/2023,ARJ007627,BARFORD CLIENT   P,27/04/2023,0,45,45,Income Account,Income Account,10083
http://statistics.data.gov.uk/id/local-authority/12UE,Huntingdonshire District Council,202217,BROWN & CO BARFORDS,78565,12/04/2023,ARJ007627,BARFORD CLIENT   P,27/04/2023,0,390,390,Income Account,Income Account,10083
http://statistics.data.gov.uk/id/local-authority/12UE,Huntingdonshire District Council,202217,BROWN & CO BARFORDS,78565,12/04/2023,ARJ007627,BARFORD CLIENT   P,27/04/2023,0,390,390,Income Account,Income Account,10083
http://statistics.data.gov.uk/id/local-authority/12UE,Huntingdonshire District Council,202217,BROWN & CO BARFORDS,78565,12/04/2023,ARJ007627,BARFORD CLIENT   P,27/04/2023,0,45,45,Income Account,Income Account,10083
http://statistics.data.gov.uk/id/local-authority/12UE,Huntingdonshire District Council,202217,BROWN & CO BARFORDS,78565,12/04/2023,ARJ007627,BARFORD CLIENT   P,27/04/2023,0,21,21,Income Account,Income Account,10083
http://statistics.data.gov.uk/id/local-authority/12UE,Huntingdonshire District Council,202217,BROWN & CO BARFORDS,78565,12/04/2023,ARJ007627,BARFORD CLIENT   P,27/04/2023,0,21,21,Income Account,Income Account,10083
http://statistics.data.gov.uk/id/local-authority/12UE,Huntingdonshire District Council,202217,BROWN & CO BARFORDS,78565,12/04/2023,ARJ007627,BARFORD CLIENT   P,27/04/2023,0,21,21,Income Account,Income Account,10083
http://statistics.data.gov.uk/id/local-authority/12UE,Huntingdonshire District Council,202217,BROWN & CO BARFORDS,78565,12/04/2023,ARJ007627,BARFORD CLIENT   P,27/04/2023,0,21,21,Income Account,Income Account,10083
http://statistics.data.gov.uk/id/local-authority/12UE,Huntingdonshire District Council,202217,BROWN & CO BARFORDS,78565,12/04/2023,ARJ007627,BARFORD CLIENT   P,27/04/2023,0,21,21,Income Account,Income Account,10083
http://statistics.data.gov.uk/id/local-authority/12UE,Huntingdonshire District Council,202217,BROWN & CO BARFORDS,78565,12/04/2023,ARJ007627,BARFORD CLIENT   P,27/04/2023,0,21,21,Income Account,Income Account,10083
http://statistics.data.gov.uk/id/local-authority/12UE,Huntingdonshire District Council,202217,BROWN & CO BARFORDS,78565,12/04/2023,ARJ007627,BARFORD CLIENT   P,27/04/2023,0,38.9,38.9,Income Account,Income Suspense Account,10084
http://statistics.data.gov.uk/id/local-authority/12UE,Huntingdonshire District Council,202217,BROWN & CO BARFORDS,78565,12/04/2023,ARJ007627,BARFORD CLIENT   P,27/04/2023,0,56.8,56.8,Income Account,Income Suspense Account,10084
http://statistics.data.gov.uk/id/local-authority/12UE,Huntingdonshire District Council,202217,BROWN & CO BARFORDS,78565,12/04/2023,ARJ007627,BARFORD CLIENT   P,27/04/2023,0,332.8,332.8,Income Account,Income Suspense Account,10084
http://statistics.data.gov.uk/id/local-authority/12UE,Huntingdonshire District Council,202217,BROWN & CO BARFORDS,78565,12/04/2023,ARJ007627,BARFORD CLIENT   P,27/04/2023,0,232.6,232.6,Income Account,Income Suspense Account,10084
http://statistics.data.gov.uk/id/local-authority/12UE,Huntingdonshire District Council,202217,BROWN & CO BARFORDS,78565,12/04/2023,ARJ007627,BARFORD CLIENT   P,27/04/2023,0,332.8,332.8,Income Account,Income Suspense Account,10084
http://statistics.data.gov.uk/id/local-authority/12UE,Huntingdonshire District Council,202217,BROWN & CO BARFORDS,78565,12/04/2023,ARJ007627,BARFORD CLIENT   P,27/04/2023,0,228.5,228.5,Income Account,Income Suspense Account,10084
http://statistics.data.gov.uk/id/local-authority/12UE,Huntingdonshire District Council,202217,BROWN & CO BARFORDS,78565,12/04/2023,ARJ007627,BARFORD CLIENT   P,27/04/2023,0,616.8,616.8,Income Account,Income Suspense Account,10084
http://statistics.data.gov.uk/id/local-authority/12UE,Huntingdonshire District Council,202217,BROWN & CO BARFORDS,78565,12/04/2023,ARJ007627,BARFORD CLIENT   P,27/04/2023,0,154.4,154.4,Income Account,Income Suspense Account,10084
http://statistics.data.gov.uk/id/local-authority/12UE,Huntingdonshire District Council,202217,BROWN & CO BARFORDS,78565,12/04/2023,ARJ007627,BARFORD CLIENT   P,27/04/2023,0,99.2,99.2,Income Account,Income Suspense Account,10084
http://statistics.data.gov.uk/id/local-authority/12UE,Huntingdonshire District Council,202217,BROWN & CO BARFORDS,78565,12/04/2023,ARJ007627,BARFORD CLIENT   P,27/04/2023,0,61.5,61.5,Income Account,Income Suspense Account,10084
http://statistics.data.gov.uk/id/local-authority/12UE,Huntingdonshire District Council,202217,BROWN & CO BARFORDS,78565,12/04/2023,ARJ007627,BARFORD CLIENT   P,27/04/2023,0,35.8,35.8,Income Account,Income Suspense Account,10084
http://statistics.data.gov.uk/id/local-authority/12UE,Huntingdonshire District Council,202217,BROWN & CO BARFORDS,78565,12/04/2023,ARJ007627,BARFORD CLIENT   P,27/04/2023,0,23.8,23.8,Income Account,Income Suspense Account,10084
http://statistics.data.gov.uk/id/local-authority/12UE,Huntingdonshire District Council,202217,BROWN & CO BARFORDS,78565,12/04/2023,ARJ007627,BARFORD CLIENT   P,27/04/2023,0,6,6,Income Account,Income Suspense Account,10084
http://statistics.data.gov.uk/id/local-authority/12UE,Huntingdonshire District Council,202217,BROWN & CO BARFORDS,78565,12/04/2023,ARJ007627,BARFORD CLIENT   P,27/04/2023,0,221.6,221.6,Income Account,Income Suspense Account,10084
http://statistics.data.gov.uk/id/local-authority/12UE,Huntingdonshire District Council,202217,BROWN & CO BARFORDS,78565,12/04/2023,ARJ007627,BARFORD CLIENT   P,27/04/2023,0,107.2,107.2,Income Account,Income Suspense Account,10084
http://statistics.data.gov.uk/id/local-authority/12UE,Huntingdonshire District Council,202217,BROWN & CO BARFORDS,78565,12/04/2023,ARJ007627,BARFORD CLIENT   P,27/04/2023,0,133.7,133.7,Income Account,Income Suspense Account,10084
http://statistics.data.gov.uk/id/local-authority/12UE,Huntingdonshire District Council,202217,BROWN & CO BARFORDS,78565,12/04/2023,ARJ007627,BARFORD CLIENT   P,27/04/2023,0,283.8,283.8,Income Account,Income Suspense Account,10084
http://statistics.data.gov.uk/id/local-authority/12UE,Huntingdonshire District Council,202217,BROWN & CO BARFORDS,78565,12/04/2023,ARJ007627,BARFORD CLIENT   P,27/04/2023,0,325.3,325.3,Income Account,Income Suspense Account,10084
http://statistics.data.gov.uk/id/local-authority/12UE,Huntingdonshire District Council,202217,BROWN & CO BARFORDS,78565,12/04/2023,ARJ007627,BARFORD CLIENT   P,27/04/2023,0,401.6,401.6,Income Account,Income Suspense Account,10084
http://statistics.data.gov.uk/id/local-authority/12UE,Huntingdonshire District Council,202217,BROWN & CO BARFORDS,78565,12/04/2023,ARJ007627,BARFORD CLIENT   P,27/04/2023,0,245.1,245.1,Income Account,Income Suspense Account,10084
http://statistics.data.gov.uk/id/local-authority/12UE,Huntingdonshire District Council,202217,BROWN & CO BARFORDS,78565,12/04/2023,ARJ007627,BARFORD CLIENT   P,27/04/2023,0,231.9,231.9,Income Account,Income Suspense Account,10084
http://statistics.data.gov.uk/id/local-authority/12UE,Huntingdonshire District Council,202217,BROWN & CO BARFORDS,78565,12/04/2023,ARJ007627,BARFORD CLIENT   P,27/04/2023,0,311.7,311.7,Income Account,Income Suspense Account,10084
http://statistics.data.gov.uk/id/local-authority/12UE,Huntingdonshire District Council,202217,BROWN & CO BARFORDS,78565,12/04/2023,ARJ007627,BARFORD CLIENT   P,27/04/2023,0,307.1,307.1,Income Account,Income Suspense Account,10084
http://statistics.data.gov.uk/id/local-authority/12UE,Huntingdonshire District Council,202217,BROWN & CO BARFORDS,78565,12/04/2023,ARJ007627,BARFORD CLIENT   P,27/04/2023,0,-550000,-550000,Income Account,Income Suspense Account,10084
http://statistics.data.gov.uk/id/local-authority/12UE,Huntingdonshire District Council,202217,BROWN & CO BARFORDS,78565,12/04/2023,ARJ007627,BARFORD CLIENT   P,27/04/2023,0,25.5,25.5,Income Account,Income Suspense Account,10084
http://statistics.data.gov.uk/id/local-authority/12UE,Huntingdonshire District Council,202217,BROWN & CO BARFORDS,78565,12/04/2023,ARJ007627,BARFORD CLIENT   P,27/04/2023,0,105.6,105.6,Income Account,Income Suspense Account,10084
http://statistics.data.gov.uk/id/local-authority/12UE,Huntingdonshire District Council,202217,BROWN & CO BARFORDS,78565,12/04/2023,ARJ007627,BARFORD CLIENT   P,27/04/2023,0,50.4,50.4,Income Account,Income Suspense Account,10084
http://statistics.data.gov.uk/id/local-authority/12UE,Huntingdonshire District Council,202217,BROWN & CO BARFORDS,78565,12/04/2023,ARJ007627,BARFORD CLIENT   P,27/04/2023,0,3785.94,3785.94,Income Account,Income Suspense Account,10084
http://statistics.data.gov.uk/id/local-authority/12UE,Huntingdonshire District Council,202217,BROWN & CO BARFORDS,78565,12/04/2023,ARJ007627,BARFORD CLIENT   P,27/04/2023,0,3430.82,3430.82,Income Account,Income Suspense Account,10084
http://statistics.data.gov.uk/id/local-authority/12UE,Huntingdonshire District Council,202217,BROWN & CO BARFORDS,78565,12/04/2023,ARJ007627,BARFORD CLIENT   P,27/04/2023,0,210,210,Income Account,Income Suspense Account,10084
http://statistics.data.gov.uk/id/local-authority/12UE,Huntingdonshire District Council,202217,BROWN & CO BARFORDS,78565,12/04/2023,ARJ007627,BARFORD CLIENT   P,27/04/2023,0,3867.32,3867.32,Income Account,Income Suspense Account,10084
http://statistics.data.gov.uk/id/local-authority/12UE,Huntingdonshire District Council,202217,BROWN & CO BARFORDS,78565,12/04/2023,ARJ007627,BARFORD CLIENT   P,27/04/2023,0,37,37,Income Account,Income Suspense Account,10084
http://statistics.data.gov.uk/id/local-authority/12UE,Huntingdonshire District Council,202217,BROWN & CO BARFORDS,78565,12/04/2023,ARJ007627,BARFORD CLIENT   P,27/04/2023,0,3702.3,3702.3,Income Account,Income Suspense Account,10084
http://statistics.data.gov.uk/id/local-authority/12UE,Huntingdonshire District Council,202217,BROWN & CO BARFORDS,78565,12/04/2023,ARJ007627,BARFORD CLIENT   P,27/04/2023,0,117,117,Income Account,Income Suspense Account,10084
http://statistics.data.gov.uk/id/local-authority/12UE,Huntingdonshire District Council,202217,BROWN & CO BARFORDS,78565,12/04/2023,ARJ007627,BARFORD CLIENT   P,27/04/2023,0,40,40,Income Account,Income Suspense Account,10084
http://statistics.data.gov.uk/id/local-authority/12UE,Huntingdonshire District Council,202217,BROWN & CO BARFORDS,78565,12/04/2023,ARJ007627,BARFORD CLIENT   P,27/04/2023,0,204,204,Income Account,Income Suspense Account,10084
http://statistics.data.gov.uk/id/local-authority/12UE,Huntingdonshire District Council,202217,BROWN & CO BARFORDS,78565,12/04/2023,ARJ007627,BARFORD CLIENT   P,27/04/2023,0,422.4,422.4,Income Account,Income Suspense Account,10084
http://statistics.data.gov.uk/id/local-authority/12UE,Huntingdonshire District Council,202217,BROWN & CO BARFORDS,78565,12/04/2023,ARJ007627,BARFORD CLIENT   P,27/04/2023,0,25.2,25.2,Income Account,Income Suspense Account,10084
http://statistics.data.gov.uk/id/local-authority/12UE,Huntingdonshire District Council,202217,BROWN & CO BARFORDS,78565,12/04/2023,ARJ007627,BARFORD CLIENT   P,27/04/2023,0,-180.77,-180.77,Income Account,Income Suspense Account,10084
http://statistics.data.gov.uk/id/local-authority/12UE,Huntingdonshire District Council,202217,BROWN & CO BARFORDS,78565,12/04/2023,ARJ007627,BARFORD CLIENT   P,27/04/2023,0,-16.75,-16.75,Income Account,Income Suspense Account,10084
http://statistics.data.gov.uk/id/local-authority/12UE,Huntingdonshire District Council,202217,BROWN & CO BARFORDS,78565,12/04/2023,ARJ007627,BARFORD CLIENT   P,27/04/2023,0,-21,-21,Closed Temp Licences 2003 Act,Licence And Permit Income,53900
http://statistics.data.gov.uk/id/local-authority/12UE,Huntingdonshire District Council,202217,BROWN & CO BARFORDS,78565,12/04/2023,ARJ007627,BARFORD CLIENT   P,27/04/2023,0,-21,-21,Closed Temp Licences 2003 Act,Licence And Permit Income,53900
http://statistics.data.gov.uk/id/local-authority/12UE,Huntingdonshire District Council,202217,BROWN & CO BARFORDS,78565,12/04/2023,ARJ007627,BARFORD CLIENT   P,27/04/2023,0,-21,-21,Closed Temp Licences 2003 Act,Licence And Permit Income,53900
http://statistics.data.gov.uk/id/local-authority/12UE,Huntingdonshire District Council,202217,BROWN & CO BARFORDS,78565,12/04/2023,ARJ007627,BARFORD CLIENT   P,27/04/2023,0,-21,-21,Closed Temp Licences 2003 Act,Licence And Permit Income,53900
http://statistics.data.gov.uk/id/local-authority/12UE,Huntingdonshire District Council,202217,BROWN & CO BARFORDS,78565,12/04/2023,ARJ007627,BARFORD CLIENT   P,27/04/2023,0,-21,-21,Closed Temp Licences 2003 Act,Licence And Permit Income,53900
http://statistics.data.gov.uk/id/local-authority/12UE,Huntingdonshire District Council,202217,BROWN & CO BARFORDS,78565,12/04/2023,ARJ007627,BARFORD CLIENT   P,27/04/2023,0,-21,-21,Closed Temp Licences 2003 Act,Licence And Permit Income,53900
http://statistics.data.gov.uk/id/local-authority/12UE,Huntingdonshire District Council,202217,BROWN & CO BARFORDS,78565,12/04/2023,ARJ007627,BARFORD CLIENT   P,27/04/2023,0,-37,-37,Clospersonal Licences 2003 Act,Licence And Permit Income,53900
http://statistics.data.gov.uk/id/local-authority/12UE,Huntingdonshire District Council,202217,BROWN & CO BARFORDS,78565,12/04/2023,ARJ007627,BARFORD CLIENT   P,27/04/2023,0,-45,-45,Hc & Ph Drivers Licences,Licence And Permit Income,53900
http://statistics.data.gov.uk/id/local-authority/12UE,Huntingdonshire District Council,202217,BROWN & CO BARFORDS,78565,12/04/2023,ARJ007627,BARFORD CLIENT   P,27/04/2023,0,-45,-45,Hc & Ph Drivers Licences,Licence And Permit Income,53900
http://statistics.data.gov.uk/id/local-authority/12UE,Huntingdonshire District Council,202217,BROWN & CO BARFORDS,78565,12/04/2023,ARJ007627,BARFORD CLIENT   P,27/04/2023,0,-40,-40,Lotteries,Licence And Permit Income,53900
http://statistics.data.gov.uk/id/local-authority/12UE,Huntingdonshire District Council,202217,BROWN & CO BARFORDS,78565,12/04/2023,ARJ007627,BARFORD CLIENT   P,27/04/2023,0,-20,-20,Ph & Hc Vechicles,Licence And Permit Income,53900
http://statistics.data.gov.uk/id/local-authority/12UE,Huntingdonshire District Council,202217,BROWN & CO BARFORDS,78565,12/04/2023,ARJ007627,BARFORD CLIENT   P,27/04/2023,0,-195,-195,Ph & Hc Vechicles,Licence And Permit Income,53900
http://statistics.data.gov.uk/id/local-authority/12UE,Huntingdonshire District Council,202217,BROWN & CO BARFORDS,78565,12/04/2023,ARJ007627,BARFORD CLIENT   P,27/04/2023,0,-390,-390,Ph & Hc Vechicles,Licence And Permit Income,53900
http://statistics.data.gov.uk/id/local-authority/12UE,Huntingdonshire District Council,202217,BROWN & CO BARFORDS,78565,12/04/2023,ARJ007627,BARFORD CLIENT   P,27/04/2023,0,-390,-390,Ph & Hc Vechicles,Licence And Permit Income,53900
http://statistics.data.gov.uk/id/local-authority/12UE,Huntingdonshire District Council,202217,BROWN & CO BARFORDS,78565,12/04/2023,ARJ007627,BARFORD CLIENT   P,27/04/2023,0,-21,-21,Premises Licences 2003 Act,Licence And Permit Income,53900
http://statistics.data.gov.uk/id/local-authority/12UE,Huntingdonshire District Council,202217,BROWN & CO BARFORDS,78565,12/04/2023,ARJ007627,BARFORD CLIENT   P,27/04/2023,0,550000,550000,Short Term Investments,Other - Principal Short Term Investments,11500
http://statistics.data.gov.uk/id/local-authority/12UE,Huntingdonshire District Council,202217,BROWN & CO BARFORDS,78565,12/04/2023,ARJ007627,BARFORD CLIENT   P,27/04/2023,0,180.77,180.77,Cashiers Suspense Account,Overpayments Recovered,12020
http://statistics.data.gov.uk/id/local-authority/12UE,Huntingdonshire District Council,202217,BROWN & CO BARFORDS,78565,12/04/2023,ARJ007627,BARFORD CLIENT   P,27/04/2023,0,16.75,16.75,Cashiers Suspense Account,Overpayments Recovered,12020
http://statistics.data.gov.uk/id/local-authority/12UE,Huntingdonshire District Council,202217,BROWN & CO BARFORDS,78565,12/04/2023,ARJ007627,BARFORD CLIENT   P,27/04/2023,-22.28,-111.42,-133.7,Cattle Market Long (STI),Parking Charges Casual,51504
http://statistics.data.gov.uk/id/local-authority/12UE,Huntingdonshire District Council,202217,BROWN & CO BARFORDS,78565,12/04/2023,ARJ007627,BARFORD CLIENT   P,27/04/2023,-47.3,-236.5,-283.8,Cattle Market Long (STI),Parking Charges Casual,51504
http://statistics.data.gov.uk/id/local-authority/12UE,Huntingdonshire District Council,202217,BROWN & CO BARFORDS,78565,12/04/2023,ARJ007627,BARFORD CLIENT   P,27/04/2023,-36.93,-184.67,-221.6,Hinchingbrooke Car Park,Parking Charges Casual,51504
http://statistics.data.gov.uk/id/local-authority/12UE,Huntingdonshire District Council,202217,BROWN & CO BARFORDS,78565,12/04/2023,ARJ007627,BARFORD CLIENT   P,27/04/2023,-17.87,-89.33,-107.2,Hinchingbrooke Car Park,Parking Charges Casual,51504
http://statistics.data.gov.uk/id/local-authority/12UE,Huntingdonshire District Council,202217,BROWN & CO BARFORDS,78565,12/04/2023,ARJ007627,BARFORD CLIENT   P,27/04/2023,-25.73,-128.67,-154.4,MSCP (HUN),Parking Charges Casual,51504
http://statistics.data.gov.uk/id/local-authority/12UE,Huntingdonshire District Council,202217,BROWN & CO BARFORDS,78565,12/04/2023,ARJ007627,BARFORD CLIENT   P,27/04/2023,-16.53,-82.67,-99.2,MSCP (HUN),Parking Charges Casual,51504
http://statistics.data.gov.uk/id/local-authority/12UE,Huntingdonshire District Council,202217,BROWN & CO BARFORDS,78565,12/04/2023,ARJ007627,BARFORD CLIENT   P,27/04/2023,-10.25,-51.25,-61.5,MSCP (HUN),Parking Charges Casual,51504
http://statistics.data.gov.uk/id/local-authority/12UE,Huntingdonshire District Council,202217,BROWN & CO BARFORDS,78565,12/04/2023,ARJ007627,BARFORD CLIENT   P,27/04/2023,-5.97,-29.83,-35.8,MSCP (HUN),Parking Charges Casual,51504
http://statistics.data.gov.uk/id/local-authority/12UE,Huntingdonshire District Council,202217,BROWN & CO BARFORDS,78565,12/04/2023,ARJ007627,BARFORD CLIENT   P,27/04/2023,-3.97,-19.83,-23.8,MSCP (HUN),Parking Charges Casual,51504
http://statistics.data.gov.uk/id/local-authority/12UE,Huntingdonshire District Council,202217,BROWN & CO BARFORDS,78565,12/04/2023,ARJ007627,BARFORD CLIENT   P,27/04/2023,-1,-5,-6,MSCP (HUN),Parking Charges Casual,51504
http://statistics.data.gov.uk/id/local-authority/12UE,Huntingdonshire District Council,202217,BROWN & CO BARFORDS,78565,12/04/2023,ARJ007627,BARFORD CLIENT   P,27/04/2023,-55.47,-277.33,-332.8,Princes Street (HUN),Parking Charges Casual,51504
http://statistics.data.gov.uk/id/local-authority/12UE,Huntingdonshire District Council,202217,BROWN & CO BARFORDS,78565,12/04/2023,ARJ007627,BARFORD CLIENT   P,27/04/2023,-38.77,-193.83,-232.6,Princes Street (HUN),Parking Charges Casual,51504
http://statistics.data.gov.uk/id/local-authority/12UE,Huntingdonshire District Council,202217,BROWN & CO BARFORDS,78565,12/04/2023,ARJ007627,BARFORD CLIENT   P,27/04/2023,-55.47,-277.33,-332.8,Sainsburys (HUN),Parking Charges Casual,51504
http://statistics.data.gov.uk/id/local-authority/12UE,Huntingdonshire District Council,202217,BROWN & CO BARFORDS,78565,12/04/2023,ARJ007627,BARFORD CLIENT   P,27/04/2023,-38.08,-190.42,-228.5,Sainsburys (HUN),Parking Charges Casual,51504
http://statistics.data.gov.uk/id/local-authority/12UE,Huntingdonshire District Council,202217,BROWN & CO BARFORDS,78565,12/04/2023,ARJ007627,BARFORD CLIENT   P,27/04/2023,-102.8,-514,-616.8,Sainsburys (HUN),Parking Charges Casual,51504
http://statistics.data.gov.uk/id/local-authority/12UE,Huntingdonshire District Council,202217,BROWN & CO BARFORDS,78565,12/04/2023,ARJ007627,BARFORD CLIENT   P,27/04/2023,-6.48,-32.42,-38.9,St Germain Minor (HUN),Parking Charges Casual,51504
http://statistics.data.gov.uk/id/local-authority/12UE,Huntingdonshire District Council,202217,BROWN & CO BARFORDS,78565,12/04/2023,ARJ007627,BARFORD CLIENT   P,27/04/2023,-9.47,-47.33,-56.8,St Germain Minor (HUN),Parking Charges Casual,51504
http://statistics.data.gov.uk/id/local-authority/12UE,Huntingdonshire District Council,202217,BROWN & CO BARFORDS,78565,12/04/2023,ARJ007627,BARFORD CLIENT   P,27/04/2023,-54.22,-271.08,-325.3,St Ives Cattle Market (Bus),Parking Charges Casual,51504
http://statistics.data.gov.uk/id/local-authority/12UE,Huntingdonshire District Council,202217,BROWN & CO BARFORDS,78565,12/04/2023,ARJ007627,BARFORD CLIENT   P,27/04/2023,-66.93,-334.67,-401.6,St Ives Cattle Market (Bus),Parking Charges Casual,51504
http://statistics.data.gov.uk/id/local-authority/12UE,Huntingdonshire District Council,202217,BROWN & CO BARFORDS,78565,12/04/2023,ARJ007627,BARFORD CLIENT   P,27/04/2023,-40.85,-204.25,-245.1,St Ives Cattle Market (Bus),Parking Charges Casual,51504
http://statistics.data.gov.uk/id/local-authority/12UE,Huntingdonshire District Council,202217,BROWN & CO BARFORDS,78565,12/04/2023,ARJ007627,BARFORD CLIENT   P,27/04/2023,-38.65,-193.25,-231.9,St Ives Cattle Market (Bus),Parking Charges Casual,51504
http://statistics.data.gov.uk/id/local-authority/12UE,Huntingdonshire District Council,202217,BROWN & CO BARFORDS,78565,12/04/2023,ARJ007627,BARFORD CLIENT   P,27/04/2023,-51.95,-259.75,-311.7,Waitrose (STI),Parking Charges Casual,51504
http://statistics.data.gov.uk/id/local-authority/12UE,Huntingdonshire District Council,202217,BROWN & CO BARFORDS,78565,12/04/2023,ARJ007627,BARFORD CLIENT   P,27/04/2023,-51.18,-255.92,-307.1,Waitrose (STN),Parking Charges Casual,51504
http://statistics.data.gov.uk/id/local-authority/12UE,Huntingdonshire District Council,202217,BROWN & CO BARFORDS,78565,12/04/2023,ARJ007627,BARFORD CLIENT   P,27/04/2023,0,-210,-210,Animal Licensing - Inspections,Sale Of Publications ,51210
http://statistics.data.gov.uk/id/local-authority/12UE,Huntingdonshire District Council,202217,BROWN & CO BARFORDS,79386,25/04/2023,SERVICE CHARGE LOAN,Service Charge Loan,19/05/2023,0,1600,1600,Commercial Investment Strategy,Service Charges,60401
http://statistics.data.gov.uk/id/local-authority/12UE,Huntingdonshire District Council,201752,BROWN & CO PROPERY & BUSINESS CONSULTANTS LLP,81531,02/06/2023,21140196,Service Charge Jun-Sep23,15/06/2023,0,1507.12,1507.12,Commercial Investment Strategy,Service Charges,60401
http://statistics.data.gov.uk/id/local-authority/12UE,Huntingdonshire District Council,201752,BROWN & CO PROPERY & BUSINESS CONSULTANTS LLP,81532,02/06/2023,21140181,Service Charge Jun-Sep23,15/06/2023,0,293.75,293.75,Commercial Team,Service Charges,60401
http://statistics.data.gov.uk/id/local-authority/12UE,Huntingdonshire District Council,201468,BROWNE JACOBSON LLP,79500,12/04/2023,IN-000147811,Initial Report On Title Of Lease Rights,04/05/2023,500,2500,3000,Market Square,Legal Fees,63200
http://statistics.data.gov.uk/id/local-authority/12UE,Huntingdonshire District Council,200131,BROXAP LTD BROXAP LTD,80046,20/03/2023,303184,ops street cleaning,11/05/2023,22,110,132,Street Cleansing,Refuse Containers/Litter Bins,61200
http://statistics.data.gov.uk/id/local-authority/12UE,Huntingdonshire District Council,200131,BROXAP LTD BROXAP LTD,80046,20/03/2023,303184,ops street cleaning,11/05/2023,0,30,30,Street Cleansing,Refuse Containers/Litter Bins,61200
http://statistics.data.gov.uk/id/local-authority/12UE,Huntingdonshire District Council,200131,BROXAP LTD BROXAP LTD,80046,20/03/2023,303184,ops street cleaning,11/05/2023,517.9,2589.5,3107.4,Street Cleansing,Refuse Containers/Litter Bins,61200
http://statistics.data.gov.uk/id/local-authority/12UE,Huntingdonshire District Council,202559,BUCHER MUNICIPAL LTD,77935,16/03/2023,65408255,Purchase Of Sweeper/Road Fund Licence,17/04/2023,28162.53,140812.67,168975.2,Vehicles & Plant,"Acquisition - Vehicles, Plant And Equipment",60801
http://statistics.data.gov.uk/id/local-authority/12UE,Huntingdonshire District Council,202559,BUCHER MUNICIPAL LTD,77935,16/03/2023,65408255,Purchase Of Sweeper/Road Fund Licence,17/04/2023,0,220,220,Vehicles & Plant,"Acquisition - Vehicles, Plant And Equipment",60801
http://statistics.data.gov.uk/id/local-authority/12UE,Huntingdonshire District Council,202559,BUCHER MUNICIPAL LTD,81073,26/05/2023,62212518,Brushes,15/06/2023,56.97,284.85,341.82,Street Cleansing,Vehicle Repairs And Maintenance,60904
http://statistics.data.gov.uk/id/local-authority/12UE,Huntingdonshire District Council,202559,BUCHER MUNICIPAL LTD,81073,26/05/2023,62212518,Brushes,15/06/2023,56.97,284.85,341.82,Street Cleansing,Vehicle Repairs And Maintenance,60904
http://statistics.data.gov.uk/id/local-authority/12UE,Huntingdonshire District Council,201204,Buckden Parish Council,78956,19/04/2023,CIL PAYMENT APR23,CIL Payment Apr23,25/04/2023,0,5342.87,5342.87,Cil Capital Grant Element,Cil Payment To Parishes,66402
http://statistics.data.gov.uk/id/local-authority/12UE,Huntingdonshire District Council,201204,Buckden Parish Council,79616,27/04/2023,230427,Vibrant Communities - Buckden,04/05/2023,0,839,839,UK Shared Prosperity Fund (UKSPF),Grants And Contributions,64600
http://statistics.data.gov.uk/id/local-authority/12UE,Huntingdonshire District Council,201204,Buckden Parish Council,81925,16/06/2023,BPC-230616,Vibrant Communities - Buckden,22/06/2023,0,1263.01,1263.01,UK Shared Prosperity Fund (UKSPF) - Vibrant Communities Only,Grants And Contributions,64600
http://statistics.data.gov.uk/id/local-authority/12UE,Huntingdonshire District Council,201204,Buckden Parish Council,79292,25/04/2023,PARISH PRECEPT APR 23,Parish Precept - April 2023,25/04/2023,0,87050,87050,P C Precept Buckden,Precepts,66301
http://statistics.data.gov.uk/id/local-authority/12UE,Huntingdonshire District Council,201206,Buckworth Parish Council,79292,25/04/2023,PARISH PRECEPT APR 23,Parish Precept - April 2023,25/04/2023,0,3600,3600,P C Precept Buckworth,Precepts,66301
http://statistics.data.gov.uk/id/local-authority/12UE,Huntingdonshire District Council,202268,BUREAU VAN DIJK ELECTRONIC PUBLISHING LTD,79615,10/04/2023,ZGB3006658,ICT License,04/05/2023,1724.8,8624,10348.8,Business & Enterprise Support,Ict Licences,64072
http://statistics.data.gov.uk/id/local-authority/12UE,Huntingdonshire District Council,200139,BURTON CAR DISPOSAL BURTON CAR DISPOSAL,78604,29/03/2023,INV-3614,REDACTED,20/04/2023,40,200,240,Environmental Enforcement,Removal Services,63700
http://statistics.data.gov.uk/id/local-authority/12UE,Huntingdonshire District Council,200139,BURTON CAR DISPOSAL BURTON CAR DISPOSAL,78604,29/03/2023,INV-3614,REDACTED,20/04/2023,40,200,240,Environmental Enforcement,Removal Services,63700
http://statistics.data.gov.uk/id/local-authority/12UE,Huntingdonshire District Council,200139,BURTON CAR DISPOSAL BURTON CAR DISPOSAL,81341,24/05/2023,INV-3720,Removal Services 11.05.23,15/06/2023,56,280,336,Environmental Enforcement,Removal Services,63700
http://statistics.data.gov.uk/id/local-authority/12UE,Huntingdonshire District Council,201207,Bury Parish Council,78957,19/04/2023,CIL PAYMENT APR23,CIL Payment Apr23,25/04/2023,0,31569.06,31569.06,Cil Capital Grant Element,Cil Payment To Parishes,66402
http://statistics.data.gov.uk/id/local-authority/12UE,Huntingdonshire District Council,201207,Bury Parish Council,78959,19/04/2023,CIL PAYMENT 25% APR23,CIL Payment 25% Apr23,25/04/2023,0,79675.21,79675.21,Cil Capital Grant Element,Cil Payment To Parishes,66402
http://statistics.data.gov.uk/id/local-authority/12UE,Huntingdonshire District Council,201207,Bury Parish Council,79292,25/04/2023,PARISH PRECEPT APR 23,Parish Precept - April 2023,25/04/2023,0,42500,42500,P C Precept Bury,Precepts,66301
http://statistics.data.gov.uk/id/local-authority/12UE,Huntingdonshire District Council,201208,Bythorn & Keyston Parish Council,79292,25/04/2023,PARISH PRECEPT APR 23,Parish Precept - April 2023,25/04/2023,0,8375,8375,P C Precept Bythorn & Keyston,Precepts,66301
http://statistics.data.gov.uk/id/local-authority/12UE,Huntingdonshire District Council,200148,CALLCREDIT LTD CALLCREDIT LTD,81585,01/06/2023,961776,May-23,22/06/2023,328.56,1642.82,1971.38,Benefits Management,Enquiries,63400
http://statistics.data.gov.uk/id/local-authority/12UE,Huntingdonshire District Council,200148,CALLCREDIT LTD CALLCREDIT LTD,78662,01/04/2023,957333,Mar23 Charge,04/05/2023,241.74,1208.7,1450.44,Benefits Management,Enquiries,63400
http://statistics.data.gov.uk/id/local-authority/12UE,Huntingdonshire District Council,200148,CALLCREDIT LTD CALLCREDIT LTD,79960,01/05/2023,959646,Usage Charge Apr23,25/05/2023,210.12,1050.62,1260.74,Benefits Management,Enquiries,63400
http://statistics.data.gov.uk/id/local-authority/12UE,Huntingdonshire District Council,200148,CALLCREDIT LTD CALLCREDIT LTD,81585,01/06/2023,961776,May-23,22/06/2023,1.22,6.08,7.3,Finance,Enquiries,63400
http://statistics.data.gov.uk/id/local-authority/12UE,Huntingdonshire District Council,200148,CALLCREDIT LTD CALLCREDIT LTD,78662,01/04/2023,957333,Mar23 Charge,04/05/2023,6.08,30.4,36.48,Housing Needs & Resources,Enquiries,63400
http://statistics.data.gov.uk/id/local-authority/12UE,Huntingdonshire District Council,200149,CAMBRIDGE CITY COUNCIL CAMBRIDGE CITY COUNCIL,81174,25/05/2023,12094745,HDC 3C Otturn Contribution 22/23,20/06/2023,24307,121535,145842,Bc Advice,Client Contracts,62404
http://statistics.data.gov.uk/id/local-authority/12UE,Huntingdonshire District Council,200149,CAMBRIDGE CITY COUNCIL CAMBRIDGE CITY COUNCIL,81039,25/05/2023,12094746,3C Legal SS Contribution 22/23,20/06/2023,35584.39,177921.94,213506.33,Legal,Client Contracts,62404
http://statistics.data.gov.uk/id/local-authority/12UE,Huntingdonshire District Council,200149,CAMBRIDGE CITY COUNCIL CAMBRIDGE CITY COUNCIL,78297,16/03/2023,SI-11503,Asbestos Surveys - Non-Op Sites Feb23,14/04/2023,258.67,1293.33,1552,Commercial Properties,Consultancy Fees,62400
http://statistics.data.gov.uk/id/local-authority/12UE,Huntingdonshire District Council,200149,CAMBRIDGE CITY COUNCIL CAMBRIDGE CITY COUNCIL,78605,16/03/2023,SI-11498,Asbestos Surveys - Non-Op Sites Jan23,14/04/2023,200.67,1003.33,1204,Commercial Properties,Consultancy Fees,62400
http://statistics.data.gov.uk/id/local-authority/12UE,Huntingdonshire District Council,200149,CAMBRIDGE CITY COUNCIL CAMBRIDGE CITY COUNCIL,78295,16/03/2023,SI-11497,Asbestos Surveys - Non-Op Sites Dec22,14/04/2023,143.33,716.67,860,Commercial Properties,Consultancy Fees,62400
http://statistics.data.gov.uk/id/local-authority/12UE,Huntingdonshire District Council,200149,CAMBRIDGE CITY COUNCIL CAMBRIDGE CITY COUNCIL,77538,13/03/2023,12089816,HRIS Project Manager Costs Apr22-Feb23,06/04/2023,2737.53,13687.67,16425.2,HR Services,Consultancy Fees,62400
http://statistics.data.gov.uk/id/local-authority/12UE,Huntingdonshire District Council,200149,CAMBRIDGE CITY COUNCIL CAMBRIDGE CITY COUNCIL,78297,16/03/2023,SI-11503,Asbestos Surveys - Non-Op Sites Feb23,14/04/2023,517.33,2586.67,3104,Industrial Properties,Consultancy Fees,62400
http://statistics.data.gov.uk/id/local-authority/12UE,Huntingdonshire District Council,200149,CAMBRIDGE CITY COUNCIL CAMBRIDGE CITY COUNCIL,78605,16/03/2023,SI-11498,Asbestos Surveys - Non-Op Sites Jan23,14/04/2023,401.33,2006.67,2408,Industrial Properties,Consultancy Fees,62400
http://statistics.data.gov.uk/id/local-authority/12UE,Huntingdonshire District Council,200149,CAMBRIDGE CITY COUNCIL CAMBRIDGE CITY COUNCIL,78295,16/03/2023,SI-11497,Asbestos Surveys - Non-Op Sites Dec22,14/04/2023,286.67,1433.33,1720,Industrial Properties,Consultancy Fees,62400
http://statistics.data.gov.uk/id/local-authority/12UE,Huntingdonshire District Council,200149,CAMBRIDGE CITY COUNCIL CAMBRIDGE CITY COUNCIL,81659,09/06/2023,12095021,Quarter 1 Fees Cambs HIA,30/06/2023,0,72898.8,72898.8,Disables Facilities Grants,Home Improvement Agency Fees,67200
http://statistics.data.gov.uk/id/local-authority/12UE,Huntingdonshire District Council,200149,CAMBRIDGE CITY COUNCIL CAMBRIDGE CITY COUNCIL,77456,13/03/2023,12089837,Phone/Accomm/CB1 Cameras/Cap Costs,06/04/2023,678.34,3391.7,4070.04,Cctv Shared Service - HDC,Hotel And Other Accommodation Costs (Staff And Members),64400
http://statistics.data.gov.uk/id/local-authority/12UE,Huntingdonshire District Council,200149,CAMBRIDGE CITY COUNCIL CAMBRIDGE CITY COUNCIL,79797,15/03/2023,12093105,ICT Costs - Paid CCC - Recharge,09/05/2023,8685.05,43425.27,52110.32,Cambridge City Business Case ,Ict Software,64071
http://statistics.data.gov.uk/id/local-authority/12UE,Huntingdonshire District Council,200149,CAMBRIDGE CITY COUNCIL CAMBRIDGE CITY COUNCIL,79797,15/03/2023,12093105,ICT Costs - Paid CCC - Recharge,09/05/2023,1349.5,6747.49,8096.99,Cambridge City Business Case ,Ict Software,64071
http://statistics.data.gov.uk/id/local-authority/12UE,Huntingdonshire District Council,200149,CAMBRIDGE CITY COUNCIL CAMBRIDGE CITY COUNCIL,79797,15/03/2023,12093105,ICT Costs - Paid CCC - Recharge,09/05/2023,184.76,923.79,1108.55,3CICT NON STAFF HOLDING ACCOUNT,Land Line Rental,64077
http://statistics.data.gov.uk/id/local-authority/12UE,Huntingdonshire District Council,200149,CAMBRIDGE CITY COUNCIL CAMBRIDGE CITY COUNCIL,79797,15/03/2023,12093105,ICT Costs - Paid CCC - Recharge,09/05/2023,38.33,191.66,229.99,3CICT NON STAFF HOLDING ACCOUNT,Land Line Rental,64077
http://statistics.data.gov.uk/id/local-authority/12UE,Huntingdonshire District Council,200149,CAMBRIDGE CITY COUNCIL CAMBRIDGE CITY COUNCIL,77456,13/03/2023,12089837,Phone/Accomm/CB1 Cameras/Cap Costs,06/04/2023,28.82,144.12,172.94,Cctv Shared Service - HDC,Line Rental,64075
http://statistics.data.gov.uk/id/local-authority/12UE,Huntingdonshire District Council,200149,CAMBRIDGE CITY COUNCIL CAMBRIDGE CITY COUNCIL,79617,26/04/2023,12094036,Cyclical/Planned Maintenance,19/05/2023,118,590,708,Pathfinder House,Maintenance - Building,60201
http://statistics.data.gov.uk/id/local-authority/12UE,Huntingdonshire District Council,200149,CAMBRIDGE CITY COUNCIL CAMBRIDGE CITY COUNCIL,79797,15/03/2023,12093105,ICT Costs - Paid CCC - Recharge,09/05/2023,0.01,0,0.01,Finance,Over/Under VAT Rounding,68350
http://statistics.data.gov.uk/id/local-authority/12UE,Huntingdonshire District Council,200149,CAMBRIDGE CITY COUNCIL CAMBRIDGE CITY COUNCIL,79797,15/03/2023,12093105,ICT Costs - Paid CCC - Recharge,09/05/2023,43.83,219.16,262.99,3CICT NON STAFF HOLDING ACCOUNT,Postage And Courier Services,64100
http://statistics.data.gov.uk/id/local-authority/12UE,Huntingdonshire District Council,200149,CAMBRIDGE CITY COUNCIL CAMBRIDGE CITY COUNCIL,77456,13/03/2023,12089837,Phone/Accomm/CB1 Cameras/Cap Costs,06/04/2023,3400,17000,20400,Cctv Shared Service - HDC,Service Charges,60401
http://statistics.data.gov.uk/id/local-authority/12UE,Huntingdonshire District Council,200149,CAMBRIDGE CITY COUNCIL CAMBRIDGE CITY COUNCIL,77456,13/03/2023,12089837,Phone/Accomm/CB1 Cameras/Cap Costs,06/04/2023,2017.3,10086.5,12103.8,Cctv Shared Service - HDC,Service Charges,60401
http://statistics.data.gov.uk/id/local-authority/12UE,Huntingdonshire District Council,200149,CAMBRIDGE CITY COUNCIL CAMBRIDGE CITY COUNCIL,79797,15/03/2023,12093105,ICT Costs - Paid CCC - Recharge,09/05/2023,0.54,2.71,3.25,3CICT NON STAFF HOLDING ACCOUNT,Stationery,62002
http://statistics.data.gov.uk/id/local-authority/12UE,Huntingdonshire District Council,200149,CAMBRIDGE CITY COUNCIL CAMBRIDGE CITY COUNCIL,79797,15/03/2023,12093105,ICT Costs - Paid CCC - Recharge,09/05/2023,0.26,1.32,1.58,3CICT NON STAFF HOLDING ACCOUNT,Stationery,62002
http://statistics.data.gov.uk/id/local-authority/12UE,Huntingdonshire District Council,200150,CAMBRIDGE CONSULTANCY IN COUNSELLING CAMBRIDGE CONSULTANCY IN COUNSELLING,78631,28/02/2023,103547,Monthly Plan Feb23,14/04/2023,0,666.5,666.5,HR Services,Occupational Health,60111
http://statistics.data.gov.uk/id/local-authority/12UE,Huntingdonshire District Council,200150,CAMBRIDGE CONSULTANCY IN COUNSELLING CAMBRIDGE CONSULTANCY IN COUNSELLING,80842,31/03/2023,103571,Occupational Health Mar23,01/06/2023,0,666.5,666.5,HR Services,Occupational Health,60111
http://statistics.data.gov.uk/id/local-authority/12UE,Huntingdonshire District Council,200150,CAMBRIDGE CONSULTANCY IN COUNSELLING CAMBRIDGE CONSULTANCY IN COUNSELLING,82430,31/05/2023,103619,Monthly Payment Plan May23,30/06/2023,0,666.5,666.5,HR Services,Occupational Health,60111
http://statistics.data.gov.uk/id/local-authority/12UE,Huntingdonshire District Council,200150,CAMBRIDGE CONSULTANCY IN COUNSELLING CAMBRIDGE CONSULTANCY IN COUNSELLING,82431,30/04/2023,103595,Monthly Payment Plan Apr23,30/06/2023,0,666.5,666.5,HR Services,Occupational Health,60111
http://statistics.data.gov.uk/id/local-authority/12UE,Huntingdonshire District Council,200154,CAMBRIDGE MARKET RESEARCH LIMITED CAMBRIDGE MARKET RESEARCH LIMITED,79907,04/05/2023,INV-0970,Surveys,25/05/2023,250,1250,1500,Car Park Management,Consultancy Fees,62400
http://statistics.data.gov.uk/id/local-authority/12UE,Huntingdonshire District Council,200154,CAMBRIDGE MARKET RESEARCH LIMITED CAMBRIDGE MARKET RESEARCH LIMITED,81815,02/06/2023,INV-0985,Surveys,22/06/2023,250,1250,1500,Car Park Management,Consultancy Fees,62400
http://statistics.data.gov.uk/id/local-authority/12UE,Huntingdonshire District Council,203016,Cambridge Trees Ltd,80023,05/05/2023,INV-4009,STUKELEY TREE FELL,11/05/2023,235,1175,1410,Arboricultural Team,Subcontractors,62401
http://statistics.data.gov.uk/id/local-authority/12UE,Huntingdonshire District Council,203016,Cambridge Trees Ltd,82396,26/06/2023,INV-4086,Remove Dead Tree - Queens Gardens,30/06/2023,55,275,330,Arboricultural Team,Subcontractors,62401
http://statistics.data.gov.uk/id/local-authority/12UE,Huntingdonshire District Council,201033,CAMBRIDGESHIRE COUNTY COUNCIL,80598,18/05/2023,4.23004E+11,Handy Person Services,08/06/2023,0,10608,10608,Housing Policy R&D,Grants And Contributions,64600
http://statistics.data.gov.uk/id/local-authority/12UE,Huntingdonshire District Council,201033,CAMBRIDGESHIRE COUNTY COUNCIL,81824,09/06/2023,4.23004E+11,Grants & Contribution,30/06/2023,0,5000,5000,Parks & Open Spaces,Grants And Contributions,64600
http://statistics.data.gov.uk/id/local-authority/12UE,Huntingdonshire District Council,201033,CAMBRIDGESHIRE COUNTY COUNCIL,77602,21/03/2023,4.23004E+11,Archaeological Services Oct22-Mar23,14/04/2023,1616,8080,9696,Planning Projects General,Grants And Contributions,64600
http://statistics.data.gov.uk/id/local-authority/12UE,Huntingdonshire District Council,201033,CAMBRIDGESHIRE COUNTY COUNCIL,77697,23/03/2023,4.23004E+11,St Ives EC County Share 2021/22,20/04/2023,0,4212.93,4212.93,St Ives Enterprise Centre,Profit Share Payable,67100
http://statistics.data.gov.uk/id/local-authority/12UE,Huntingdonshire District Council,201033,CAMBRIDGESHIRE COUNTY COUNCIL,79414,26/04/2023,4.23004E+11,Trade/Food Waste Disposal Costs Mar23,19/05/2023,0,11890,11890,Trade Refuse,Waste Disposal Costs,64050
http://statistics.data.gov.uk/id/local-authority/12UE,Huntingdonshire District Council,201033,CAMBRIDGESHIRE COUNTY COUNCIL,79414,26/04/2023,4.23004E+11,Trade/Food Waste Disposal Costs Mar23,19/05/2023,0,136.34,136.34,Trade Refuse,Waste Disposal Costs,64050
http://statistics.data.gov.uk/id/local-authority/12UE,Huntingdonshire District Council,201033,CAMBRIDGESHIRE COUNTY COUNCIL,81549,07/06/2023,4.23004E+11,Trade Waste/Food Waste Disposal Apr23,30/06/2023,0,10388.43,10388.43,Trade Refuse,Waste Disposal Costs,64050
http://statistics.data.gov.uk/id/local-authority/12UE,Huntingdonshire District Council,201033,CAMBRIDGESHIRE COUNTY COUNCIL,81549,07/06/2023,4.23004E+11,Trade Waste/Food Waste Disposal Apr23,30/06/2023,0,161.64,161.64,Trade Refuse,Waste Disposal Costs,64050
http://statistics.data.gov.uk/id/local-authority/12UE,Huntingdonshire District Council,201033,CAMBRIDGESHIRE COUNTY COUNCIL,77699,23/03/2023,4.23004E+11,Waste/Food Waste Disposal Costs,20/04/2023,0,9994.41,9994.41,Trade Refuse,Waste Disposal Costs,64050
http://statistics.data.gov.uk/id/local-authority/12UE,Huntingdonshire District Council,201033,CAMBRIDGESHIRE COUNTY COUNCIL,77699,23/03/2023,4.23004E+11,Waste/Food Waste Disposal Costs,20/04/2023,0,120.44,120.44,Trade Refuse,Waste Disposal Costs,64050
http://statistics.data.gov.uk/id/local-authority/12UE,Huntingdonshire District Council,200159,CAMBRIDGESHIRE COUNTY COUNCIL CAMBRIDGESHIRE COUNTY COUNCIL,77728,23/03/2023,4.23004E+11,CCC Staff Charges Feb23,20/04/2023,5769.27,28846.35,34615.62,Transport Project,Consultancy Fees,62400
http://statistics.data.gov.uk/id/local-authority/12UE,Huntingdonshire District Council,200159,CAMBRIDGESHIRE COUNTY COUNCIL CAMBRIDGESHIRE COUNTY COUNCIL,78807,14/04/2023,4.23004E+11,Local Searches Q4 22/23,11/05/2023,2777.6,13888,16665.6,Land Enquiry Con 29 Full,General Office Expenses,62004
http://statistics.data.gov.uk/id/local-authority/12UE,Huntingdonshire District Council,200159,CAMBRIDGESHIRE COUNTY COUNCIL CAMBRIDGESHIRE COUNTY COUNCIL,78203,31/03/2023,4.23004E+11,CAP CONTRIBUTION 22-23,04/05/2023,4040,20200,24240,Domestic Waste Collection,Grants And Contributions,64600
http://statistics.data.gov.uk/id/local-authority/12UE,Huntingdonshire District Council,200159,CAMBRIDGESHIRE COUNTY COUNCIL CAMBRIDGESHIRE COUNTY COUNCIL,81226,03/06/2023,42300375773,CP Income,22/06/2023,0,17739.44,17739.44,High Street (CCC),Grants And Contributions,64600
http://statistics.data.gov.uk/id/local-authority/12UE,Huntingdonshire District Council,200159,CAMBRIDGESHIRE COUNTY COUNCIL CAMBRIDGESHIRE COUNTY COUNCIL,81226,03/06/2023,42300375773,CP Income,22/06/2023,0,1345.29,1345.29,High Street (CCC),Grants And Contributions,64600
http://statistics.data.gov.uk/id/local-authority/12UE,Huntingdonshire District Council,200159,CAMBRIDGESHIRE COUNTY COUNCIL CAMBRIDGESHIRE COUNTY COUNCIL,81226,03/06/2023,42300375773,CP Income,22/06/2023,0,6176.35,6176.35,High Street (CCC),Grants And Contributions,64600
http://statistics.data.gov.uk/id/local-authority/12UE,Huntingdonshire District Council,200159,CAMBRIDGESHIRE COUNTY COUNCIL CAMBRIDGESHIRE COUNTY COUNCIL,81226,03/06/2023,42300375773,CP Income,22/06/2023,0,21504.44,21504.44,Market Hill (CCC),Grants And Contributions,64600
http://statistics.data.gov.uk/id/local-authority/12UE,Huntingdonshire District Council,200159,CAMBRIDGESHIRE COUNTY COUNCIL CAMBRIDGESHIRE COUNTY COUNCIL,81226,03/06/2023,42300375773,CP Income,22/06/2023,0,23136.07,23136.07,Market Square (CCC),Grants And Contributions,64600
http://statistics.data.gov.uk/id/local-authority/12UE,Huntingdonshire District Council,200159,CAMBRIDGESHIRE COUNTY COUNCIL CAMBRIDGESHIRE COUNTY COUNCIL,81226,03/06/2023,42300375773,CP Income,22/06/2023,0,4685.4,4685.4,Market Square (CCC),Grants And Contributions,64600
http://statistics.data.gov.uk/id/local-authority/12UE,Huntingdonshire District Council,200159,CAMBRIDGESHIRE COUNTY COUNCIL CAMBRIDGESHIRE COUNTY COUNCIL,81226,03/06/2023,42300375773,CP Income,22/06/2023,0,3957.26,3957.26,Market Square (CCC),Grants And Contributions,64600
http://statistics.data.gov.uk/id/local-authority/12UE,Huntingdonshire District Council,200159,CAMBRIDGESHIRE COUNTY COUNCIL CAMBRIDGESHIRE COUNTY COUNCIL,77723,24/03/2023,4.23004E+11,Installation Fees,20/04/2023,805.76,4028.8,4834.56,3CICT NON STAFF HOLDING ACCOUNT,Installation Fees,64073
http://statistics.data.gov.uk/id/local-authority/12UE,Huntingdonshire District Council,200159,CAMBRIDGESHIRE COUNTY COUNCIL CAMBRIDGESHIRE COUNTY COUNCIL,77723,24/03/2023,4.23004E+11,Installation Fees,20/04/2023,2217,11085.01,13302.01,Cambridge City Business Case ,Installation Fees,64073
http://statistics.data.gov.uk/id/local-authority/12UE,Huntingdonshire District Council,200159,CAMBRIDGESHIRE COUNTY COUNCIL CAMBRIDGESHIRE COUNTY COUNCIL,77723,24/03/2023,4.23004E+11,Installation Fees,20/04/2023,913.39,4566.94,5480.33,HDC Business Case ,Installation Fees,64073
http://statistics.data.gov.uk/id/local-authority/12UE,Huntingdonshire District Council,200159,CAMBRIDGESHIRE COUNTY COUNCIL CAMBRIDGESHIRE COUNTY COUNCIL,77723,24/03/2023,4.23004E+11,Installation Fees,20/04/2023,408.18,2040.9,2449.08,SCDC Business Case ,Installation Fees,64073
http://statistics.data.gov.uk/id/local-authority/12UE,Huntingdonshire District Council,200159,CAMBRIDGESHIRE COUNTY COUNCIL CAMBRIDGESHIRE COUNTY COUNCIL,78535,24/03/2023,4.23004E+11,Storage & Maintenance DR IT Equipment,20/04/2023,4472.81,22364.04,26836.85,3CICT NON STAFF HOLDING ACCOUNT,"Maintenance - Equipment, Furniture And Materials",61702
http://statistics.data.gov.uk/id/local-authority/12UE,Huntingdonshire District Council,200159,CAMBRIDGESHIRE COUNTY COUNCIL CAMBRIDGESHIRE COUNTY COUNCIL,77545,15/03/2023,4.23004E+11,Basic Safeguarding Training,06/04/2023,0,640,640,HR Services,Staff Development And Training,60115
http://statistics.data.gov.uk/id/local-authority/12UE,Huntingdonshire District Council,200159,CAMBRIDGESHIRE COUNTY COUNCIL CAMBRIDGESHIRE COUNTY COUNCIL,77546,15/03/2023,4.23004E+11,Basic Safeguarding Training Sessions,06/04/2023,0,640,640,HR Services,Staff Development And Training,60115
http://statistics.data.gov.uk/id/local-authority/12UE,Huntingdonshire District Council,200877,CAMBRIDGESHIRE FIRE AND RESCUE SERVICE CAMBRIDGESHIRE AND PETERBOROUGH FIRE AUTHORITY,79624,27/04/2023,6094,Grants & Contribution,25/05/2023,0,6036,6036,Emergency Planning,Grants And Contributions,64600
http://statistics.data.gov.uk/id/local-authority/12UE,Huntingdonshire District Council,201054,Cambridgeshire Pension Fund,77823,11/03/2023,4.233E+11,Unfunded Benefit 2022/23,06/04/2023,0,26364.94,26364.94,Non Distributed Costs,Pension Increase Act Payments,60101
http://statistics.data.gov.uk/id/local-authority/12UE,Huntingdonshire District Council,200164,CAMPBELL ASSOCIATES CAMPBELL ASSOCIATES,78328,27/03/2023,29510,Maintenance Equipment,20/04/2023,273,1365,1638,Noise Control,"Maintenance - Equipment, Furniture And Materials",61702
http://statistics.data.gov.uk/id/local-authority/12UE,Huntingdonshire District Council,200164,CAMPBELL ASSOCIATES CAMPBELL ASSOCIATES,78328,27/03/2023,29510,Maintenance Equipment,20/04/2023,96,480,576,Noise Control,"Maintenance - Equipment, Furniture And Materials",61702
http://statistics.data.gov.uk/id/local-authority/12UE,Huntingdonshire District Council,200164,CAMPBELL ASSOCIATES CAMPBELL ASSOCIATES,78328,27/03/2023,29510,Maintenance Equipment,20/04/2023,41.2,206,247.2,Noise Control,"Maintenance - Equipment, Furniture And Materials",61702
http://statistics.data.gov.uk/id/local-authority/12UE,Huntingdonshire District Council,200164,CAMPBELL ASSOCIATES CAMPBELL ASSOCIATES,78328,27/03/2023,29510,Maintenance Equipment,20/04/2023,41.2,206,247.2,Noise Control,"Maintenance - Equipment, Furniture And Materials",61702
http://statistics.data.gov.uk/id/local-authority/12UE,Huntingdonshire District Council,200164,CAMPBELL ASSOCIATES CAMPBELL ASSOCIATES,78328,27/03/2023,29510,Maintenance Equipment,20/04/2023,27.8,139,166.8,Noise Control,"Maintenance - Equipment, Furniture And Materials",61702
http://statistics.data.gov.uk/id/local-authority/12UE,Huntingdonshire District Council,200164,CAMPBELL ASSOCIATES CAMPBELL ASSOCIATES,78328,27/03/2023,29510,Maintenance Equipment,20/04/2023,8,40,48,Noise Control,"Maintenance - Equipment, Furniture And Materials",61702
http://statistics.data.gov.uk/id/local-authority/12UE,Huntingdonshire District Council,200166,CAPITA CAPITA,79598,14/04/2023,102342,IT Software - Annual Maint Apr23-Mar24,11/05/2023,1194.31,5971.54,7165.85,Cambridge City Business Case ,Ict Software,64071
http://statistics.data.gov.uk/id/local-authority/12UE,Huntingdonshire District Council,200166,CAPITA CAPITA,79600,14/04/2023,102426,IT Software - Annual Maint Apr23-Mar24,11/05/2023,894.4,4472,5366.4,HDC Business Case ,Ict Software,64071
http://statistics.data.gov.uk/id/local-authority/12UE,Huntingdonshire District Council,200166,CAPITA CAPITA,79599,14/04/2023,102510,IT Software - Annual Maint Apr23-Mar24,11/05/2023,276.36,1381.82,1658.18,SCDC Business Case ,Ict Software,64071
http://statistics.data.gov.uk/id/local-authority/12UE,Huntingdonshire District Council,200166,CAPITA CAPITA,79598,14/04/2023,102342,IT Software - Annual Maint Apr23-Mar24,11/05/2023,217.88,1089.39,1307.27,Cambridge City Business Case ,"Maintenance - Equipment, Furniture And Materials",61702
http://statistics.data.gov.uk/id/local-authority/12UE,Huntingdonshire District Council,200166,CAPITA CAPITA,79600,14/04/2023,102426,IT Software - Annual Maint Apr23-Mar24,11/05/2023,19.8,99.02,118.82,HDC Business Case ,"Maintenance - Equipment, Furniture And Materials",61702
http://statistics.data.gov.uk/id/local-authority/12UE,Huntingdonshire District Council,200169,CARE CHECK LTD CARE CHECK LTD,81606,31/01/2023,449928,DBS Checks,15/06/2023,0,522,522,HR Services,Enquiries,63400
http://statistics.data.gov.uk/id/local-authority/12UE,Huntingdonshire District Council,200169,CARE CHECK LTD CARE CHECK LTD,81606,31/01/2023,449928,DBS Checks,15/06/2023,19,95,114,HR Services,Enquiries,63400
http://statistics.data.gov.uk/id/local-authority/12UE,Huntingdonshire District Council,200169,CARE CHECK LTD CARE CHECK LTD,81225,31/05/2023,487201,DBS Checks,22/06/2023,0,508,508,HR Services,Enquiries,63400
http://statistics.data.gov.uk/id/local-authority/12UE,Huntingdonshire District Council,200169,CARE CHECK LTD CARE CHECK LTD,81225,31/05/2023,487201,DBS Checks,22/06/2023,16,80,96,HR Services,Enquiries,63400
http://statistics.data.gov.uk/id/local-authority/12UE,Huntingdonshire District Council,200169,CARE CHECK LTD CARE CHECK LTD,79972,28/04/2023,477808,Enquiries,19/05/2023,0,266,266,HR Services,Enquiries,63400
http://statistics.data.gov.uk/id/local-authority/12UE,Huntingdonshire District Council,200169,CARE CHECK LTD CARE CHECK LTD,79972,28/04/2023,477808,Enquiries,19/05/2023,7,35,42,HR Services,Enquiries,63400
http://statistics.data.gov.uk/id/local-authority/12UE,Huntingdonshire District Council,200169,CARE CHECK LTD CARE CHECK LTD,81605,31/03/2023,470014,DBS Checks,15/06/2023,0,224,224,HR Services,Enquiries,63400
http://statistics.data.gov.uk/id/local-authority/12UE,Huntingdonshire District Council,200169,CARE CHECK LTD CARE CHECK LTD,81605,31/03/2023,470014,DBS Checks,15/06/2023,8,40,48,HR Services,Enquiries,63400
http://statistics.data.gov.uk/id/local-authority/12UE,Huntingdonshire District Council,202302,CARESCO LTD,80486,19/05/2023,PRF HEALTH INEQUALITIES MAY 23,PRF HEALTH INEQUALITIES PROJECT,25/05/2023,65.5,327.5,393,Integrated Care System Project,Grants And Contributions,64600
http://statistics.data.gov.uk/id/local-authority/12UE,Huntingdonshire District Council,203090,REDACTED,78798,01/04/2023,5,Delivery OL Sales Support Programme,04/05/2023,0,3000,3000,One Leisure Management Team,Consultancy Fees,62400
http://statistics.data.gov.uk/id/local-authority/12UE,Huntingdonshire District Council,203090,REDACTED,80014,01/05/2023,6,OLH SALES SUPPORT PROGRAMME,25/05/2023,0,3000,3000,One Leisure Management Team,Consultancy Fees,62400
http://statistics.data.gov.uk/id/local-authority/12UE,Huntingdonshire District Council,203090,REDACTED,81649,01/06/2023,7,Consultancy Fees,22/06/2023,0,3000,3000,One Leisure Management Team,Consultancy Fees,62400
http://statistics.data.gov.uk/id/local-authority/12UE,Huntingdonshire District Council,202458,CARRINGTON WEST LTD,80448,13/04/2023,2023085,REDACTED,19/05/2023,905.96,4529.8,5435.76,Development Management,Agency Staff,60011
http://statistics.data.gov.uk/id/local-authority/12UE,Huntingdonshire District Council,202458,CARRINGTON WEST LTD,80039,06/04/2023,253422,REDACTED,11/05/2023,150,750,900,Development Management,Agency Staff,60011
http://statistics.data.gov.uk/id/local-authority/12UE,Huntingdonshire District Council,202458,CARRINGTON WEST LTD,80039,06/04/2023,253422,REDACTED,11/05/2023,335.34,1676.7,2012.04,Development Management,Agency Staff,60011
http://statistics.data.gov.uk/id/local-authority/12UE,Huntingdonshire District Council,202458,CARRINGTON WEST LTD,77437,16/03/2023,249960,REDACTED,14/04/2023,301.81,1509.03,1810.84,Development Management,Agency Staff,60011
http://statistics.data.gov.uk/id/local-authority/12UE,Huntingdonshire District Council,202458,CARRINGTON WEST LTD,77193,09/03/2023,248809,REDACTED,06/04/2023,275.72,1378.62,1654.34,Development Management,Agency Staff,60011
http://statistics.data.gov.uk/id/local-authority/12UE,Huntingdonshire District Council,202458,CARRINGTON WEST LTD,78364,30/03/2023,252276,REDACTED,04/05/2023,275.72,1378.62,1654.34,Development Management,Agency Staff,60011
http://statistics.data.gov.uk/id/local-authority/12UE,Huntingdonshire District Council,202458,CARRINGTON WEST LTD,78945,13/04/2023,254359,REDACTED,09/05/2023,270.13,1350.67,1620.8,Development Management,Agency Staff,60011
http://statistics.data.gov.uk/id/local-authority/12UE,Huntingdonshire District Council,202458,CARRINGTON WEST LTD,78508,30/03/2023,252277,REDACTED,04/05/2023,249.64,1248.21,1497.85,Development Management,Agency Staff,60011
http://statistics.data.gov.uk/id/local-authority/12UE,Huntingdonshire District Council,202458,CARRINGTON WEST LTD,77769,09/03/2023,248810,REDACTED,06/04/2023,382.95,1914.75,2297.7,Development Management,Consultancy Fees,62400
http://statistics.data.gov.uk/id/local-authority/12UE,Huntingdonshire District Council,202458,CARRINGTON WEST LTD,77774,09/03/2023,248811,REDACTED,06/04/2023,354.49,1772.44,2126.93,Development Management,Consultancy Fees,62400
http://statistics.data.gov.uk/id/local-authority/12UE,Huntingdonshire District Council,202376,CATERING HYGIENE SPECIALISTS,82084,06/06/2023,210460,ZEST Deep Clean,30/06/2023,323.4,1617,1940.4,OLSI - Site & Centre Management,Maintenance - Building,60201
http://statistics.data.gov.uk/id/local-authority/12UE,Huntingdonshire District Council,201209,Catworth Parish Council,79292,25/04/2023,PARISH PRECEPT APR 23,Parish Precept - April 2023,25/04/2023,0,15164,15164,P C Precept Catworth,Precepts,66301
http://statistics.data.gov.uk/id/local-authority/12UE,Huntingdonshire District Council,200987,Causeway Technologies Limited,79906,31/03/2023,MI128006,IT Software - Alloy System 23/24,09/05/2023,5114.81,25574.03,30688.84,Cambridge City Business Case ,Ict Software,64071
http://statistics.data.gov.uk/id/local-authority/12UE,Huntingdonshire District Council,200987,Causeway Technologies Limited,80239,31/03/2023,JI53100,IT Software - Alloy Licence - City,15/05/2023,432.24,2161.2,2593.44,City Recoverable,Ict Software,64071
http://statistics.data.gov.uk/id/local-authority/12UE,Huntingdonshire District Council,200987,Causeway Technologies Limited,78915,14/04/2023,MI127953,IT Software - Alloy System 23/24,11/05/2023,9005.08,45025.4,54030.48,HDC Recoverable,Ict Software,64071
http://statistics.data.gov.uk/id/local-authority/12UE,Huntingdonshire District Council,200987,Causeway Technologies Limited,80174,03/04/2023,PS79096,3CICT PROJECT 9681,19/05/2023,300,1500,1800,HDC Recoverable,Ict Software,64071
http://statistics.data.gov.uk/id/local-authority/12UE,Huntingdonshire District Council,200987,Causeway Technologies Limited,78914,14/03/2023,MI127954,IT Software - Alloy System 23/24,20/04/2023,9221.32,46106.58,55327.9,SCDC Recoverable,Ict Software,64071
http://statistics.data.gov.uk/id/local-authority/12UE,Huntingdonshire District Council,201011,CENTENNIAL PROPERTY LTD,78191,01/04/2023,CEN-202303025,TA - 01-31.03.23,06/04/2023,187.02,935.1,1122.12,Homelessness,B&B Accommodation,64401
http://statistics.data.gov.uk/id/local-authority/12UE,Huntingdonshire District Council,201011,CENTENNIAL PROPERTY LTD,78191,01/04/2023,CEN-202303025,TA - 01-31.03.23,06/04/2023,243.5,1217.5,1461,Homelessness,B&B Accommodation,64401
http://statistics.data.gov.uk/id/local-authority/12UE,Huntingdonshire District Council,201011,CENTENNIAL PROPERTY LTD,79778,01/05/2023,CEN-202304025,TA - 01-30.04.23,09/05/2023,252,1260,1512,Homelessness,B&B Accommodation,64401
http://statistics.data.gov.uk/id/local-authority/12UE,Huntingdonshire District Council,201011,CENTENNIAL PROPERTY LTD,81425,01/06/2023,CEN-202305025,TA - May23,08/06/2023,176.4,882,1058.4,Homelessness,B&B Accommodation,64401
http://statistics.data.gov.uk/id/local-authority/12UE,Huntingdonshire District Council,201011,CENTENNIAL PROPERTY LTD,78191,01/04/2023,CEN-202303025,TA - 01-31.03.23,06/04/2023,33.66,168.32,201.98,Homelessness,B&B Accommodation,64401
http://statistics.data.gov.uk/id/local-authority/12UE,Huntingdonshire District Council,201011,CENTENNIAL PROPERTY LTD,78191,01/04/2023,CEN-202303025,TA - 01-31.03.23,06/04/2023,280.53,1402.66,1683.19,Homelessness,B&B Accommodation,64401
http://statistics.data.gov.uk/id/local-authority/12UE,Huntingdonshire District Council,201011,CENTENNIAL PROPERTY LTD,78191,01/04/2023,CEN-202303025,TA - 01-31.03.23,06/04/2023,243.5,1217.5,1461,Homelessness,B&B Accommodation,64401
http://statistics.data.gov.uk/id/local-authority/12UE,Huntingdonshire District Council,201011,CENTENNIAL PROPERTY LTD,79778,01/05/2023,CEN-202304025,TA - 01-30.04.23,09/05/2023,252,1260,1512,Homelessness,B&B Accommodation,64401
http://statistics.data.gov.uk/id/local-authority/12UE,Huntingdonshire District Council,201011,CENTENNIAL PROPERTY LTD,81425,01/06/2023,CEN-202305025,TA - May23,08/06/2023,260.4,1302,1562.4,Homelessness,B&B Accommodation,64401
http://statistics.data.gov.uk/id/local-authority/12UE,Huntingdonshire District Council,201011,CENTENNIAL PROPERTY LTD,78191,01/04/2023,CEN-202303025,TA - 01-31.03.23,06/04/2023,289.88,1449.41,1739.29,Homelessness,B&B Accommodation,64401
http://statistics.data.gov.uk/id/local-authority/12UE,Huntingdonshire District Council,201011,CENTENNIAL PROPERTY LTD,79778,01/05/2023,CEN-202304025,TA - 01-30.04.23,09/05/2023,300,1500,1800,Homelessness,B&B Accommodation,64401
http://statistics.data.gov.uk/id/local-authority/12UE,Huntingdonshire District Council,201011,CENTENNIAL PROPERTY LTD,81425,01/06/2023,CEN-202305025,TA - May23,08/06/2023,10,50,60,Homelessness,B&B Accommodation,64401
http://statistics.data.gov.uk/id/local-authority/12UE,Huntingdonshire District Council,201011,CENTENNIAL PROPERTY LTD,78191,01/04/2023,CEN-202303025,TA - 01-31.03.23,06/04/2023,289.88,1449.41,1739.29,Homelessness,B&B Accommodation,64401
http://statistics.data.gov.uk/id/local-authority/12UE,Huntingdonshire District Council,201011,CENTENNIAL PROPERTY LTD,79778,01/05/2023,CEN-202304025,TA - 01-30.04.23,09/05/2023,300,1500,1800,Homelessness,B&B Accommodation,64401
http://statistics.data.gov.uk/id/local-authority/12UE,Huntingdonshire District Council,201011,CENTENNIAL PROPERTY LTD,81425,01/06/2023,CEN-202305025,TA - May23,08/06/2023,310,1550,1860,Homelessness,B&B Accommodation,64401
http://statistics.data.gov.uk/id/local-authority/12UE,Huntingdonshire District Council,201011,CENTENNIAL PROPERTY LTD,78191,01/04/2023,CEN-202303025,TA - 01-31.03.23,06/04/2023,289.88,1449.41,1739.29,Homelessness,B&B Accommodation,64401
http://statistics.data.gov.uk/id/local-authority/12UE,Huntingdonshire District Council,201011,CENTENNIAL PROPERTY LTD,79778,01/05/2023,CEN-202304025,TA - 01-30.04.23,09/05/2023,300,1500,1800,Homelessness,B&B Accommodation,64401
http://statistics.data.gov.uk/id/local-authority/12UE,Huntingdonshire District Council,201011,CENTENNIAL PROPERTY LTD,81425,01/06/2023,CEN-202305025,TA - May23,08/06/2023,310,1550,1860,Homelessness,B&B Accommodation,64401
http://statistics.data.gov.uk/id/local-authority/12UE,Huntingdonshire District Council,201011,CENTENNIAL PROPERTY LTD,78191,01/04/2023,CEN-202303025,TA - 01-31.03.23,06/04/2023,289.88,1449.41,1739.29,Homelessness,B&B Accommodation,64401
http://statistics.data.gov.uk/id/local-authority/12UE,Huntingdonshire District Council,201011,CENTENNIAL PROPERTY LTD,79778,01/05/2023,CEN-202304025,TA - 01-30.04.23,09/05/2023,300,1500,1800,Homelessness,B&B Accommodation,64401
http://statistics.data.gov.uk/id/local-authority/12UE,Huntingdonshire District Council,201011,CENTENNIAL PROPERTY LTD,81425,01/06/2023,CEN-202305025,TA - May23,08/06/2023,310,1550,1860,Homelessness,B&B Accommodation,64401
http://statistics.data.gov.uk/id/local-authority/12UE,Huntingdonshire District Council,201011,CENTENNIAL PROPERTY LTD,78191,01/04/2023,CEN-202303025,TA - 01-31.03.23,06/04/2023,347.86,1739.29,2087.15,Homelessness,B&B Accommodation,64401
http://statistics.data.gov.uk/id/local-authority/12UE,Huntingdonshire District Council,201011,CENTENNIAL PROPERTY LTD,79778,01/05/2023,CEN-202304025,TA - 01-30.04.23,09/05/2023,360,1800,2160,Homelessness,B&B Accommodation,64401
http://statistics.data.gov.uk/id/local-authority/12UE,Huntingdonshire District Council,201011,CENTENNIAL PROPERTY LTD,81425,01/06/2023,CEN-202305025,TA - May23,08/06/2023,372,1860,2232,Homelessness,B&B Accommodation,64401
http://statistics.data.gov.uk/id/local-authority/12UE,Huntingdonshire District Council,201011,CENTENNIAL PROPERTY LTD,79778,01/05/2023,CEN-202304025,TA - 01-30.04.23,09/05/2023,300,1500,1800,Homelessness,B&B Accommodation,64401
http://statistics.data.gov.uk/id/local-authority/12UE,Huntingdonshire District Council,201011,CENTENNIAL PROPERTY LTD,81425,01/06/2023,CEN-202305025,TA - May23,08/06/2023,310,1550,1860,Homelessness,B&B Accommodation,64401
http://statistics.data.gov.uk/id/local-authority/12UE,Huntingdonshire District Council,201011,CENTENNIAL PROPERTY LTD,79778,01/05/2023,CEN-202304025,TA - 01-30.04.23,09/05/2023,100,500,600,Homelessness,B&B Accommodation,64401
http://statistics.data.gov.uk/id/local-authority/12UE,Huntingdonshire District Council,201011,CENTENNIAL PROPERTY LTD,81425,01/06/2023,CEN-202305025,TA - May23,08/06/2023,310,1550,1860,Homelessness,B&B Accommodation,64401
http://statistics.data.gov.uk/id/local-authority/12UE,Huntingdonshire District Council,201011,CENTENNIAL PROPERTY LTD,81425,01/06/2023,CEN-202305025,TA - May23,08/06/2023,52,260,312,Homelessness,B&B Accommodation,64401
http://statistics.data.gov.uk/id/local-authority/12UE,Huntingdonshire District Council,200176,CENTRAL ENGLAND CO-OPERATIVE LTD CENTRAL ENGLAND CO-OPERATIVE LTD,77657,22/03/2023,60340219/522664 0,Cremation & Burial,14/04/2023,0,1460,1460,Burials Under Health Act,Cremation And Burial Costs,62600
http://statistics.data.gov.uk/id/local-authority/12UE,Huntingdonshire District Council,200176,CENTRAL ENGLAND CO-OPERATIVE LTD CENTRAL ENGLAND CO-OPERATIVE LTD,80867,30/05/2023,759458,Returned Payment,19/05/2023,0,1423,1423,Paymaster Account,Paymaster Account,10082
http://statistics.data.gov.uk/id/local-authority/12UE,Huntingdonshire District Council,200176,CENTRAL ENGLAND CO-OPERATIVE LTD CENTRAL ENGLAND CO-OPERATIVE LTD,80555,22/05/2023,759199,Returned Payment,11/05/2023,0,1415,1415,Paymaster Account,Paymaster Account,10082
http://statistics.data.gov.uk/id/local-authority/12UE,Huntingdonshire District Council,200176,CENTRAL ENGLAND CO-OPERATIVE LTD CENTRAL ENGLAND CO-OPERATIVE LTD,82469,30/06/2023,761048,Returned BACS,22/06/2023,0,1378,1378,Paymaster Account,Paymaster Account,10082
http://statistics.data.gov.uk/id/local-authority/12UE,Huntingdonshire District Council,200178,CENTRE THEATRE PLAYERS CENTRE THEATRE PLAYERS,80564,15/05/2023,BURGESS HALL PERFORMANCE,BH 5 Piece Band x4 Nights,22/05/2023,0,1600,1600,OLSI - Burgess Hall,Materials,61709
http://statistics.data.gov.uk/id/local-authority/12UE,Huntingdonshire District Council,201486,CENTRICA BUSINESS SOLUTIONS UK LTD,82288,25/05/2023,23501454,Premier Plus Maintenance,30/06/2023,3042.99,15214.93,18257.92,OLH - Site & Centre Management,Maintenance - Mechanical And Electrical,60203
http://statistics.data.gov.uk/id/local-authority/12UE,Huntingdonshire District Council,201486,CENTRICA BUSINESS SOLUTIONS UK LTD,82287,25/05/2023,23501461,Premier Plus Maintenance,30/06/2023,3042.99,15214.93,18257.92,OLSI - Site & Centre Management,Maintenance - Mechanical And Electrical,60203
http://statistics.data.gov.uk/id/local-authority/12UE,Huntingdonshire District Council,200179,CERTAS ENERGY T/A PACE FUELCARE CERTAS ENERGY T/A PACE FUELCARE,81036,26/05/2023,8742614,OLSIO 092 Diesel BS EN590 Nov22,15/06/2023,198.38,991.91,1190.29,OLSIO - Site & Centre Management,Fuel,60902
http://statistics.data.gov.uk/id/local-authority/12UE,Huntingdonshire District Council,200179,CERTAS ENERGY T/A PACE FUELCARE CERTAS ENERGY T/A PACE FUELCARE,78309,21/03/2023,8488200,"Transport Fuel 30,000L Road Diesel",14/04/2023,6929.17,34645.85,41575.02,Operations Diesel Stock,General Stock Account,11601
http://statistics.data.gov.uk/id/local-authority/12UE,Huntingdonshire District Council,200179,CERTAS ENERGY T/A PACE FUELCARE CERTAS ENERGY T/A PACE FUELCARE,78811,11/04/2023,8587234,"Transport Fuel 30,000L Road Diesel",04/05/2023,6904.2,34521,41425.2,Operations Diesel Stock,General Stock Account,11601
http://statistics.data.gov.uk/id/local-authority/12UE,Huntingdonshire District Council,200179,CERTAS ENERGY T/A PACE FUELCARE CERTAS ENERGY T/A PACE FUELCARE,79889,02/05/2023,8661504,"Transport Fuel 30,000L Road Diesel",25/05/2023,6501,32505,39006,Operations Diesel Stock,General Stock Account,11601
http://statistics.data.gov.uk/id/local-authority/12UE,Huntingdonshire District Council,200179,CERTAS ENERGY T/A PACE FUELCARE CERTAS ENERGY T/A PACE FUELCARE,81542,24/05/2023,8730318,"Transport Fuel 30,000L Road Diesel",15/06/2023,6368.79,31843.94,38212.73,Operations Diesel Stock,General Stock Account,11601
http://statistics.data.gov.uk/id/local-authority/12UE,Huntingdonshire District Council,202611,CHAMPION PLUMBING & HEATING SERVICES LTD,79996,04/05/2023,CPHS-3380,REDACTED,11/05/2023,0,5619.6,5619.6,Disables Facilities Grants,Mandatory Grants,64601
http://statistics.data.gov.uk/id/local-authority/12UE,Huntingdonshire District Council,201078,CHARTERED INSTITUTE OF ENVIRONMENTAL HEALTH,78660,28/02/2023,PS018275,Staff Recruitment Costs,14/04/2023,160,800,960,Env Protection,Staff Recruitment Costs,60116
http://statistics.data.gov.uk/id/local-authority/12UE,Huntingdonshire District Council,201210,Chesterton Parish Council,79292,25/04/2023,PARISH PRECEPT APR 23,Parish Precept - April 2023,25/04/2023,0,1500,1500,P C Precept Chesterton,Precepts,66301
http://statistics.data.gov.uk/id/local-authority/12UE,Huntingdonshire District Council,203176,Chin Min Ltd T/A Dor-2-Dor Cambridge,81674,06/06/2023,INV-1047,Jun23 Leaflet Drop,15/06/2023,130,650,780,OLSI - Site & Centre Management,"Advertising, Publicity And Marketing",62005
http://statistics.data.gov.uk/id/local-authority/12UE,Huntingdonshire District Council,203176,Chin Min Ltd T/A Dor-2-Dor Cambridge,79717,03/05/2023,INV-1026,"6,500 Leaflet Drop May23",04/05/2023,123.5,617.5,741,OLSI - Site & Centre Management,"Advertising, Publicity And Marketing",62005
http://statistics.data.gov.uk/id/local-authority/12UE,Huntingdonshire District Council,203176,Chin Min Ltd T/A Dor-2-Dor Cambridge,81899,09/06/2023,INV-1048,Leaflet Distribution 10.06-31.07.23,22/06/2023,200,1000,1200,OLSN - Site & Centre Management,"Advertising, Publicity And Marketing",62005
http://statistics.data.gov.uk/id/local-authority/12UE,Huntingdonshire District Council,203176,Chin Min Ltd T/A Dor-2-Dor Cambridge,79417,26/04/2023,INV-1021,"Leaflet Distribution (6,500 Households)",04/05/2023,130,650,780,OLSN - Site & Centre Management,"Advertising, Publicity And Marketing",62005
http://statistics.data.gov.uk/id/local-authority/12UE,Huntingdonshire District Council,200190,CHIPSIDE CHIPSIDE,81754,31/05/2023,S233989,MiPermitFee May23,22/06/2023,509.17,2545.83,3055,Car Park Management,Contract Charges ,61800
http://statistics.data.gov.uk/id/local-authority/12UE,Huntingdonshire District Council,200190,CHIPSIDE CHIPSIDE,81754,31/05/2023,S233989,MiPermitFee May23,22/06/2023,3.08,15.42,18.5,Car Park Management,Contract Charges ,61800
http://statistics.data.gov.uk/id/local-authority/12UE,Huntingdonshire District Council,200190,CHIPSIDE CHIPSIDE,80630,30/04/2023,S233525,MiPermit Fee Apr23,25/05/2023,454.33,2271.67,2726,Car Park Management,Contract Charges ,61800
http://statistics.data.gov.uk/id/local-authority/12UE,Huntingdonshire District Council,200190,CHIPSIDE CHIPSIDE,80630,30/04/2023,S233525,MiPermit Fee Apr23,25/05/2023,0.7,3.5,4.2,Car Park Management,Contract Charges ,61800
http://statistics.data.gov.uk/id/local-authority/12UE,Huntingdonshire District Council,200190,CHIPSIDE CHIPSIDE,80629,30/04/2023,S233619,MiPermit Charge Apr23,25/05/2023,104.94,524.68,629.62,Car Park Management,Contract Charges ,61800
http://statistics.data.gov.uk/id/local-authority/12UE,Huntingdonshire District Council,200190,CHIPSIDE CHIPSIDE,80629,30/04/2023,S233619,MiPermit Charge Apr23,25/05/2023,0.1,0.48,0.58,Car Park Management,Contract Charges ,61800
http://statistics.data.gov.uk/id/local-authority/12UE,Huntingdonshire District Council,200190,CHIPSIDE CHIPSIDE,81753,31/05/2023,S234078,MiPermitCharge May23,22/06/2023,100.83,504.15,604.98,Car Park Management,Contract Charges ,61800
http://statistics.data.gov.uk/id/local-authority/12UE,Huntingdonshire District Council,200190,CHIPSIDE CHIPSIDE,81753,31/05/2023,S234078,MiPermitCharge May23,22/06/2023,0.26,1.3,1.56,Car Park Management,Contract Charges ,61800
http://statistics.data.gov.uk/id/local-authority/12UE,Huntingdonshire District Council,200190,CHIPSIDE CHIPSIDE,82373,23/05/2023,S233690,Annual Sim Jun23-Mar24,30/06/2023,152,760,912,Car Park Management,Equipment,61713
http://statistics.data.gov.uk/id/local-authority/12UE,Huntingdonshire District Council,200190,CHIPSIDE CHIPSIDE,79391,21/04/2023,S233225,Equipment,19/05/2023,122,610,732,Car Park Management,Equipment,61713
http://statistics.data.gov.uk/id/local-authority/12UE,Huntingdonshire District Council,200190,CHIPSIDE CHIPSIDE,80629,30/04/2023,S233619,MiPermit Charge Apr23,25/05/2023,-0.01,0,-0.01,Finance,Over/Under VAT Rounding,68350
http://statistics.data.gov.uk/id/local-authority/12UE,Huntingdonshire District Council,202708,CINOS LIMITED,80738,24/05/2023,UK14899,IT Software,15/06/2023,2124,10620,12744,3CICT NON STAFF HOLDING ACCOUNT,Ict Software,64071
http://statistics.data.gov.uk/id/local-authority/12UE,Huntingdonshire District Council,202708,CINOS LIMITED,81164,24/05/2023,UK14898,IT Software,15/06/2023,261.18,1305.92,1567.1,Cambridge City Business Case ,Ict Software,64071
http://statistics.data.gov.uk/id/local-authority/12UE,Huntingdonshire District Council,202708,CINOS LIMITED,81164,24/05/2023,UK14898,IT Software,15/06/2023,13691.26,68456.31,82147.57,Cambridge City Business Case ,Ict Software,64071
http://statistics.data.gov.uk/id/local-authority/12UE,Huntingdonshire District Council,202708,CINOS LIMITED,80210,12/05/2023,UK14648,3CICT MAY 23,01/06/2023,1305.92,6529.6,7835.52,Cambridge City Business Case ,Ict Software,64071
http://statistics.data.gov.uk/id/local-authority/12UE,Huntingdonshire District Council,202708,CINOS LIMITED,80173,25/04/2023,UK14278,3CICT APRIL 23,19/05/2023,1293.31,6466.53,7759.84,Cambridge City Business Case ,Ict Software,64071
http://statistics.data.gov.uk/id/local-authority/12UE,Huntingdonshire District Council,202708,CINOS LIMITED,80737,24/05/2023,UK14897,IT Software,20/06/2023,15575.57,77877.84,93453.41,HDC Business Case ,Ict Software,64071
http://statistics.data.gov.uk/id/local-authority/12UE,Huntingdonshire District Council,202708,CINOS LIMITED,80209,12/05/2023,UK14649,3CICT APRIL 23,01/06/2023,1526.13,7630.65,9156.78,HDC Business Case ,Ict Software,64071
http://statistics.data.gov.uk/id/local-authority/12UE,Huntingdonshire District Council,202708,CINOS LIMITED,80099,11/05/2023,UK14278-A,3CICT HEADSET,01/06/2023,1521.32,7606.59,9127.91,HDC Business Case ,Ict Software,64071
http://statistics.data.gov.uk/id/local-authority/12UE,Huntingdonshire District Council,202708,CINOS LIMITED,81164,24/05/2023,UK14898,IT Software,15/06/2023,-0.01,0,-0.01,Finance,Over/Under VAT Rounding,68350
http://statistics.data.gov.uk/id/local-authority/12UE,Huntingdonshire District Council,200195,CIPFA BUSINESS LIMITED CIPFA BUSINESS LIMITED,79133,20/04/2023,3168879,CIPFA Publications Subscription 23/24,19/05/2023,0,4055,4055,Finance,"Books, Publications And Resources",62003
http://statistics.data.gov.uk/id/local-authority/12UE,Huntingdonshire District Council,201192,CITIZENS ADVICE RURAL CAMBS,80572,19/05/2023,HDC VOLUNTARY SECTOR APR-SEP23,HDC Voluntary Sector Apr-Sep23,01/06/2023,0,57850,57850,Voluntary Sector Grants,Grants And Contributions,64600
http://statistics.data.gov.uk/id/local-authority/12UE,Huntingdonshire District Council,200197,CIVICA UK LTD CIVICA UK LTD,81405,30/05/2023,C/MG274717,Consultancy Fees,22/06/2023,449.7,2248.5,2698.2,HDC Business Case ,Consultancy Fees,62400
http://statistics.data.gov.uk/id/local-authority/12UE,Huntingdonshire District Council,200197,CIVICA UK LTD CIVICA UK LTD,81064,19/05/2023,CMG274387,IT Software - Maintenance&Support,08/06/2023,1822.2,9111,10933.2,Cambridge City Business Case ,Ict Software,64071
http://statistics.data.gov.uk/id/local-authority/12UE,Huntingdonshire District Council,200197,CIVICA UK LTD CIVICA UK LTD,77439,13/03/2023,C/XP267444,IT Software,06/04/2023,2565.2,12826,15391.2,HDC Business Case ,Ict Software,64071
http://statistics.data.gov.uk/id/local-authority/12UE,Huntingdonshire District Council,200197,CIVICA UK LTD CIVICA UK LTD,81334,25/04/2023,M/RB114557,IT Software,08/06/2023,209.58,1047.91,1257.49,HDC Business Case ,Ict Software,64071
http://statistics.data.gov.uk/id/local-authority/12UE,Huntingdonshire District Council,200197,CIVICA UK LTD CIVICA UK LTD,81406,26/05/2023,C/MG274386,IT Software - Modern.gov Annual Licenses,15/06/2023,1822.2,9111,10933.2,SCDC Business Case ,Ict Software,64071
http://statistics.data.gov.uk/id/local-authority/12UE,Huntingdonshire District Council,200197,CIVICA UK LTD CIVICA UK LTD,81406,26/05/2023,C/MG274386,IT Software - Modern.gov Annual Licenses,15/06/2023,377,1885,2262,SCDC Business Case ,Ict Software,64071
http://statistics.data.gov.uk/id/local-authority/12UE,Huntingdonshire District Council,200197,CIVICA UK LTD CIVICA UK LTD,81406,26/05/2023,C/MG274386,IT Software - Modern.gov Annual Licenses,15/06/2023,770,3850,4620,SCDC Business Case ,Ict Software,64071
http://statistics.data.gov.uk/id/local-authority/12UE,Huntingdonshire District Council,200197,CIVICA UK LTD CIVICA UK LTD,81406,26/05/2023,C/MG274386,IT Software - Modern.gov Annual Licenses,15/06/2023,434,2170,2604,SCDC Business Case ,Ict Software,64071
http://statistics.data.gov.uk/id/local-authority/12UE,Huntingdonshire District Council,200197,CIVICA UK LTD CIVICA UK LTD,77436,13/03/2023,C/XP267462,IT Software,06/04/2023,2707.2,13536,16243.2,SCDC Business Case ,Ict Software,64071
http://statistics.data.gov.uk/id/local-authority/12UE,Huntingdonshire District Council,200197,CIVICA UK LTD CIVICA UK LTD,77640,20/03/2023,C/RB267941,IT Software,14/04/2023,2107.1,10535.5,12642.6,SCDC Recoverable,Ict Software,64071
http://statistics.data.gov.uk/id/local-authority/12UE,Huntingdonshire District Council,200197,CIVICA UK LTD CIVICA UK LTD,77640,20/03/2023,C/RB267941,IT Software,14/04/2023,2107.1,10535.5,12642.6,SCDC Recoverable,Ict Software,64071
http://statistics.data.gov.uk/id/local-authority/12UE,Huntingdonshire District Council,203191,Cleveland Containers Ltd,77733,20/03/2023,124031,Building Construction,14/04/2023,648,3240,3888,Paxton Pits,Building Construction,60269
http://statistics.data.gov.uk/id/local-authority/12UE,Huntingdonshire District Council,202947,CMPNY B Ltd,77393,16/03/2023,11,Professional Charges,14/04/2023,0,2550,2550,Active Lifestyles Gen Mng't,Professional Services - General,62402
http://statistics.data.gov.uk/id/local-authority/12UE,Huntingdonshire District Council,201012,COACH & HORSES,80546,21/05/2023,593,TA - 15-21.05.23,25/05/2023,40,200,240,Homelessness,B&B Accommodation,64401
http://statistics.data.gov.uk/id/local-authority/12UE,Huntingdonshire District Council,201012,COACH & HORSES,78369,02/04/2023,586,TA - 27.03-02.04.23,11/04/2023,82.14,410.72,492.86,Homelessness,B&B Accommodation,64401
http://statistics.data.gov.uk/id/local-authority/12UE,Huntingdonshire District Council,201012,COACH & HORSES,80546,21/05/2023,593,TA - 15-21.05.23,25/05/2023,70,350,420,Homelessness,B&B Accommodation,64401
http://statistics.data.gov.uk/id/local-authority/12UE,Huntingdonshire District Council,201012,COACH & HORSES,81429,28/05/2023,594,TA - 22-28.05.23,08/06/2023,70,350,420,Homelessness,B&B Accommodation,64401
http://statistics.data.gov.uk/id/local-authority/12UE,Huntingdonshire District Council,201012,COACH & HORSES,78336,26/03/2023,585,TA - 20-26.03.23,11/04/2023,70,350,420,Homelessness,B&B Accommodation,64401
http://statistics.data.gov.uk/id/local-authority/12UE,Huntingdonshire District Council,201012,COACH & HORSES,80235,14/05/2023,592,TA - 08.05.23-14.05.23,19/05/2023,70,350,420,Homelessness,B&B Accommodation,64401
http://statistics.data.gov.uk/id/local-authority/12UE,Huntingdonshire District Council,201012,COACH & HORSES,80037,07/05/2023,591,ta we 070523,11/05/2023,70,350,420,Homelessness,B&B Accommodation,64401
http://statistics.data.gov.uk/id/local-authority/12UE,Huntingdonshire District Council,201012,COACH & HORSES,78845,16/04/2023,588,TA - 10-16.04.23,20/04/2023,70,350,420,Homelessness,B&B Accommodation,64401
http://statistics.data.gov.uk/id/local-authority/12UE,Huntingdonshire District Council,201012,COACH & HORSES,78369,02/04/2023,586,TA - 27.03-02.04.23,11/04/2023,57.5,287.5,345,Homelessness,B&B Accommodation,64401
http://statistics.data.gov.uk/id/local-authority/12UE,Huntingdonshire District Council,201012,COACH & HORSES,81432,04/06/2023,595,TA - 29.05-04.06.23,08/06/2023,20,100,120,Homelessness,B&B Accommodation,64401
http://statistics.data.gov.uk/id/local-authority/12UE,Huntingdonshire District Council,201012,COACH & HORSES,79267,23/04/2023,589,TA - 17-23.04.23,04/05/2023,70,350,420,Homelessness,B&B Accommodation,64401
http://statistics.data.gov.uk/id/local-authority/12UE,Huntingdonshire District Council,201012,COACH & HORSES,79962,30/04/2023,590,TA - 24-30.04.23,09/05/2023,70,350,420,Homelessness,B&B Accommodation,64401
http://statistics.data.gov.uk/id/local-authority/12UE,Huntingdonshire District Council,201012,COACH & HORSES,78302,09/04/2023,587,TA WE 090423,14/04/2023,70,350,420,Homelessness,B&B Accommodation,64401
http://statistics.data.gov.uk/id/local-authority/12UE,Huntingdonshire District Council,201012,COACH & HORSES,78336,26/03/2023,585,TA - 20-26.03.23,11/04/2023,70,350,420,Homelessness,B&B Accommodation,64401
http://statistics.data.gov.uk/id/local-authority/12UE,Huntingdonshire District Council,201012,COACH & HORSES,78369,02/04/2023,586,TA - 27.03-02.04.23,11/04/2023,24.64,123.22,147.86,Homelessness,B&B Accommodation,64401
http://statistics.data.gov.uk/id/local-authority/12UE,Huntingdonshire District Council,201012,COACH & HORSES,80546,21/05/2023,593,TA - 15-21.05.23,25/05/2023,50,250,300,Homelessness,B&B Accommodation,64401
http://statistics.data.gov.uk/id/local-authority/12UE,Huntingdonshire District Council,201012,COACH & HORSES,81429,28/05/2023,594,TA - 22-28.05.23,08/06/2023,70,350,420,Homelessness,B&B Accommodation,64401
http://statistics.data.gov.uk/id/local-authority/12UE,Huntingdonshire District Council,201012,COACH & HORSES,78336,26/03/2023,585,TA - 20-26.03.23,11/04/2023,70,350,420,Homelessness,B&B Accommodation,64401
http://statistics.data.gov.uk/id/local-authority/12UE,Huntingdonshire District Council,201012,COACH & HORSES,78845,16/04/2023,588,TA - 10-16.04.23,20/04/2023,70,350,420,Homelessness,B&B Accommodation,64401
http://statistics.data.gov.uk/id/local-authority/12UE,Huntingdonshire District Council,201012,COACH & HORSES,78369,02/04/2023,586,TA - 27.03-02.04.23,11/04/2023,57.5,287.5,345,Homelessness,B&B Accommodation,64401
http://statistics.data.gov.uk/id/local-authority/12UE,Huntingdonshire District Council,201012,COACH & HORSES,81432,04/06/2023,595,TA - 29.05-04.06.23,08/06/2023,70,350,420,Homelessness,B&B Accommodation,64401
http://statistics.data.gov.uk/id/local-authority/12UE,Huntingdonshire District Council,201012,COACH & HORSES,81786,11/06/2023,596,TA - 05-11.06.23,20/06/2023,70,350,420,Homelessness,B&B Accommodation,64401
http://statistics.data.gov.uk/id/local-authority/12UE,Huntingdonshire District Council,201012,COACH & HORSES,79267,23/04/2023,589,TA - 17-23.04.23,04/05/2023,70,350,420,Homelessness,B&B Accommodation,64401
http://statistics.data.gov.uk/id/local-authority/12UE,Huntingdonshire District Council,201012,COACH & HORSES,82058,18/06/2023,597,TA - 12-18.06.23,26/06/2023,70,350,420,Homelessness,B&B Accommodation,64401
http://statistics.data.gov.uk/id/local-authority/12UE,Huntingdonshire District Council,201012,COACH & HORSES,78302,09/04/2023,587,TA WE 090423,14/04/2023,70,350,420,Homelessness,B&B Accommodation,64401
http://statistics.data.gov.uk/id/local-authority/12UE,Huntingdonshire District Council,201012,COACH & HORSES,82286,25/06/2023,598,TA - 19-25.06.23,30/06/2023,70,350,420,Homelessness,B&B Accommodation,64401
http://statistics.data.gov.uk/id/local-authority/12UE,Huntingdonshire District Council,201012,COACH & HORSES,80546,21/05/2023,593,TA - 15-21.05.23,25/05/2023,70,350,420,Homelessness,B&B Accommodation,64401
http://statistics.data.gov.uk/id/local-authority/12UE,Huntingdonshire District Council,201012,COACH & HORSES,81429,28/05/2023,594,TA - 22-28.05.23,08/06/2023,70,350,420,Homelessness,B&B Accommodation,64401
http://statistics.data.gov.uk/id/local-authority/12UE,Huntingdonshire District Council,201012,COACH & HORSES,81432,04/06/2023,595,TA - 29.05-04.06.23,08/06/2023,70,350,420,Homelessness,B&B Accommodation,64401
http://statistics.data.gov.uk/id/local-authority/12UE,Huntingdonshire District Council,201012,COACH & HORSES,81786,11/06/2023,596,TA - 05-11.06.23,20/06/2023,70,350,420,Homelessness,B&B Accommodation,64401
http://statistics.data.gov.uk/id/local-authority/12UE,Huntingdonshire District Council,201012,COACH & HORSES,82058,18/06/2023,597,TA - 12-18.06.23,26/06/2023,70,350,420,Homelessness,B&B Accommodation,64401
http://statistics.data.gov.uk/id/local-authority/12UE,Huntingdonshire District Council,201012,COACH & HORSES,82286,25/06/2023,598,TA - 19-25.06.23,30/06/2023,70,350,420,Homelessness,B&B Accommodation,64401
http://statistics.data.gov.uk/id/local-authority/12UE,Huntingdonshire District Council,201012,COACH & HORSES,78336,26/03/2023,585,TA - 20-26.03.23,11/04/2023,10,50,60,Homelessness,B&B Accommodation,64401
http://statistics.data.gov.uk/id/local-authority/12UE,Huntingdonshire District Council,201012,COACH & HORSES,80546,21/05/2023,593,TA - 15-21.05.23,25/05/2023,70,350,420,Homelessness,B&B Accommodation,64401
http://statistics.data.gov.uk/id/local-authority/12UE,Huntingdonshire District Council,201012,COACH & HORSES,81429,28/05/2023,594,TA - 22-28.05.23,08/06/2023,40,200,240,Homelessness,B&B Accommodation,64401
http://statistics.data.gov.uk/id/local-authority/12UE,Huntingdonshire District Council,201012,COACH & HORSES,80235,14/05/2023,592,TA - 08.05.23-14.05.23,19/05/2023,70,350,420,Homelessness,B&B Accommodation,64401
http://statistics.data.gov.uk/id/local-authority/12UE,Huntingdonshire District Council,201012,COACH & HORSES,80037,07/05/2023,591,ta we 070523,11/05/2023,70,350,420,Homelessness,B&B Accommodation,64401
http://statistics.data.gov.uk/id/local-authority/12UE,Huntingdonshire District Council,201012,COACH & HORSES,79962,30/04/2023,590,TA - 24-30.04.23,09/05/2023,30,150,180,Homelessness,B&B Accommodation,64401
http://statistics.data.gov.uk/id/local-authority/12UE,Huntingdonshire District Council,201012,COACH & HORSES,80546,21/05/2023,593,TA - 15-21.05.23,25/05/2023,70,350,420,Homelessness,B&B Accommodation,64401
http://statistics.data.gov.uk/id/local-authority/12UE,Huntingdonshire District Council,201012,COACH & HORSES,81429,28/05/2023,594,TA - 22-28.05.23,08/06/2023,70,350,420,Homelessness,B&B Accommodation,64401
http://statistics.data.gov.uk/id/local-authority/12UE,Huntingdonshire District Council,201012,COACH & HORSES,80235,14/05/2023,592,TA - 08.05.23-14.05.23,19/05/2023,70,350,420,Homelessness,B&B Accommodation,64401
http://statistics.data.gov.uk/id/local-authority/12UE,Huntingdonshire District Council,201012,COACH & HORSES,81432,04/06/2023,595,TA - 29.05-04.06.23,08/06/2023,70,350,420,Homelessness,B&B Accommodation,64401
http://statistics.data.gov.uk/id/local-authority/12UE,Huntingdonshire District Council,201012,COACH & HORSES,81786,11/06/2023,596,TA - 05-11.06.23,20/06/2023,70,350,420,Homelessness,B&B Accommodation,64401
http://statistics.data.gov.uk/id/local-authority/12UE,Huntingdonshire District Council,201012,COACH & HORSES,82058,18/06/2023,597,TA - 12-18.06.23,26/06/2023,70,350,420,Homelessness,B&B Accommodation,64401
http://statistics.data.gov.uk/id/local-authority/12UE,Huntingdonshire District Council,201012,COACH & HORSES,79962,30/04/2023,590,TA - 24-30.04.23,09/05/2023,70,350,420,Homelessness,B&B Accommodation,64401
http://statistics.data.gov.uk/id/local-authority/12UE,Huntingdonshire District Council,201012,COACH & HORSES,82286,25/06/2023,598,TA - 19-25.06.23,30/06/2023,70,350,420,Homelessness,B&B Accommodation,64401
http://statistics.data.gov.uk/id/local-authority/12UE,Huntingdonshire District Council,201012,COACH & HORSES,78336,26/03/2023,585,TA - 20-26.03.23,11/04/2023,70,350,420,Homelessness,B&B Accommodation,64401
http://statistics.data.gov.uk/id/local-authority/12UE,Huntingdonshire District Council,201012,COACH & HORSES,78369,02/04/2023,586,TA - 27.03-02.04.23,11/04/2023,8.21,41.07,49.28,Homelessness,B&B Accommodation,64401
http://statistics.data.gov.uk/id/local-authority/12UE,Huntingdonshire District Council,201012,COACH & HORSES,80546,21/05/2023,593,TA - 15-21.05.23,25/05/2023,70,350,420,Homelessness,B&B Accommodation,64401
http://statistics.data.gov.uk/id/local-authority/12UE,Huntingdonshire District Council,201012,COACH & HORSES,81429,28/05/2023,594,TA - 22-28.05.23,08/06/2023,70,350,420,Homelessness,B&B Accommodation,64401
http://statistics.data.gov.uk/id/local-authority/12UE,Huntingdonshire District Council,201012,COACH & HORSES,78336,26/03/2023,585,TA - 20-26.03.23,11/04/2023,70,350,420,Homelessness,B&B Accommodation,64401
http://statistics.data.gov.uk/id/local-authority/12UE,Huntingdonshire District Council,201012,COACH & HORSES,80235,14/05/2023,592,TA - 08.05.23-14.05.23,19/05/2023,70,350,420,Homelessness,B&B Accommodation,64401
http://statistics.data.gov.uk/id/local-authority/12UE,Huntingdonshire District Council,201012,COACH & HORSES,80037,07/05/2023,591,ta we 070523,11/05/2023,70,350,420,Homelessness,B&B Accommodation,64401
http://statistics.data.gov.uk/id/local-authority/12UE,Huntingdonshire District Council,201012,COACH & HORSES,78845,16/04/2023,588,TA - 10-16.04.23,20/04/2023,70,350,420,Homelessness,B&B Accommodation,64401
http://statistics.data.gov.uk/id/local-authority/12UE,Huntingdonshire District Council,201012,COACH & HORSES,78369,02/04/2023,586,TA - 27.03-02.04.23,11/04/2023,57.5,287.5,345,Homelessness,B&B Accommodation,64401
http://statistics.data.gov.uk/id/local-authority/12UE,Huntingdonshire District Council,201012,COACH & HORSES,81432,04/06/2023,595,TA - 29.05-04.06.23,08/06/2023,70,350,420,Homelessness,B&B Accommodation,64401
http://statistics.data.gov.uk/id/local-authority/12UE,Huntingdonshire District Council,201012,COACH & HORSES,81786,11/06/2023,596,TA - 05-11.06.23,20/06/2023,70,350,420,Homelessness,B&B Accommodation,64401
http://statistics.data.gov.uk/id/local-authority/12UE,Huntingdonshire District Council,201012,COACH & HORSES,79267,23/04/2023,589,TA - 17-23.04.23,04/05/2023,70,350,420,Homelessness,B&B Accommodation,64401
http://statistics.data.gov.uk/id/local-authority/12UE,Huntingdonshire District Council,201012,COACH & HORSES,82058,18/06/2023,597,TA - 12-18.06.23,26/06/2023,70,350,420,Homelessness,B&B Accommodation,64401
http://statistics.data.gov.uk/id/local-authority/12UE,Huntingdonshire District Council,201012,COACH & HORSES,79962,30/04/2023,590,TA - 24-30.04.23,09/05/2023,70,350,420,Homelessness,B&B Accommodation,64401
http://statistics.data.gov.uk/id/local-authority/12UE,Huntingdonshire District Council,201012,COACH & HORSES,78302,09/04/2023,587,TA WE 090423,14/04/2023,70,350,420,Homelessness,B&B Accommodation,64401
http://statistics.data.gov.uk/id/local-authority/12UE,Huntingdonshire District Council,201012,COACH & HORSES,82286,25/06/2023,598,TA - 19-25.06.23,30/06/2023,20,100,120,Homelessness,B&B Accommodation,64401
http://statistics.data.gov.uk/id/local-authority/12UE,Huntingdonshire District Council,201012,COACH & HORSES,80546,21/05/2023,593,TA - 15-21.05.23,25/05/2023,20,100,120,Homelessness,B&B Accommodation,64401
http://statistics.data.gov.uk/id/local-authority/12UE,Huntingdonshire District Council,201012,COACH & HORSES,78336,26/03/2023,585,TA - 20-26.03.23,11/04/2023,40,200,240,Homelessness,B&B Accommodation,64401
http://statistics.data.gov.uk/id/local-authority/12UE,Huntingdonshire District Council,201012,COACH & HORSES,80235,14/05/2023,592,TA - 08.05.23-14.05.23,19/05/2023,70,350,420,Homelessness,B&B Accommodation,64401
http://statistics.data.gov.uk/id/local-authority/12UE,Huntingdonshire District Council,201012,COACH & HORSES,80037,07/05/2023,591,ta we 070523,11/05/2023,70,350,420,Homelessness,B&B Accommodation,64401
http://statistics.data.gov.uk/id/local-authority/12UE,Huntingdonshire District Council,201012,COACH & HORSES,78845,16/04/2023,588,TA - 10-16.04.23,20/04/2023,70,350,420,Homelessness,B&B Accommodation,64401
http://statistics.data.gov.uk/id/local-authority/12UE,Huntingdonshire District Council,201012,COACH & HORSES,78369,02/04/2023,586,TA - 27.03-02.04.23,11/04/2023,57.5,287.5,345,Homelessness,B&B Accommodation,64401
http://statistics.data.gov.uk/id/local-authority/12UE,Huntingdonshire District Council,201012,COACH & HORSES,79267,23/04/2023,589,TA - 17-23.04.23,04/05/2023,20,100,120,Homelessness,B&B Accommodation,64401
http://statistics.data.gov.uk/id/local-authority/12UE,Huntingdonshire District Council,201012,COACH & HORSES,79962,30/04/2023,590,TA - 24-30.04.23,09/05/2023,40,200,240,Homelessness,B&B Accommodation,64401
http://statistics.data.gov.uk/id/local-authority/12UE,Huntingdonshire District Council,201012,COACH & HORSES,78302,09/04/2023,587,TA WE 090423,14/04/2023,70,350,420,Homelessness,B&B Accommodation,64401
http://statistics.data.gov.uk/id/local-authority/12UE,Huntingdonshire District Council,201012,COACH & HORSES,81786,11/06/2023,596,TA - 05-11.06.23,20/06/2023,30,150,180,Homelessness,B&B Accommodation,64401
http://statistics.data.gov.uk/id/local-authority/12UE,Huntingdonshire District Council,201012,COACH & HORSES,82058,18/06/2023,597,TA - 12-18.06.23,26/06/2023,70,350,420,Homelessness,B&B Accommodation,64401
http://statistics.data.gov.uk/id/local-authority/12UE,Huntingdonshire District Council,201012,COACH & HORSES,82286,25/06/2023,598,TA - 19-25.06.23,30/06/2023,30,150,180,Homelessness,B&B Accommodation,64401
http://statistics.data.gov.uk/id/local-authority/12UE,Huntingdonshire District Council,201012,COACH & HORSES,81429,28/05/2023,594,TA - 22-28.05.23,08/06/2023,70,350,420,Homelessness,B&B Accommodation,64401
http://statistics.data.gov.uk/id/local-authority/12UE,Huntingdonshire District Council,201012,COACH & HORSES,81432,04/06/2023,595,TA - 29.05-04.06.23,08/06/2023,10,50,60,Homelessness,B&B Accommodation,64401
http://statistics.data.gov.uk/id/local-authority/12UE,Huntingdonshire District Council,201012,COACH & HORSES,78336,26/03/2023,585,TA - 20-26.03.23,11/04/2023,70,350,420,Homelessness,B&B Accommodation,64401
http://statistics.data.gov.uk/id/local-authority/12UE,Huntingdonshire District Council,201012,COACH & HORSES,78845,16/04/2023,588,TA - 10-16.04.23,20/04/2023,70,350,420,Homelessness,B&B Accommodation,64401
http://statistics.data.gov.uk/id/local-authority/12UE,Huntingdonshire District Council,201012,COACH & HORSES,78369,02/04/2023,586,TA - 27.03-02.04.23,11/04/2023,57.5,287.5,345,Homelessness,B&B Accommodation,64401
http://statistics.data.gov.uk/id/local-authority/12UE,Huntingdonshire District Council,201012,COACH & HORSES,79267,23/04/2023,589,TA - 17-23.04.23,04/05/2023,30,150,180,Homelessness,B&B Accommodation,64401
http://statistics.data.gov.uk/id/local-authority/12UE,Huntingdonshire District Council,201012,COACH & HORSES,78302,09/04/2023,587,TA WE 090423,14/04/2023,70,350,420,Homelessness,B&B Accommodation,64401
http://statistics.data.gov.uk/id/local-authority/12UE,Huntingdonshire District Council,201012,COACH & HORSES,78336,26/03/2023,585,TA - 20-26.03.23,11/04/2023,70,350,420,Homelessness,B&B Accommodation,64401
http://statistics.data.gov.uk/id/local-authority/12UE,Huntingdonshire District Council,201012,COACH & HORSES,78369,02/04/2023,586,TA - 27.03-02.04.23,11/04/2023,57.5,287.5,345,Homelessness,B&B Accommodation,64401
http://statistics.data.gov.uk/id/local-authority/12UE,Huntingdonshire District Council,201012,COACH & HORSES,78302,09/04/2023,587,TA WE 090423,14/04/2023,20,100,120,Homelessness,B&B Accommodation,64401
http://statistics.data.gov.uk/id/local-authority/12UE,Huntingdonshire District Council,201012,COACH & HORSES,80546,21/05/2023,593,TA - 15-21.05.23,25/05/2023,10,50,60,Homelessness,B&B Accommodation,64401
http://statistics.data.gov.uk/id/local-authority/12UE,Huntingdonshire District Council,201012,COACH & HORSES,80235,14/05/2023,592,TA - 08.05.23-14.05.23,19/05/2023,70,350,420,Homelessness,B&B Accommodation,64401
http://statistics.data.gov.uk/id/local-authority/12UE,Huntingdonshire District Council,201012,COACH & HORSES,80037,07/05/2023,591,ta we 070523,11/05/2023,70,350,420,Homelessness,B&B Accommodation,64401
http://statistics.data.gov.uk/id/local-authority/12UE,Huntingdonshire District Council,201012,COACH & HORSES,78845,16/04/2023,588,TA - 10-16.04.23,20/04/2023,70,350,420,Homelessness,B&B Accommodation,64401
http://statistics.data.gov.uk/id/local-authority/12UE,Huntingdonshire District Council,201012,COACH & HORSES,79267,23/04/2023,589,TA - 17-23.04.23,04/05/2023,70,350,420,Homelessness,B&B Accommodation,64401
http://statistics.data.gov.uk/id/local-authority/12UE,Huntingdonshire District Council,201012,COACH & HORSES,79962,30/04/2023,590,TA - 24-30.04.23,09/05/2023,70,350,420,Homelessness,B&B Accommodation,64401
http://statistics.data.gov.uk/id/local-authority/12UE,Huntingdonshire District Council,201012,COACH & HORSES,80546,21/05/2023,593,TA - 15-21.05.23,25/05/2023,70,350,420,Homelessness,B&B Accommodation,64401
http://statistics.data.gov.uk/id/local-authority/12UE,Huntingdonshire District Council,201012,COACH & HORSES,81429,28/05/2023,594,TA - 22-28.05.23,08/06/2023,20,100,120,Homelessness,B&B Accommodation,64401
http://statistics.data.gov.uk/id/local-authority/12UE,Huntingdonshire District Council,201012,COACH & HORSES,80235,14/05/2023,592,TA - 08.05.23-14.05.23,19/05/2023,70,350,420,Homelessness,B&B Accommodation,64401
http://statistics.data.gov.uk/id/local-authority/12UE,Huntingdonshire District Council,201012,COACH & HORSES,80037,07/05/2023,591,ta we 070523,11/05/2023,70,350,420,Homelessness,B&B Accommodation,64401
http://statistics.data.gov.uk/id/local-authority/12UE,Huntingdonshire District Council,201012,COACH & HORSES,78845,16/04/2023,588,TA - 10-16.04.23,20/04/2023,50,250,300,Homelessness,B&B Accommodation,64401
http://statistics.data.gov.uk/id/local-authority/12UE,Huntingdonshire District Council,201012,COACH & HORSES,79267,23/04/2023,589,TA - 17-23.04.23,04/05/2023,70,350,420,Homelessness,B&B Accommodation,64401
http://statistics.data.gov.uk/id/local-authority/12UE,Huntingdonshire District Council,201012,COACH & HORSES,79962,30/04/2023,590,TA - 24-30.04.23,09/05/2023,70,350,420,Homelessness,B&B Accommodation,64401
http://statistics.data.gov.uk/id/local-authority/12UE,Huntingdonshire District Council,201012,COACH & HORSES,80546,21/05/2023,593,TA - 15-21.05.23,25/05/2023,70,350,420,Homelessness,B&B Accommodation,64401
http://statistics.data.gov.uk/id/local-authority/12UE,Huntingdonshire District Council,201012,COACH & HORSES,81429,28/05/2023,594,TA - 22-28.05.23,08/06/2023,70,350,420,Homelessness,B&B Accommodation,64401
http://statistics.data.gov.uk/id/local-authority/12UE,Huntingdonshire District Council,201012,COACH & HORSES,80235,14/05/2023,592,TA - 08.05.23-14.05.23,19/05/2023,20,100,120,Homelessness,B&B Accommodation,64401
http://statistics.data.gov.uk/id/local-authority/12UE,Huntingdonshire District Council,201012,COACH & HORSES,81432,04/06/2023,595,TA - 29.05-04.06.23,08/06/2023,70,350,420,Homelessness,B&B Accommodation,64401
http://statistics.data.gov.uk/id/local-authority/12UE,Huntingdonshire District Council,201012,COACH & HORSES,81786,11/06/2023,596,TA - 05-11.06.23,20/06/2023,70,350,420,Homelessness,B&B Accommodation,64401
http://statistics.data.gov.uk/id/local-authority/12UE,Huntingdonshire District Council,201012,COACH & HORSES,82058,18/06/2023,597,TA - 12-18.06.23,26/06/2023,10,50,60,Homelessness,B&B Accommodation,64401
http://statistics.data.gov.uk/id/local-authority/12UE,Huntingdonshire District Council,201012,COACH & HORSES,80235,14/05/2023,592,TA - 08.05.23-14.05.23,19/05/2023,10,50,60,Homelessness,B&B Accommodation,64401
http://statistics.data.gov.uk/id/local-authority/12UE,Huntingdonshire District Council,201012,COACH & HORSES,80546,21/05/2023,593,TA - 15-21.05.23,25/05/2023,40,200,240,Homelessness,B&B Accommodation,64401
http://statistics.data.gov.uk/id/local-authority/12UE,Huntingdonshire District Council,201012,COACH & HORSES,81429,28/05/2023,594,TA - 22-28.05.23,08/06/2023,70,350,420,Homelessness,B&B Accommodation,64401
http://statistics.data.gov.uk/id/local-authority/12UE,Huntingdonshire District Council,201012,COACH & HORSES,81432,04/06/2023,595,TA - 29.05-04.06.23,08/06/2023,70,350,420,Homelessness,B&B Accommodation,64401
http://statistics.data.gov.uk/id/local-authority/12UE,Huntingdonshire District Council,201012,COACH & HORSES,81786,11/06/2023,596,TA - 05-11.06.23,20/06/2023,70,350,420,Homelessness,B&B Accommodation,64401
http://statistics.data.gov.uk/id/local-authority/12UE,Huntingdonshire District Council,201012,COACH & HORSES,82058,18/06/2023,597,TA - 12-18.06.23,26/06/2023,70,350,420,Homelessness,B&B Accommodation,64401
http://statistics.data.gov.uk/id/local-authority/12UE,Huntingdonshire District Council,201012,COACH & HORSES,82286,25/06/2023,598,TA - 19-25.06.23,30/06/2023,70,350,420,Homelessness,B&B Accommodation,64401
http://statistics.data.gov.uk/id/local-authority/12UE,Huntingdonshire District Council,201012,COACH & HORSES,81432,04/06/2023,595,TA - 29.05-04.06.23,08/06/2023,10,50,60,Homelessness,B&B Accommodation,64401
http://statistics.data.gov.uk/id/local-authority/12UE,Huntingdonshire District Council,201012,COACH & HORSES,81786,11/06/2023,596,TA - 05-11.06.23,20/06/2023,10,50,60,Homelessness,B&B Accommodation,64401
http://statistics.data.gov.uk/id/local-authority/12UE,Huntingdonshire District Council,201012,COACH & HORSES,80037,07/05/2023,591,ta we 070523,11/05/2023,70,350,420,Homelessness,Occupational Health,60111
http://statistics.data.gov.uk/id/local-authority/12UE,Huntingdonshire District Council,201012,COACH & HORSES,79267,23/04/2023,589,TA - 17-23.04.23,04/05/2023,40,200,240,Homelessness,Occupational Health,60111
http://statistics.data.gov.uk/id/local-authority/12UE,Huntingdonshire District Council,203266,College Tyre & Exhaust Centre Ltd T/A Premier Bodyworks,82115,23/06/2023,15581,Vehicle Repairs WV67HWM,27/06/2023,0,1000,1000,Bin Deliveries,Insurance Excess,63009
http://statistics.data.gov.uk/id/local-authority/12UE,Huntingdonshire District Council,203266,College Tyre & Exhaust Centre Ltd T/A Premier Bodyworks,82116,23/06/2023,15582,WV67HWM Vehicle Repairs VAT Element,27/06/2023,0,762.43,762.43,VAT,VAT Input Tax,11727
http://statistics.data.gov.uk/id/local-authority/12UE,Huntingdonshire District Council,201211,Colne Parish Council,78960,19/04/2023,CIL PAYMENT APR23,CIL Payment Apr23,25/04/2023,0,9514.12,9514.12,Cil Capital Grant Element,Cil Payment To Parishes,66402
http://statistics.data.gov.uk/id/local-authority/12UE,Huntingdonshire District Council,201211,Colne Parish Council,79292,25/04/2023,PARISH PRECEPT APR 23,Parish Precept - April 2023,25/04/2023,0,24000,24000,P C Precept Colne,Precepts,66301
http://statistics.data.gov.uk/id/local-authority/12UE,Huntingdonshire District Council,202749,COMPLETE POOL CONTROLS LTD,81419,31/05/2023,INV087590,OLH Pool Chemicals,22/06/2023,129.73,648.67,778.4,OLH - Swimming,Chemicals,64000
http://statistics.data.gov.uk/id/local-authority/12UE,Huntingdonshire District Council,202749,COMPLETE POOL CONTROLS LTD,78188,04/04/2023,INV085461,OLR Pool Chemicals,04/05/2023,102.58,512.9,615.48,OLR - Swimming,Chemicals,64000
http://statistics.data.gov.uk/id/local-authority/12UE,Huntingdonshire District Council,202749,COMPLETE POOL CONTROLS LTD,80639,10/05/2023,INV086546,OLR Pool Chemicals,01/06/2023,67.57,337.87,405.44,OLR - Swimming,Chemicals,64000
http://statistics.data.gov.uk/id/local-authority/12UE,Huntingdonshire District Council,202749,COMPLETE POOL CONTROLS LTD,78724,06/04/2023,INV085545,OLSI Pool Chemicals,04/05/2023,133.93,669.63,803.56,OLSI - Swimming,Chemicals,64000
http://statistics.data.gov.uk/id/local-authority/12UE,Huntingdonshire District Council,202749,COMPLETE POOL CONTROLS LTD,77339,10/03/2023,INV084646,OLSI Pool Chemicals,06/04/2023,126.11,630.53,756.64,OLSI - Swimming,Chemicals,64000
http://statistics.data.gov.uk/id/local-authority/12UE,Huntingdonshire District Council,202749,COMPLETE POOL CONTROLS LTD,81424,31/05/2023,INV087589,OLSI Pool Chemicals,22/06/2023,126.11,630.53,756.64,OLSI - Swimming,Chemicals,64000
http://statistics.data.gov.uk/id/local-authority/12UE,Huntingdonshire District Council,202749,COMPLETE POOL CONTROLS LTD,79678,30/04/2023,INV086352,OLSI Pool Chemicals,25/05/2023,106.95,534.73,641.68,OLSI - Swimming,Chemicals,64000
http://statistics.data.gov.uk/id/local-authority/12UE,Huntingdonshire District Council,202749,COMPLETE POOL CONTROLS LTD,77042,10/03/2023,INV084645,OLSN Pool Chemicals,06/04/2023,151.39,756.97,908.36,OLSN - Swimming,Chemicals,64000
http://statistics.data.gov.uk/id/local-authority/12UE,Huntingdonshire District Council,202749,COMPLETE POOL CONTROLS LTD,81131,31/05/2023,INV087591,OLSN Pool Chemicals,22/06/2023,151.39,756.97,908.36,OLSN - Swimming,Chemicals,64000
http://statistics.data.gov.uk/id/local-authority/12UE,Huntingdonshire District Council,202749,COMPLETE POOL CONTROLS LTD,80685,10/05/2023,INV086547,OLSN Pool Chemicals,01/06/2023,148.47,742.35,890.82,OLSN - Swimming,Chemicals,64000
http://statistics.data.gov.uk/id/local-authority/12UE,Huntingdonshire District Council,202749,COMPLETE POOL CONTROLS LTD,78172,04/04/2023,INV085462,OLSN Pool Chemicals,04/05/2023,128.01,640.03,768.04,OLSN - Swimming,Chemicals,64000
http://statistics.data.gov.uk/id/local-authority/12UE,Huntingdonshire District Council,202749,COMPLETE POOL CONTROLS LTD,77042,10/03/2023,INV084645,OLSN Pool Chemicals,06/04/2023,0.02,0,0.02,Finance,Over/Under VAT Rounding,68350
http://statistics.data.gov.uk/id/local-authority/12UE,Huntingdonshire District Council,202749,COMPLETE POOL CONTROLS LTD,81131,31/05/2023,INV087591,OLSN Pool Chemicals,22/06/2023,0.02,0,0.02,Finance,Over/Under VAT Rounding,68350
http://statistics.data.gov.uk/id/local-authority/12UE,Huntingdonshire District Council,202749,COMPLETE POOL CONTROLS LTD,81419,31/05/2023,INV087590,OLH Pool Chemicals,22/06/2023,0.01,0,0.01,Finance,Over/Under VAT Rounding,68350
http://statistics.data.gov.uk/id/local-authority/12UE,Huntingdonshire District Council,200210,COMPUTERSHARE VOUCHERS LTD COMPUTERSHARE VOUCHERS LTD,82155,23/06/2023,C-0003433120,Childcare Admin Voucher,26/06/2023,0,1003,1003,Child Care Vouchers - Payroll,Childcare Admin Vouchers,60106
http://statistics.data.gov.uk/id/local-authority/12UE,Huntingdonshire District Council,200210,COMPUTERSHARE VOUCHERS LTD COMPUTERSHARE VOUCHERS LTD,81001,30/05/2023,C-0003425942,ChildCare Admin Voucher,01/06/2023,0,860,860,Child Care Vouchers - Payroll,Childcare Admin Vouchers,60106
http://statistics.data.gov.uk/id/local-authority/12UE,Huntingdonshire District Council,200210,COMPUTERSHARE VOUCHERS LTD COMPUTERSHARE VOUCHERS LTD,82155,23/06/2023,C-0003433120,Childcare Admin Voucher,26/06/2023,5.02,25.08,30.1,Payroll Services,Childcare Admin Vouchers,60106
http://statistics.data.gov.uk/id/local-authority/12UE,Huntingdonshire District Council,200210,COMPUTERSHARE VOUCHERS LTD COMPUTERSHARE VOUCHERS LTD,79134,20/04/2023,C-0003417009,Childcare Admin Voucher,24/04/2023,4.3,21.5,25.8,Payroll Services,Childcare Admin Vouchers,60106
http://statistics.data.gov.uk/id/local-authority/12UE,Huntingdonshire District Council,200210,COMPUTERSHARE VOUCHERS LTD COMPUTERSHARE VOUCHERS LTD,79134,20/04/2023,C-0003417009,Childcare Admin Voucher,24/04/2023,0,860,860,Payroll Services,Childcare Admin Vouchers,60106
http://statistics.data.gov.uk/id/local-authority/12UE,Huntingdonshire District Council,200210,COMPUTERSHARE VOUCHERS LTD COMPUTERSHARE VOUCHERS LTD,81001,30/05/2023,C-0003425942,ChildCare Admin Voucher,01/06/2023,4.3,21.5,25.8,Payroll Services,Childcare Admin Vouchers,60106
http://statistics.data.gov.uk/id/local-authority/12UE,Huntingdonshire District Council,201061,CONINGTON & HOLME IDB,81658,09/06/2023,IDB SPECIAL LEVY 23,IDB Levy 23/24,30/06/2023,0,7936,7936,Connington & Holme,Levies Paid,69110
http://statistics.data.gov.uk/id/local-authority/12UE,Huntingdonshire District Council,201216,Conington Parish Council,79292,25/04/2023,PARISH PRECEPT APR 23,Parish Precept - April 2023,25/04/2023,0,2650,2650,P C Precept Connington,Precepts,66301
http://statistics.data.gov.uk/id/local-authority/12UE,Huntingdonshire District Council,202906,Constellia Public Ltd,78271,28/03/2023,INV-2513,Fareham Offices - 1st Stage Varsity Work,11/04/2023,800,4000,4800,Commercial Investment Strategy,Consultancy Fees,62400
http://statistics.data.gov.uk/id/local-authority/12UE,Huntingdonshire District Council,202906,Constellia Public Ltd,82137,16/06/2023,INV-3366,Fareham Offices - 1st Stage Varsity Work,26/06/2023,800,4000,4800,Commercial Investment Strategy,Consultancy Fees,62400
http://statistics.data.gov.uk/id/local-authority/12UE,Huntingdonshire District Council,202906,Constellia Public Ltd,82139,16/06/2023,INV-3367,Fareham Offices - 1st Stage Varsity Work,26/06/2023,800,4000,4800,Commercial Investment Strategy,Consultancy Fees,62400
http://statistics.data.gov.uk/id/local-authority/12UE,Huntingdonshire District Council,203112,Contego Safety Solutions Ltd,80440,17/02/2023,276305,Gloves/Blue Roll,25/05/2023,97.97,489.84,587.81,Domestic Waste Collection,"Clothes, Uniform And Laundry",62000
http://statistics.data.gov.uk/id/local-authority/12UE,Huntingdonshire District Council,203112,Contego Safety Solutions Ltd,80440,17/02/2023,276305,Gloves/Blue Roll,25/05/2023,316.51,1582.56,1899.07,Domestic Waste Collection,"Clothes, Uniform And Laundry",62000
http://statistics.data.gov.uk/id/local-authority/12UE,Huntingdonshire District Council,203112,Contego Safety Solutions Ltd,80440,17/02/2023,276305,Gloves/Blue Roll,25/05/2023,316.51,1582.56,1899.07,Domestic Waste Collection,"Clothes, Uniform And Laundry",62000
http://statistics.data.gov.uk/id/local-authority/12UE,Huntingdonshire District Council,203112,Contego Safety Solutions Ltd,80440,17/02/2023,276305,Gloves/Blue Roll,25/05/2023,7.97,39.84,47.81,Domestic Waste Collection,"Clothes, Uniform And Laundry",62000
http://statistics.data.gov.uk/id/local-authority/12UE,Huntingdonshire District Council,203112,Contego Safety Solutions Ltd,80440,17/02/2023,276305,Gloves/Blue Roll,25/05/2023,218.54,1092.72,1311.26,Domestic Waste Collection,"Clothes, Uniform And Laundry",62000
http://statistics.data.gov.uk/id/local-authority/12UE,Huntingdonshire District Council,203112,Contego Safety Solutions Ltd,80440,17/02/2023,276305,Gloves/Blue Roll,25/05/2023,5.31,26.56,31.87,Domestic Waste Collection,"Clothes, Uniform And Laundry",62000
http://statistics.data.gov.uk/id/local-authority/12UE,Huntingdonshire District Council,203112,Contego Safety Solutions Ltd,80539,22/02/2023,276621,PPE - Gloves,22/05/2023,628,3140,3768,Recycling Collections,"Clothes, Uniform And Laundry",62000
http://statistics.data.gov.uk/id/local-authority/12UE,Huntingdonshire District Council,203174,Corporate Project Solution,77081,13/03/2023,202303-05,Consultancy Fees,06/04/2023,1380,6900,8280,Customer Service Centres,Consultancy Fees,62400
http://statistics.data.gov.uk/id/local-authority/12UE,Huntingdonshire District Council,200947,COVERGOLD LTD,77671,22/03/2023,165314,3 Yr Microfishe Maintenance Contract,14/04/2023,80,400,480,Development Management,"Maintenance - Equipment, Furniture And Materials",61702
http://statistics.data.gov.uk/id/local-authority/12UE,Huntingdonshire District Council,201217,Covington Parish Meeting,79292,25/04/2023,PARISH PRECEPT APR 23,Parish Precept - April 2023,25/04/2023,0,1300,1300,P C Precept Covington,Precepts,66301
http://statistics.data.gov.uk/id/local-authority/12UE,Huntingdonshire District Council,200900,CRAEMER UK LTD,78020,13/03/2023,3050168,780x240 Litre Sapphire Blue,06/04/2023,3666,18330,21996,Wheeled Bins,Recycling Bins,61201
http://statistics.data.gov.uk/id/local-authority/12UE,Huntingdonshire District Council,200900,CRAEMER UK LTD,80205,11/05/2023,3051381,OPS BAGS,01/06/2023,1833,9165,10998,Wheeled Bins,Refuse Containers/Litter Bins,61200
http://statistics.data.gov.uk/id/local-authority/12UE,Huntingdonshire District Council,200900,CRAEMER UK LTD,80205,11/05/2023,3051381,OPS BAGS,01/06/2023,921.2,4606,5527.2,Wheeled Bins,Refuse Containers/Litter Bins,61200
http://statistics.data.gov.uk/id/local-authority/12UE,Huntingdonshire District Council,200900,CRAEMER UK LTD,79111,19/04/2023,3050940,1100ltr Grey Body/Blue Lid,11/05/2023,698.75,3493.75,4192.5,Wheeled Bins,Refuse Containers/Litter Bins,61200
http://statistics.data.gov.uk/id/local-authority/12UE,Huntingdonshire District Council,200900,CRAEMER UK LTD,80206,11/05/2023,3051382,OPS BAGS,01/06/2023,658,3290,3948,Wheeled Bins,Refuse Containers/Litter Bins,61200
http://statistics.data.gov.uk/id/local-authority/12UE,Huntingdonshire District Council,200900,CRAEMER UK LTD,80550,19/05/2023,3051577,240 Ltr Blue/140 Ltr Grey Wheeled Bins,08/06/2023,65.8,329,394.8,Wheeled Bins,Refuse Containers/Litter Bins,61200
http://statistics.data.gov.uk/id/local-authority/12UE,Huntingdonshire District Council,201341,CROSS KEYS HOMES LTD,80356,16/05/2023,506397508,REDACTED,19/05/2023,0,260.06,260.06,Homelessness,Homeless Prevention Payments,64403
http://statistics.data.gov.uk/id/local-authority/12UE,Huntingdonshire District Council,201341,CROSS KEYS HOMES LTD,81435,16/05/2023,REDACTED,REDACTED,08/06/2023,0,515.52,515.52,Homelessness,Homeless Prevention Payments,64403
http://statistics.data.gov.uk/id/local-authority/12UE,Huntingdonshire District Council,203187,CTC Training and Development Ltd,78130,23/02/2023,INV-3206,Staff Training & Development,06/04/2023,82.5,412.5,495,HR Services,Staff Development And Training,60115
http://statistics.data.gov.uk/id/local-authority/12UE,Huntingdonshire District Council,202506,cTHINGS LTD,78375,06/03/2023,INV-0742,Initial Deployment of LPWA Network,14/04/2023,2730,13650,16380,Smarter Towns,Network Hardware,64069
http://statistics.data.gov.uk/id/local-authority/12UE,Huntingdonshire District Council,200048,Culligan (UK) Limited,80487,17/04/2023,CD-223566365,OLSI Hire - Equipment Apr23-Mar24,22/05/2023,138.51,692.54,831.05,OLSI - Site & Centre Management,Hire - Equipment Furniture And Materials,61700
http://statistics.data.gov.uk/id/local-authority/12UE,Huntingdonshire District Council,200048,Culligan (UK) Limited,80487,17/04/2023,CD-223566365,OLSI Hire - Equipment Apr23-Mar24,22/05/2023,-0.01,0,-0.01,Finance,Over/Under VAT Rounding,68350
http://statistics.data.gov.uk/id/local-authority/12UE,Huntingdonshire District Council,202513,CV-LIBRARY LTD,78711,03/03/2023,457721,Staff Recruitment Costs,17/04/2023,640,3200,3840,HR Services,Staff Recruitment Costs,60116
http://statistics.data.gov.uk/id/local-authority/12UE,Huntingdonshire District Council,202513,CV-LIBRARY LTD,80019,03/04/2023,462356,HR 12 MNTH 3 USERS,11/05/2023,640,3200,3840,HR Services,Staff Recruitment Costs,60116
http://statistics.data.gov.uk/id/local-authority/12UE,Huntingdonshire District Council,202821,CVSS LIMITED,78327,28/03/2023,36960,OLSI CCTV,20/04/2023,1711.8,8559,10270.8,Cctv Shared Service Hosting,Installation Fees,64073
http://statistics.data.gov.uk/id/local-authority/12UE,Huntingdonshire District Council,202821,CVSS LIMITED,78326,28/03/2023,36959,Barnwell Business Centre,20/04/2023,1491.6,7458,8949.6,Cctv Shared Service Hosting,Installation Fees,64073
http://statistics.data.gov.uk/id/local-authority/12UE,Huntingdonshire District Council,202821,CVSS LIMITED,80530,16/05/2023,37677,HD CCTV 4G Cameras/5G Transmission,08/06/2023,971.2,4856,5827.2,Cctv Shared Service Hosting,Installation Fees,64073
http://statistics.data.gov.uk/id/local-authority/12UE,Huntingdonshire District Council,202821,CVSS LIMITED,80530,16/05/2023,37677,HD CCTV 4G Cameras/5G Transmission,08/06/2023,470,2350,2820,Cctv Shared Service Hosting,Installation Fees,64073
http://statistics.data.gov.uk/id/local-authority/12UE,Huntingdonshire District Council,202187,CYCLESCHEME LTD,80257,16/05/2023,W688999,CycleScheme x2,19/05/2023,333.33,1666.67,2000,Cycle to Work,Vehicles Plant Furniture & Equipment Cost,11300
http://statistics.data.gov.uk/id/local-authority/12UE,Huntingdonshire District Council,202187,CYCLESCHEME LTD,80257,16/05/2023,W688999,CycleScheme x2,19/05/2023,108.17,540.83,649,Cycle to Work,Vehicles Plant Furniture & Equipment Cost,11300
http://statistics.data.gov.uk/id/local-authority/12UE,Huntingdonshire District Council,202187,CYCLESCHEME LTD,82428,27/06/2023,W697691,REDACTED,30/06/2023,104.17,520.83,625,Cycle to Work,Vehicles Plant Furniture & Equipment Cost,11300
http://statistics.data.gov.uk/id/local-authority/12UE,Huntingdonshire District Council,202187,CYCLESCHEME LTD,82428,27/06/2023,W697691,REDACTED,30/06/2023,0,50,50,Cycle to Work,Vehicles Plant Furniture & Equipment Cost,11300
http://statistics.data.gov.uk/id/local-authority/12UE,Huntingdonshire District Council,203211,D & A Recruitment Ltd,82034,26/04/2023,INV-1654,Agency Staff W/E 22.04.23,22/06/2023,25.71,128.56,154.27,Domestic Waste Collection,Agency Staff,60011
http://statistics.data.gov.uk/id/local-authority/12UE,Huntingdonshire District Council,203211,D & A Recruitment Ltd,81829,11/05/2023,INV-1836,Agency Staff W/C 06.05.23,20/06/2023,154.27,771.36,925.63,Domestic Waste Collection,Agency Staff,60011
http://statistics.data.gov.uk/id/local-authority/12UE,Huntingdonshire District Council,203211,D & A Recruitment Ltd,81513,03/05/2023,INV-1751,Agency Staff W/E 29.04.23,12/06/2023,205.7,1028.48,1234.18,Domestic Waste Collection,Agency Staff,60011
http://statistics.data.gov.uk/id/local-authority/12UE,Huntingdonshire District Council,203211,D & A Recruitment Ltd,82035,24/05/2023,INV-2030,Agency Staff W/E 20.05.23,22/06/2023,287.12,1435.6,1722.72,Domestic Waste Collection,Agency Staff,60011
http://statistics.data.gov.uk/id/local-authority/12UE,Huntingdonshire District Council,203211,D & A Recruitment Ltd,78790,13/04/2023,INV-1474,Agency Staff W/E 08.04.23,09/05/2023,102.85,514.24,617.09,Domestic Waste Collection,Agency Staff,60011
http://statistics.data.gov.uk/id/local-authority/12UE,Huntingdonshire District Council,203211,D & A Recruitment Ltd,80211,19/04/2023,INV-1574,REDACTED,15/05/2023,102.85,514.24,617.09,Domestic Waste Collection,Agency Staff,60011
http://statistics.data.gov.uk/id/local-authority/12UE,Huntingdonshire District Council,203211,D & A Recruitment Ltd,81908,01/06/2023,INV-2124,Agency Staff W/E 27.05.23,22/06/2023,287.12,1435.6,1722.72,Domestic Waste Collection,Agency Staff,60011
http://statistics.data.gov.uk/id/local-authority/12UE,Huntingdonshire District Council,203211,D & A Recruitment Ltd,81909,07/06/2023,INV-2248,Agency Staff W/E 03.06.23,30/06/2023,199.27,996.34,1195.61,Domestic Waste Collection,Agency Staff,60011
http://statistics.data.gov.uk/id/local-authority/12UE,Huntingdonshire District Council,203211,D & A Recruitment Ltd,78792,05/04/2023,INV-1383,Agency Staff W/E 01.04.23,04/05/2023,17.42,87.12,104.54,Domestic Waste Collection,Agency Staff,60011
http://statistics.data.gov.uk/id/local-authority/12UE,Huntingdonshire District Council,203211,D & A Recruitment Ltd,82034,26/04/2023,INV-1654,Agency Staff W/E 22.04.23,22/06/2023,51.42,257.12,308.54,Green Waste Collection,Agency Staff,60011
http://statistics.data.gov.uk/id/local-authority/12UE,Huntingdonshire District Council,203211,D & A Recruitment Ltd,81829,11/05/2023,INV-1836,Agency Staff W/C 06.05.23,20/06/2023,25.71,128.56,154.27,Green Waste Collection,Agency Staff,60011
http://statistics.data.gov.uk/id/local-authority/12UE,Huntingdonshire District Council,203211,D & A Recruitment Ltd,81513,03/05/2023,INV-1751,Agency Staff W/E 29.04.23,12/06/2023,102.85,514.24,617.09,Green Waste Collection,Agency Staff,60011
http://statistics.data.gov.uk/id/local-authority/12UE,Huntingdonshire District Council,203211,D & A Recruitment Ltd,78790,13/04/2023,INV-1474,Agency Staff W/E 08.04.23,09/05/2023,102.85,514.24,617.09,Green Waste Collection,Agency Staff,60011
http://statistics.data.gov.uk/id/local-authority/12UE,Huntingdonshire District Council,203211,D & A Recruitment Ltd,80211,19/04/2023,INV-1574,REDACTED,15/05/2023,102.85,514.24,617.09,Green Waste Collection,Agency Staff,60011
http://statistics.data.gov.uk/id/local-authority/12UE,Huntingdonshire District Council,203211,D & A Recruitment Ltd,81910,01/06/2023,INV-2122,Agency Staff W/E 27.05.23,22/06/2023,167.13,835.64,1002.77,Green Waste Collection,Agency Staff,60011
http://statistics.data.gov.uk/id/local-authority/12UE,Huntingdonshire District Council,203211,D & A Recruitment Ltd,78792,05/04/2023,INV-1383,Agency Staff W/E 01.04.23,04/05/2023,17,85,102,Green Waste Collection,Agency Staff,60011
http://statistics.data.gov.uk/id/local-authority/12UE,Huntingdonshire District Council,203211,D & A Recruitment Ltd,81905,07/06/2023,INV-2246,Agency Staff W/E 03.06.23,30/06/2023,51.42,257.12,308.54,Green Waste Collection,Agency Staff,60011
http://statistics.data.gov.uk/id/local-authority/12UE,Huntingdonshire District Council,203211,D & A Recruitment Ltd,82034,26/04/2023,INV-1654,Agency Staff W/E 22.04.23,22/06/2023,539.95,2699.76,3239.71,Recycling Collections,Agency Staff,60011
http://statistics.data.gov.uk/id/local-authority/12UE,Huntingdonshire District Council,203211,D & A Recruitment Ltd,81829,11/05/2023,INV-1836,Agency Staff W/C 06.05.23,20/06/2023,385.68,1928.4,2314.08,Recycling Collections,Agency Staff,60011
http://statistics.data.gov.uk/id/local-authority/12UE,Huntingdonshire District Council,203211,D & A Recruitment Ltd,81513,03/05/2023,INV-1751,Agency Staff W/E 29.04.23,12/06/2023,205.7,1028.48,1234.18,Recycling Collections,Agency Staff,60011
http://statistics.data.gov.uk/id/local-authority/12UE,Huntingdonshire District Council,203211,D & A Recruitment Ltd,82035,24/05/2023,INV-2030,Agency Staff W/E 20.05.23,22/06/2023,184.27,921.36,1105.63,Recycling Collections,Agency Staff,60011
http://statistics.data.gov.uk/id/local-authority/12UE,Huntingdonshire District Council,203211,D & A Recruitment Ltd,81907,07/06/2023,INV-2247,Agency Staff W/E 03.06.23,30/06/2023,359.97,1799.84,2159.81,Recycling Collections,Agency Staff,60011
http://statistics.data.gov.uk/id/local-authority/12UE,Huntingdonshire District Council,203211,D & A Recruitment Ltd,82229,01/06/2023,INV-2123,Recycling Staff W/E 27.05.23,30/06/2023,325.7,1628.48,1954.18,Recycling Collections,Agency Staff,60011
http://statistics.data.gov.uk/id/local-authority/12UE,Huntingdonshire District Council,203211,D & A Recruitment Ltd,78790,13/04/2023,INV-1474,Agency Staff W/E 08.04.23,09/05/2023,102.85,514.24,617.09,Recycling Collections,Agency Staff,60011
http://statistics.data.gov.uk/id/local-authority/12UE,Huntingdonshire District Council,203211,D & A Recruitment Ltd,80211,19/04/2023,INV-1574,REDACTED,15/05/2023,102.85,514.24,617.09,Recycling Collections,Agency Staff,60011
http://statistics.data.gov.uk/id/local-authority/12UE,Huntingdonshire District Council,203211,D & A Recruitment Ltd,81906,07/06/2023,INV-2203,Agency Staff W/E 03.06.23,30/06/2023,180,900,1080,Recycling Collections,Agency Staff,60011
http://statistics.data.gov.uk/id/local-authority/12UE,Huntingdonshire District Council,203211,D & A Recruitment Ltd,78792,05/04/2023,INV-1383,Agency Staff W/E 01.04.23,04/05/2023,17,85,102,Recycling Collections,Agency Staff,60011
http://statistics.data.gov.uk/id/local-authority/12UE,Huntingdonshire District Council,203211,D & A Recruitment Ltd,81513,03/05/2023,INV-1751,Agency Staff W/E 29.04.23,12/06/2023,25.71,128.56,154.27,Trade Refuse,Agency Staff,60011
http://statistics.data.gov.uk/id/local-authority/12UE,Huntingdonshire District Council,203211,D & A Recruitment Ltd,82034,26/04/2023,INV-1654,Agency Staff W/E 22.04.23,22/06/2023,0.01,0,0.01,Finance,Over/Under VAT Rounding,68350
http://statistics.data.gov.uk/id/local-authority/12UE,Huntingdonshire District Council,203211,D & A Recruitment Ltd,81829,11/05/2023,INV-1836,Agency Staff W/C 06.05.23,20/06/2023,0.01,0,0.01,Finance,Over/Under VAT Rounding,68350
http://statistics.data.gov.uk/id/local-authority/12UE,Huntingdonshire District Council,203211,D & A Recruitment Ltd,81513,03/05/2023,INV-1751,Agency Staff W/E 29.04.23,12/06/2023,-0.01,0,-0.01,Finance,Over/Under VAT Rounding,68350
http://statistics.data.gov.uk/id/local-authority/12UE,Huntingdonshire District Council,203211,D & A Recruitment Ltd,82229,01/06/2023,INV-2123,Recycling Staff W/E 27.05.23,30/06/2023,-0.01,0,-0.01,Finance,Over/Under VAT Rounding,68350
http://statistics.data.gov.uk/id/local-authority/12UE,Huntingdonshire District Council,203211,D & A Recruitment Ltd,78790,13/04/2023,INV-1474,Agency Staff W/E 08.04.23,09/05/2023,-0.01,0,-0.01,Finance,Over/Under VAT Rounding,68350
http://statistics.data.gov.uk/id/local-authority/12UE,Huntingdonshire District Council,203211,D & A Recruitment Ltd,80211,19/04/2023,INV-1574,REDACTED,15/05/2023,-0.01,0,-0.01,Finance,Over/Under VAT Rounding,68350
http://statistics.data.gov.uk/id/local-authority/12UE,Huntingdonshire District Council,203211,D & A Recruitment Ltd,81909,07/06/2023,INV-2248,Agency Staff W/E 03.06.23,30/06/2023,-0.01,0,-0.01,Finance,Over/Under VAT Rounding,68350
http://statistics.data.gov.uk/id/local-authority/12UE,Huntingdonshire District Council,203211,D & A Recruitment Ltd,81513,03/05/2023,INV-1751,Agency Staff W/E 29.04.23,12/06/2023,25.71,128.56,154.27,Trade Refuse,Skip Hire Income,51220
http://statistics.data.gov.uk/id/local-authority/12UE,Huntingdonshire District Council,200220,D & H SIGN & DISPLAY SERVICE D & H SIGN & DISPLAY SERVICE,81102,23/05/2023,7245,VN23CCZ Supply & Fit Logos,15/06/2023,151,755,906,Vehicles & Plant,Purchase Of Vehicles Related Costs,60906
http://statistics.data.gov.uk/id/local-authority/12UE,Huntingdonshire District Council,200220,D & H SIGN & DISPLAY SERVICE D & H SIGN & DISPLAY SERVICE,81103,26/05/2023,7247,VN23CDE Supply & Fit Logo,15/06/2023,151,755,906,Vehicles & Plant,Purchase Of Vehicles Related Costs,60906
http://statistics.data.gov.uk/id/local-authority/12UE,Huntingdonshire District Council,200220,D & H SIGN & DISPLAY SERVICE D & H SIGN & DISPLAY SERVICE,77770,20/03/2023,7220,LD23XXH Supply & Fit Logo's,14/04/2023,76,380,456,Vehicles & Plant,Vehicle Repairs And Maintenance,60904
http://statistics.data.gov.uk/id/local-authority/12UE,Huntingdonshire District Council,200226,DAL-ROD (CAMRIDGESHIRE) DAL-ROD (CAMRIDGESHIRE),80771,24/05/2023,30000274,Grease Trap Maintenance,15/06/2023,28,140,168,Eastfield House,Cleaning Services,60501
http://statistics.data.gov.uk/id/local-authority/12UE,Huntingdonshire District Council,200226,DAL-ROD (CAMRIDGESHIRE) DAL-ROD (CAMRIDGESHIRE),77603,15/03/2023,64059,PFH Cleaning Service 11.03.23,06/04/2023,130.4,652,782.4,Pathfinder House,Cleaning Services,60501
http://statistics.data.gov.uk/id/local-authority/12UE,Huntingdonshire District Council,200226,DAL-ROD (CAMRIDGESHIRE) DAL-ROD (CAMRIDGESHIRE),80771,24/05/2023,30000274,Grease Trap Maintenance,15/06/2023,36,180,216,Pathfinder House,Cleaning Services,60501
http://statistics.data.gov.uk/id/local-authority/12UE,Huntingdonshire District Council,200226,DAL-ROD (CAMRIDGESHIRE) DAL-ROD (CAMRIDGESHIRE),77691,22/03/2023,64172,OLSN Remove Waste Blocking Drain,14/04/2023,160,800,960,OLH - Site & Centre Management,Grounds Maintenance,60503
http://statistics.data.gov.uk/id/local-authority/12UE,Huntingdonshire District Council,200226,DAL-ROD (CAMRIDGESHIRE) DAL-ROD (CAMRIDGESHIRE),78970,19/04/2023,64504,OLSN Grounds Maintenance,11/05/2023,141,705,846,OLSN - Site & Centre Management,Grounds Maintenance,60503
http://statistics.data.gov.uk/id/local-authority/12UE,Huntingdonshire District Council,200226,DAL-ROD (CAMRIDGESHIRE) DAL-ROD (CAMRIDGESHIRE),81409,24/05/2023,30000330,St Ives BS - Unblock Toilets 17.05.23,15/06/2023,50,250,300,Market Rd Pc Bus Stn - St Ives,Maintenance - Building,60201
http://statistics.data.gov.uk/id/local-authority/12UE,Huntingdonshire District Council,200226,DAL-ROD (CAMRIDGESHIRE) DAL-ROD (CAMRIDGESHIRE),79383,20/04/2023,64590,Clear Drain From Jet Wash,19/05/2023,81,405,486,Vehicle Maintenance,Maintenance - Building,60201
http://statistics.data.gov.uk/id/local-authority/12UE,Huntingdonshire District Council,200226,DAL-ROD (CAMRIDGESHIRE) DAL-ROD (CAMRIDGESHIRE),79383,20/04/2023,64590,Clear Drain From Jet Wash,19/05/2023,59,295,354,Vehicle Maintenance,Maintenance - Building,60201
http://statistics.data.gov.uk/id/local-authority/12UE,Huntingdonshire District Council,203130,Darna Project Management,78821,31/03/2023,HDC04,REDACTED,20/04/2023,1440,7200,8640,Market Towns,Agency Staff,60011
http://statistics.data.gov.uk/id/local-authority/12UE,Huntingdonshire District Council,203130,Darna Project Management,81045,26/05/2023,HDC06,REDACTED,05/06/2023,1440,7200,8640,Market Towns,Agency Staff,60011
http://statistics.data.gov.uk/id/local-authority/12UE,Huntingdonshire District Council,202375,WALDEN HOUSE LTD,79078,20/04/2023,REDACTED,REDACTED,20/04/2023,0,1100.75,1100.75,Homelessness,Claim on Covid Bond,64406
http://statistics.data.gov.uk/id/local-authority/12UE,Huntingdonshire District Council,202375,WALDEN HOUSE LTD,80041,10/05/2023,REDACTED,REDACTED,11/05/2023,0,1115.2,1115.2,Homelessness,Claim on Covid Bond,64406
http://statistics.data.gov.uk/id/local-authority/12UE,Huntingdonshire District Council,202619,DAWSONGROUP VANS LTD,82156,01/05/2023,615803,Euro 6 Supplement/Luton With Taillifft,26/06/2023,-0.01,0,-0.01,Finance,Over/Under VAT Rounding,68350
http://statistics.data.gov.uk/id/local-authority/12UE,Huntingdonshire District Council,202619,DAWSONGROUP VANS LTD,82156,01/05/2023,615803,Euro 6 Supplement/Luton With Taillifft,26/06/2023,4.84,24.18,29.02,Bin Deliveries,Vehicle Accident Damage,60925
http://statistics.data.gov.uk/id/local-authority/12UE,Huntingdonshire District Council,202619,DAWSONGROUP VANS LTD,82156,01/05/2023,615803,Euro 6 Supplement/Luton With Taillifft,26/06/2023,258.22,1291.1,1549.32,Bin Deliveries,Vehicle Accident Damage,60925
http://statistics.data.gov.uk/id/local-authority/12UE,Huntingdonshire District Council,202619,DAWSONGROUP VANS LTD,82157,11/04/2023,614564,Luton With Taillift/Delivery&Collection,26/06/2023,3.12,15.6,18.72,Bin Deliveries,Vehicle Accident Damage,60925
http://statistics.data.gov.uk/id/local-authority/12UE,Huntingdonshire District Council,202619,DAWSONGROUP VANS LTD,82157,11/04/2023,614564,Luton With Taillift/Delivery&Collection,26/06/2023,166.59,832.97,999.56,Bin Deliveries,Vehicle Accident Damage,60925
http://statistics.data.gov.uk/id/local-authority/12UE,Huntingdonshire District Council,202619,DAWSONGROUP VANS LTD,82157,11/04/2023,614564,Luton With Taillift/Delivery&Collection,26/06/2023,17,85,102,Bin Deliveries,Vehicle Accident Damage,60925
http://statistics.data.gov.uk/id/local-authority/12UE,Huntingdonshire District Council,203083,Dell Corporation Limited,79325,20/04/2023,7100056116,Microsoft Intune Consultancy,19/05/2023,989.04,4945.22,5934.26,City Council Anywhere,Consultancy Fees,62400
http://statistics.data.gov.uk/id/local-authority/12UE,Huntingdonshire District Council,203083,Dell Corporation Limited,79325,20/04/2023,7100056116,Microsoft Intune Consultancy,19/05/2023,989.04,4945.22,5934.26,HDC Council Anywhere,Consultancy Fees,62400
http://statistics.data.gov.uk/id/local-authority/12UE,Huntingdonshire District Council,203083,Dell Corporation Limited,79325,20/04/2023,7100056116,Microsoft Intune Consultancy,19/05/2023,989.04,4945.22,5934.26,SCDC Council Anywhere,Consultancy Fees,62400
http://statistics.data.gov.uk/id/local-authority/12UE,Huntingdonshire District Council,203083,Dell Corporation Limited,78944,12/04/2023,7402907408,IT Hardware-Monitor/Dock/Mouse/Keyboard,04/05/2023,42,210,252,3CICT NON STAFF HOLDING ACCOUNT,Ict Hardware,64070
http://statistics.data.gov.uk/id/local-authority/12UE,Huntingdonshire District Council,203083,Dell Corporation Limited,79263,20/04/2023,7402909240,IT Hardware - Monitor/Universal Dock,19/05/2023,21,105,126,3CICT NON STAFF HOLDING ACCOUNT,Ict Hardware,64070
http://statistics.data.gov.uk/id/local-authority/12UE,Huntingdonshire District Council,203083,Dell Corporation Limited,78944,12/04/2023,7402907408,IT Hardware-Monitor/Dock/Mouse/Keyboard,04/05/2023,30,150,180,3CICT NON STAFF HOLDING ACCOUNT,Ict Hardware,64070
http://statistics.data.gov.uk/id/local-authority/12UE,Huntingdonshire District Council,203083,Dell Corporation Limited,78944,12/04/2023,7402907408,IT Hardware-Monitor/Dock/Mouse/Keyboard,04/05/2023,1.41,7.03,8.44,3CICT NON STAFF HOLDING ACCOUNT,Ict Hardware,64070
http://statistics.data.gov.uk/id/local-authority/12UE,Huntingdonshire District Council,203083,Dell Corporation Limited,78944,12/04/2023,7402907408,IT Hardware-Monitor/Dock/Mouse/Keyboard,04/05/2023,1.88,9.42,11.3,3CICT NON STAFF HOLDING ACCOUNT,Ict Hardware,64070
http://statistics.data.gov.uk/id/local-authority/12UE,Huntingdonshire District Council,203083,Dell Corporation Limited,78944,12/04/2023,7402907408,IT Hardware-Monitor/Dock/Mouse/Keyboard,04/05/2023,2.18,10.9,13.08,3CICT NON STAFF HOLDING ACCOUNT,Ict Hardware,64070
http://statistics.data.gov.uk/id/local-authority/12UE,Huntingdonshire District Council,203083,Dell Corporation Limited,79263,20/04/2023,7402909240,IT Hardware - Monitor/Universal Dock,19/05/2023,30,150,180,3CICT NON STAFF HOLDING ACCOUNT,Ict Hardware,64070
http://statistics.data.gov.uk/id/local-authority/12UE,Huntingdonshire District Council,203083,Dell Corporation Limited,79017,12/04/2023,7402907279,IT Hardware - CA Refresh Laptops - City,04/05/2023,8454.8,42274,50728.8,City Council Anywhere,Ict Hardware,64070
http://statistics.data.gov.uk/id/local-authority/12UE,Huntingdonshire District Council,203083,Dell Corporation Limited,79322,13/04/2023,7402907432,IT Hardware - CA Refresh Laptops - City,09/05/2023,8454.8,42274,50728.8,City Council Anywhere,Ict Hardware,64070
http://statistics.data.gov.uk/id/local-authority/12UE,Huntingdonshire District Council,203083,Dell Corporation Limited,79321,13/04/2023,7402907433,IT Hardware - CA Refresh Laptops - City,09/05/2023,3381.92,16909.6,20291.52,City Council Anywhere,Ict Hardware,64070
http://statistics.data.gov.uk/id/local-authority/12UE,Huntingdonshire District Council,203083,Dell Corporation Limited,79318,28/03/2023,7402903665,IT Hardware - Keyboard/Monitors/Docking,28/04/2023,42,210,252,City Recoverable,Ict Hardware,64070
http://statistics.data.gov.uk/id/local-authority/12UE,Huntingdonshire District Council,203083,Dell Corporation Limited,82227,01/06/2023,7402920447,IT Hardware,30/06/2023,21,105,126,City Recoverable,Ict Hardware,64070
http://statistics.data.gov.uk/id/local-authority/12UE,Huntingdonshire District Council,203083,Dell Corporation Limited,80770,22/05/2023,7402916886,IT Hardware - Monitor/Universal Dock,15/06/2023,21,105,126,City Recoverable,Ict Hardware,64070
http://statistics.data.gov.uk/id/local-authority/12UE,Huntingdonshire District Council,203083,Dell Corporation Limited,79318,28/03/2023,7402903665,IT Hardware - Keyboard/Monitors/Docking,28/04/2023,2.18,10.9,13.08,City Recoverable,Ict Hardware,64070
http://statistics.data.gov.uk/id/local-authority/12UE,Huntingdonshire District Council,203083,Dell Corporation Limited,79318,28/03/2023,7402903665,IT Hardware - Keyboard/Monitors/Docking,28/04/2023,150,750,900,City Recoverable,Ict Hardware,64070
http://statistics.data.gov.uk/id/local-authority/12UE,Huntingdonshire District Council,203083,Dell Corporation Limited,82227,01/06/2023,7402920447,IT Hardware,30/06/2023,1.88,9.42,11.3,City Recoverable,Ict Hardware,64070
http://statistics.data.gov.uk/id/local-authority/12UE,Huntingdonshire District Council,203083,Dell Corporation Limited,82227,01/06/2023,7402920447,IT Hardware,30/06/2023,4.85,24.24,29.09,City Recoverable,Ict Hardware,64070
http://statistics.data.gov.uk/id/local-authority/12UE,Huntingdonshire District Council,203083,Dell Corporation Limited,82227,01/06/2023,7402920447,IT Hardware,30/06/2023,30,150,180,City Recoverable,Ict Hardware,64070
http://statistics.data.gov.uk/id/local-authority/12UE,Huntingdonshire District Council,203083,Dell Corporation Limited,80770,22/05/2023,7402916886,IT Hardware - Monitor/Universal Dock,15/06/2023,30,150,180,City Recoverable,Ict Hardware,64070
http://statistics.data.gov.uk/id/local-authority/12UE,Huntingdonshire District Council,203083,Dell Corporation Limited,78785,25/03/2023,7402902838,IT Hardware - CA Refresh Laptops - HDC,20/04/2023,7835.5,39177.5,47013,HDC Council Anywhere,Ict Hardware,64070
http://statistics.data.gov.uk/id/local-authority/12UE,Huntingdonshire District Council,203083,Dell Corporation Limited,78787,06/04/2023,7402906668,IT Hardware - Monitor/Universal Dock,04/05/2023,21,105,126,HDC Recoverable,Ict Hardware,64070
http://statistics.data.gov.uk/id/local-authority/12UE,Huntingdonshire District Council,203083,Dell Corporation Limited,78787,06/04/2023,7402906668,IT Hardware - Monitor/Universal Dock,04/05/2023,30,150,180,HDC Recoverable,Ict Hardware,64070
http://statistics.data.gov.uk/id/local-authority/12UE,Huntingdonshire District Council,203083,Dell Corporation Limited,79312,20/04/2023,7100056117,IT Hardware - CA Refresh Laptops - SCDC,19/05/2023,7835.5,39177.5,47013,SCDC Council Anywhere,Ict Hardware,64070
http://statistics.data.gov.uk/id/local-authority/12UE,Huntingdonshire District Council,203083,Dell Corporation Limited,78520,28/03/2023,7402903663,IT Hardware - Monitors/Docking Station,20/04/2023,42,210,252,SCDC Recoverable,Ict Hardware,64070
http://statistics.data.gov.uk/id/local-authority/12UE,Huntingdonshire District Council,203083,Dell Corporation Limited,80271,08/05/2023,7402913396,IT Hardware - Monitors/Universal Dock,01/06/2023,42,210,252,SCDC Recoverable,Ict Hardware,64070
http://statistics.data.gov.uk/id/local-authority/12UE,Huntingdonshire District Council,203083,Dell Corporation Limited,81651,01/06/2023,7402920446,IT Hardware - Monitor/K'board/Mouse/Dock,22/06/2023,21,105,126,SCDC Recoverable,Ict Hardware,64070
http://statistics.data.gov.uk/id/local-authority/12UE,Huntingdonshire District Council,203083,Dell Corporation Limited,78520,28/03/2023,7402903663,IT Hardware - Monitors/Docking Station,20/04/2023,30,150,180,SCDC Recoverable,Ict Hardware,64070
http://statistics.data.gov.uk/id/local-authority/12UE,Huntingdonshire District Council,203083,Dell Corporation Limited,80271,08/05/2023,7402913396,IT Hardware - Monitors/Universal Dock,01/06/2023,30,150,180,SCDC Recoverable,Ict Hardware,64070
http://statistics.data.gov.uk/id/local-authority/12UE,Huntingdonshire District Council,203083,Dell Corporation Limited,81651,01/06/2023,7402920446,IT Hardware - Monitor/K'board/Mouse/Dock,22/06/2023,1.41,7.03,8.44,SCDC Recoverable,Ict Hardware,64070
http://statistics.data.gov.uk/id/local-authority/12UE,Huntingdonshire District Council,203083,Dell Corporation Limited,81651,01/06/2023,7402920446,IT Hardware - Monitor/K'board/Mouse/Dock,22/06/2023,2.18,10.9,13.08,SCDC Recoverable,Ict Hardware,64070
http://statistics.data.gov.uk/id/local-authority/12UE,Huntingdonshire District Council,203083,Dell Corporation Limited,81651,01/06/2023,7402920446,IT Hardware - Monitor/K'board/Mouse/Dock,22/06/2023,30,150,180,SCDC Recoverable,Ict Hardware,64070
http://statistics.data.gov.uk/id/local-authority/12UE,Huntingdonshire District Council,203083,Dell Corporation Limited,79325,20/04/2023,7100056116,Microsoft Intune Consultancy,19/05/2023,0.01,0,0.01,Finance,Over/Under VAT Rounding,68350
http://statistics.data.gov.uk/id/local-authority/12UE,Huntingdonshire District Council,200236,DENNIS EAGLE LTD DENNIS EAGLE LTD,79922,25/04/2023,DE11580781,VE18JWF MOT Parts,19/05/2023,-0.01,0,-0.01,Finance,Over/Under VAT Rounding,68350
http://statistics.data.gov.uk/id/local-authority/12UE,Huntingdonshire District Council,200236,DENNIS EAGLE LTD DENNIS EAGLE LTD,79798,18/04/2023,DE11578994,VU67HXZ Brake Parts,11/05/2023,-0.01,0,-0.01,Finance,Over/Under VAT Rounding,68350
http://statistics.data.gov.uk/id/local-authority/12UE,Huntingdonshire District Council,200236,DENNIS EAGLE LTD DENNIS EAGLE LTD,80328,02/05/2023,DE11582239,VE18JWF Pads/Discs/Nut/Ring,25/05/2023,-0.01,0,-0.01,Finance,Over/Under VAT Rounding,68350
http://statistics.data.gov.uk/id/local-authority/12UE,Huntingdonshire District Council,200236,DENNIS EAGLE LTD DENNIS EAGLE LTD,81839,07/06/2023,DE11590990,VA21ZGO MOT Parts,30/06/2023,-0.01,0,-0.01,Finance,Over/Under VAT Rounding,68350
http://statistics.data.gov.uk/id/local-authority/12UE,Huntingdonshire District Council,200236,DENNIS EAGLE LTD DENNIS EAGLE LTD,78346,31/03/2023,DE11575295,OPS PARTS,04/05/2023,-0.01,0,-0.01,Finance,Over/Under VAT Rounding,68350
http://statistics.data.gov.uk/id/local-authority/12UE,Huntingdonshire District Council,200236,DENNIS EAGLE LTD DENNIS EAGLE LTD,77806,10/03/2023,DE11570067,VE18JWD Link/Clamp/Plate/Hinge,06/04/2023,-0.01,0,-0.01,Finance,Over/Under VAT Rounding,68350
http://statistics.data.gov.uk/id/local-authority/12UE,Huntingdonshire District Council,200236,DENNIS EAGLE LTD DENNIS EAGLE LTD,81637,17/05/2023,D110328,Road Fund Licence,15/06/2023,0,300,300,Vehicles & Plant,Purchase Of Vehicles Related Costs,60906
http://statistics.data.gov.uk/id/local-authority/12UE,Huntingdonshire District Council,200236,DENNIS EAGLE LTD DENNIS EAGLE LTD,81637,17/05/2023,D110328,Road Fund Licence,15/06/2023,0,55,55,Vehicles & Plant,Purchase Of Vehicles Related Costs,60906
http://statistics.data.gov.uk/id/local-authority/12UE,Huntingdonshire District Council,200236,DENNIS EAGLE LTD DENNIS EAGLE LTD,81637,17/05/2023,D110328,Road Fund Licence,15/06/2023,34.6,173,207.6,Vehicles & Plant,Purchase Of Vehicles Related Costs,60906
http://statistics.data.gov.uk/id/local-authority/12UE,Huntingdonshire District Council,200236,DENNIS EAGLE LTD DENNIS EAGLE LTD,81637,17/05/2023,D110328,Road Fund Licence,15/06/2023,39480,197400,236880,Vehicles & Plant,Purchase Of Vehicles Related Costs,60906
http://statistics.data.gov.uk/id/local-authority/12UE,Huntingdonshire District Council,200236,DENNIS EAGLE LTD DENNIS EAGLE LTD,81638,17/05/2023,D110327,Road Fund Licence,15/06/2023,34.6,173,207.6,Vehicles & Plant,Purchase Of Vehicles Related Costs,60906
http://statistics.data.gov.uk/id/local-authority/12UE,Huntingdonshire District Council,200236,DENNIS EAGLE LTD DENNIS EAGLE LTD,81638,17/05/2023,D110327,Road Fund Licence,15/06/2023,39480,197400,236880,Vehicles & Plant,Purchase Of Vehicles Related Costs,60906
http://statistics.data.gov.uk/id/local-authority/12UE,Huntingdonshire District Council,200236,DENNIS EAGLE LTD DENNIS EAGLE LTD,81638,17/05/2023,D110327,Road Fund Licence,15/06/2023,0,300,300,Vehicles & Plant,Purchase Of Vehicles Related Costs,60906
http://statistics.data.gov.uk/id/local-authority/12UE,Huntingdonshire District Council,200236,DENNIS EAGLE LTD DENNIS EAGLE LTD,81638,17/05/2023,D110327,Road Fund Licence,15/06/2023,0,55,55,Vehicles & Plant,Purchase Of Vehicles Related Costs,60906
http://statistics.data.gov.uk/id/local-authority/12UE,Huntingdonshire District Council,200236,DENNIS EAGLE LTD DENNIS EAGLE LTD,80083,14/04/2023,DE11578315,OPS MUDWING,11/05/2023,133.73,668.63,802.36,Domestic Waste Collection,Vehicle Repairs And Maintenance,60904
http://statistics.data.gov.uk/id/local-authority/12UE,Huntingdonshire District Council,200236,DENNIS EAGLE LTD DENNIS EAGLE LTD,77806,10/03/2023,DE11570067,VE18JWD Link/Clamp/Plate/Hinge,06/04/2023,122.1,610.48,732.58,Domestic Waste Collection,Vehicle Repairs And Maintenance,60904
http://statistics.data.gov.uk/id/local-authority/12UE,Huntingdonshire District Council,200236,DENNIS EAGLE LTD DENNIS EAGLE LTD,81483,30/05/2023,DE11588896,VE18JXA MOT Parts,22/06/2023,314.23,1571.16,1885.39,Domestic Waste Collection,Vehicle Repairs And Maintenance,60904
http://statistics.data.gov.uk/id/local-authority/12UE,Huntingdonshire District Council,200236,DENNIS EAGLE LTD DENNIS EAGLE LTD,81849,07/06/2023,DE11590991,VE18JXA Seat Belt Guide/Cover,30/06/2023,65.6,328,393.6,Domestic Waste Collection,Vehicle Repairs And Maintenance,60904
http://statistics.data.gov.uk/id/local-authority/12UE,Huntingdonshire District Council,200236,DENNIS EAGLE LTD DENNIS EAGLE LTD,81484,24/05/2023,DE11587906,VE18JXA FilterKit/Sealing Ring,15/06/2023,63.63,318.16,381.79,Domestic Waste Collection,Vehicle Repairs And Maintenance,60904
http://statistics.data.gov.uk/id/local-authority/12UE,Huntingdonshire District Council,200236,DENNIS EAGLE LTD DENNIS EAGLE LTD,81108,23/05/2023,DE11587084,VK20NTN Mudwing/Arm/Mount,15/06/2023,84.6,422.99,507.59,Domestic Waste Collection,Vehicle Repairs And Maintenance,60904
http://statistics.data.gov.uk/id/local-authority/12UE,Huntingdonshire District Council,200236,DENNIS EAGLE LTD DENNIS EAGLE LTD,80087,27/04/2023,DE1158157,OPS FILTER,25/05/2023,188.82,944.11,1132.93,Domestic Waste Collection,Vehicle Repairs And Maintenance,60904
http://statistics.data.gov.uk/id/local-authority/12UE,Huntingdonshire District Council,200236,DENNIS EAGLE LTD DENNIS EAGLE LTD,79572,11/04/2023,DE11577137,VK20NTT Sensor/Clamp/Pipe,04/05/2023,96.05,480.27,576.32,Domestic Waste Collection,Vehicle Repairs And Maintenance,60904
http://statistics.data.gov.uk/id/local-authority/12UE,Huntingdonshire District Council,200236,DENNIS EAGLE LTD DENNIS EAGLE LTD,81840,06/06/2023,DE11590620,VU67HXY Various Parts,30/06/2023,591.66,2958.32,3549.98,Domestic Waste Collection,Vehicle Repairs And Maintenance,60904
http://statistics.data.gov.uk/id/local-authority/12UE,Huntingdonshire District Council,200236,DENNIS EAGLE LTD DENNIS EAGLE LTD,79576,14/04/2023,DE11578314,VU67HXY Sensor/Injector/Plate,11/05/2023,209.31,1046.54,1255.85,Domestic Waste Collection,Vehicle Repairs And Maintenance,60904
http://statistics.data.gov.uk/id/local-authority/12UE,Huntingdonshire District Council,200236,DENNIS EAGLE LTD DENNIS EAGLE LTD,80781,18/05/2023,DE11586440,VX70ZMO Filter/Flap/Latch,08/06/2023,100.24,501.18,601.42,Domestic Waste Collection,Vehicle Repairs And Maintenance,60904
http://statistics.data.gov.uk/id/local-authority/12UE,Huntingdonshire District Council,200236,DENNIS EAGLE LTD DENNIS EAGLE LTD,79922,25/04/2023,DE11580781,VE18JWF MOT Parts,19/05/2023,299.41,1497.03,1796.44,Green Waste Collection,Vehicle Repairs And Maintenance,60904
http://statistics.data.gov.uk/id/local-authority/12UE,Huntingdonshire District Council,200236,DENNIS EAGLE LTD DENNIS EAGLE LTD,80328,02/05/2023,DE11582239,VE18JWF Pads/Discs/Nut/Ring,25/05/2023,188.19,940.93,1129.12,Green Waste Collection,Vehicle Repairs And Maintenance,60904
http://statistics.data.gov.uk/id/local-authority/12UE,Huntingdonshire District Council,200236,DENNIS EAGLE LTD DENNIS EAGLE LTD,77992,20/03/2023,DE11572104,VE18JWF Air Bellows,14/04/2023,155.84,779.18,935.02,Green Waste Collection,Vehicle Repairs And Maintenance,60904
http://statistics.data.gov.uk/id/local-authority/12UE,Huntingdonshire District Council,200236,DENNIS EAGLE LTD DENNIS EAGLE LTD,77998,23/03/2023,DE11573230,VE18JWF Air Pipe/Actuator,20/04/2023,76.48,382.38,458.86,Green Waste Collection,Vehicle Repairs And Maintenance,60904
http://statistics.data.gov.uk/id/local-authority/12UE,Huntingdonshire District Council,200236,DENNIS EAGLE LTD DENNIS EAGLE LTD,80325,04/05/2023,DE11583028,VE18JWF Filter/Ball Joint/Nut/Flap,25/05/2023,74.02,370.09,444.11,Green Waste Collection,Vehicle Repairs And Maintenance,60904
http://statistics.data.gov.uk/id/local-authority/12UE,Huntingdonshire District Council,200236,DENNIS EAGLE LTD DENNIS EAGLE LTD,80327,02/05/2023,DE11582240,VE18JWF Bushing/Sensor,25/05/2023,61.05,305.27,366.32,Green Waste Collection,Vehicle Repairs And Maintenance,60904
http://statistics.data.gov.uk/id/local-authority/12UE,Huntingdonshire District Council,200236,DENNIS EAGLE LTD DENNIS EAGLE LTD,80804,09/05/2023,DE11583743,VK22BXX Windscreen,01/06/2023,211.1,1055.49,1266.59,Green Waste Collection,Vehicle Repairs And Maintenance,60904
